Workbook

Sheet Introdução
B9: Construa o modelo definindo o número de cenários, alternativas e horizonte temporal na aba critérios.
D10: Para mais orientações, consulte o manual.
B18: Núcleo de Avaliação de Tecnologias em Saúde
B19: Instituto Nacional de Cardiologia
B20: Ministério da Saúde
B21: (+55) 21 3037-2421
B22: http://www.natsinc.org
B23: Rua das Laranjeiras, 374, 5º Andar - Laranjeiras, Rio de Janeiro - RJ, 22240-006

Sheet Criterios
C3: Definições
B5: 1. Nome da nova intervenção:
B7: 2. Tecnologias alternativas
B8: Quantidade de tecnologias alternativas
B9: Nome da Terapia A | AF9: 1 | AG9: =IF(AF9 > controle_formulario!$C$10,"Ocultar","") -> 
B10: Nome da Terapia B | AF10: 2 | AG10: =IF(AF10 > controle_formulario!$C$10,"Ocultar","") -> Ocultar
B11: Nome da Terapia C | AF11: 3 | AG11: =IF(AF11 > controle_formulario!$C$10,"Ocultar","") -> Ocultar
B12: Nome da Terapia D | AF12: 4 | AG12: =IF(AF12 > controle_formulario!$C$10,"Ocultar","") -> Ocultar
B15: 3. Nome do cenário de referência
B17: 4. Cenários Alternativos
B18: Quantidade de cenários alternativos
B19: Nome do Cenário Alternativo 1 | AF19: 1 | AG19: =IF(AF19 > controle_formulario!$E$16,"Ocultar","") -> 
B20: Nome do Cenário Alternativo 2 | C20: Custo SIASG | AF20: 2 | AG20: =IF(AF20 > controle_formulario!$E$16,"Ocultar","") -> Ocultar
B21: Nome do Cenário Alternativo 3 | C21: Custo CMED | AF21: 3 | AG21: =IF(AF21 > controle_formulario!$E$16,"Ocultar","") -> Ocultar
B22: Nome do Cenário Alternativo 4 | C22: Cenário Alternativo 4 | AF22: 4 | AG22: =IF(AF22 > controle_formulario!$E$16,"Ocultar","") -> Ocultar
B23: Nome do Cenário Alternativo 5 | C23: Cenário Alternativo 5 | AF23: 5 | AG23: =IF(AF23 > controle_formulario!$E$16,"Ocultar","") -> Ocultar
B24: Nome do Cenário Alternativo 6 | C24: Cenário Alternativo 6 | AF24: 6 | AG24: =IF(AF24 > controle_formulario!$E$16,"Ocultar","") -> Ocultar
B25: Nome do Cenário Alternativo 7 | C25: Cenário Alternativo 7 | AF25: 7 | AG25: =IF(AF25 > controle_formulario!$E$16,"Ocultar","") -> Ocultar
B26: Nome do Cenário Alternativo 8 | C26: Cenário Alternativo 8 | AF26: 8 | AG26: =IF(AF26 > controle_formulario!$E$16,"Ocultar","") -> Ocultar
B27: Nome do Cenário Alternativo 9 | C27: Cenário Alternativo 9 | AF27: 9 | AG27: =IF(AF27 > controle_formulario!$E$16,"Ocultar","") -> Ocultar
B28: Nome do Cenário Alternativo 10 | C28: Cenário Alternativo 10 | AF28: 10 | AG28: =IF(AF28 > controle_formulario!$E$16,"Ocultar","") -> Ocultar
B30: 5. Características da análise
B31: Ano de início da análise | C31: 2020
B32: Horizonte temporal da análise (em anos)

Sheet Populacao
C2: Método para definição da população de referência:
C7: Restrição ou Aumento de Demanda:
AE12: =IF(controle_formulario!$C$39=2,"Ocultar","") ->  | AG12: =IF(controle_formulario!$C$39=2,"Ocultar","") -> 
C13: População de referência | AE13: =IF(controle_formulario!$C$39=2,"Ocultar","") ->  | AG13: =IF(controle_formulario!$C$39=2,"Ocultar","") -> 
AE14: =IF(controle_formulario!$C$39=2,"Ocultar","") ->  | AG14: =IF(controle_formulario!$C$39=2,"Ocultar","") -> 
AE15: =IF(controle_formulario!$C$39=2,"Ocultar","") ->  | AG15: =IF(controle_formulario!$C$39=2,"Ocultar","") -> 
AE16: =IF(controle_formulario!$C$39=2,"Ocultar","") ->  | AG16: =IF(controle_formulario!$C$39=2,"Ocultar","") -> 
C17: Sexo | AE17: =IF(controle_formulario!$C$39=2,"Ocultar","") ->  | AG17: =IF(controle_formulario!$C$39=2,"Ocultar","") -> 
G18: Parâmetros Epidemiológicos | S18: 1 ano | T18: 2 anos | U18: 3 anos | V18: 4 anos | W18: 5 anos | X18: 6 anos | Y18: 7 anos | Z18: 8 anos | AA18: 9 anos | AB18: 10 anos | AE18: =IF(controle_formulario!$C$39=2,"Ocultar","") ->  | AG18: =IF(controle_formulario!$C$39=2,"Ocultar","") -> 
C19: Faixa Etária | G19: Proporção | I19: Fração | K19: Fração | M19: Fração | O19: Fração | S19: =Criterios!$C$31 -> 2020 | T19: =S19+1 -> 2021 | U19: 2022 | V19: 2023 | W19: 2024 | X19: 2025 | Y19: 2026 | Z19: 2027 | AA19: 2028 | AB19: 2029 | AE19: =IF(controle_formulario!$C$39=2,"Ocultar","") ->  | AG19: =IF(controle_formulario!$C$39=2,"Ocultar","") -> 
AE20: =IF(controle_formulario!$C$39=2,"Ocultar","") ->  | AG20: =IF(controle_formulario!$C$39=2,"Ocultar","") -> 
C21: 0 | D21: - | E21: 9 | S21: =IF($I21>0,$I21,1)*IF($O21>0,$O21,1)*IF($M21>0,$M21,1)*IF($K21>0,$K21,1)*(SUMIFS(OFFSET(pop_brasil!$C$2:$C$274, 0, S$19-2017),pop_brasil!$A$2:$A$274,controle_formulario!$G$41,pop_brasil!$B$2:$B$274,">="&Populacao!$C21,pop_brasil!$B$2:$B$274,"<="&Populacao!$E21) * $G21) -> 0 | T21: =IF($I21>0,$I21,1)*IF($O21>0,$O21,1)*IF($M21>0,$M21,1)*IF($K21>0,$K21,1)*SUMIFS(OFFSET(pop_brasil!$C$2:$C$274, 0, T$19-2017),pop_brasil!$A$2:$A$274,controle_formulario!$G$41,pop_brasil!$B$2:$B$274,">="&Populacao!$C21,pop_brasil!$B$2:$B$274,"<="&Populacao!$E21) * $G21 -> 0 | U21: =IF($I21>0,$I21,1)*IF($O21>0,$O21,1)*IF($M21>0,$M21,1)*IF($K21>0,$K21,1)*SUMIFS(OFFSET(pop_brasil!$C$2:$C$274, 0, U$19-2017),pop_brasil!$A$2:$A$274,controle_formulario!$G$41,pop_brasil!$B$2:$B$274,">="&Populacao!$C21,pop_brasil!$B$2:$B$274,"<="&Populacao!$E21) * $G21 -> 0 | V21: =IF($I21>0,$I21,1)*IF($O21>0,$O21,1)*IF($M21>0,$M21,1)*IF($K21>0,$K21,1)*SUMIFS(OFFSET(pop_brasil!$C$2:$C$274, 0, V$19-2017),pop_brasil!$A$2:$A$274,controle_formulario!$G$41,pop_brasil!$B$2:$B$274,">="&Populacao!$C21,pop_brasil!$B$2:$B$274,"<="&Populacao!$E21) * $G21 -> 0 | W21: =IF($I21>0,$I21,1)*IF($O21>0,$O21,1)*IF($M21>0,$M21,1)*IF($K21>0,$K21,1)*SUMIFS(OFFSET(pop_brasil!$C$2:$C$274, 0, W$19-2017),pop_brasil!$A$2:$A$274,controle_formulario!$G$41,pop_brasil!$B$2:$B$274,">="&Populacao!$C21,pop_brasil!$B$2:$B$274,"<="&Populacao!$E21) * $G21 -> 0 | X21: =IF($I21>0,$I21,1)*IF($O21>0,$O21,1)*IF($M21>0,$M21,1)*IF($K21>0,$K21,1)*SUMIFS(OFFSET(pop_brasil!$C$2:$C$274, 0, X$19-2017),pop_brasil!$A$2:$A$274,controle_formulario!$G$41,pop_brasil!$B$2:$B$274,">="&Populacao!$C21,pop_brasil!$B$2:$B$274,"<="&Populacao!$E21) * $G21 -> 0 | Y21: =IF($I21>0,$I21,1)*IF($O21>0,$O21,1)*IF($M21>0,$M21,1)*IF($K21>0,$K21,1)*SUMIFS(OFFSET(pop_brasil!$C$2:$C$274, 0, Y$19-2017),pop_brasil!$A$2:$A$274,controle_formulario!$G$41,pop_brasil!$B$2:$B$274,">="&Populacao!$C21,pop_brasil!$B$2:$B$274,"<="&Populacao!$E21) * $G21 -> 0 | Z21: =IF($I21>0,$I21,1)*IF($O21>0,$O21,1)*IF($M21>0,$M21,1)*IF($K21>0,$K21,1)*SUMIFS(OFFSET(pop_brasil!$C$2:$C$274, 0, Z$19-2017),pop_brasil!$A$2:$A$274,controle_formulario!$G$41,pop_brasil!$B$2:$B$274,">="&Populacao!$C21,pop_brasil!$B$2:$B$274,"<="&Populacao!$E21) * $G21 -> 0 | AA21: =IF($I21>0,$I21,1)*IF($O21>0,$O21,1)*IF($M21>0,$M21,1)*IF($K21>0,$K21,1)*SUMIFS(OFFSET(pop_brasil!$C$2:$C$274, 0, AA$19-2017),pop_brasil!$A$2:$A$274,controle_formulario!$G$41,pop_brasil!$B$2:$B$274,">="&Populacao!$C21,pop_brasil!$B$2:$B$274,"<="&Populacao!$E21) * $G21 -> 0 | AB21: =IF($I21>0,$I21,1)*IF($O21>0,$O21,1)*IF($M21>0,$M21,1)*IF($K21>0,$K21,1)*SUMIFS(OFFSET(pop_brasil!$C$2:$C$274, 0, AB$19-2017),pop_brasil!$A$2:$A$274,controle_formulario!$G$41,pop_brasil!$B$2:$B$274,">="&Populacao!$C21,pop_brasil!$B$2:$B$274,"<="&Populacao!$E21) * $G21 -> 0 | AE21: =IF(controle_formulario!$C$39=2,"Ocultar","") ->  | AG21: =IF(controle_formulario!$C$39=2,"Ocultar","") -> 
C22: 10 | D22: =-'Market Share'!E80 -> 0 | E22: 19 | S22: =IF($I22>0,$I22,1)*IF($O22>0,$O22,1)*IF($M22>0,$M22,1)*IF($K22>0,$K22,1)*SUMIFS(OFFSET(pop_brasil!$C$2:$C$274, 0, S$19-2017),pop_brasil!$A$2:$A$274,controle_formulario!$G$41,pop_brasil!$B$2:$B$274,">="&Populacao!$C22,pop_brasil!$B$2:$B$274,"<="&Populacao!$E22) * $G22 -> 0 | T22: =IF($I22>0,$I22,1)*IF($O22>0,$O22,1)*IF($M22>0,$M22,1)*IF($K22>0,$K22,1)*SUMIFS(OFFSET(pop_brasil!$C$2:$C$274, 0, T$19-2017),pop_brasil!$A$2:$A$274,controle_formulario!$G$41,pop_brasil!$B$2:$B$274,">="&Populacao!$C22,pop_brasil!$B$2:$B$274,"<="&Populacao!$E22) * $G22 -> 0 | U22: =IF($I22>0,$I22,1)*IF($O22>0,$O22,1)*IF($M22>0,$M22,1)*IF($K22>0,$K22,1)*SUMIFS(OFFSET(pop_brasil!$C$2:$C$274, 0, U$19-2017),pop_brasil!$A$2:$A$274,controle_formulario!$G$41,pop_brasil!$B$2:$B$274,">="&Populacao!$C22,pop_brasil!$B$2:$B$274,"<="&Populacao!$E22) * $G22 -> 0 | V22: =IF($I22>0,$I22,1)*IF($O22>0,$O22,1)*IF($M22>0,$M22,1)*IF($K22>0,$K22,1)*SUMIFS(OFFSET(pop_brasil!$C$2:$C$274, 0, V$19-2017),pop_brasil!$A$2:$A$274,controle_formulario!$G$41,pop_brasil!$B$2:$B$274,">="&Populacao!$C22,pop_brasil!$B$2:$B$274,"<="&Populacao!$E22) * $G22 -> 0 | W22: =IF($I22>0,$I22,1)*IF($O22>0,$O22,1)*IF($M22>0,$M22,1)*IF($K22>0,$K22,1)*SUMIFS(OFFSET(pop_brasil!$C$2:$C$274, 0, W$19-2017),pop_brasil!$A$2:$A$274,controle_formulario!$G$41,pop_brasil!$B$2:$B$274,">="&Populacao!$C22,pop_brasil!$B$2:$B$274,"<="&Populacao!$E22) * $G22 -> 0 | X22: =IF($I22>0,$I22,1)*IF($O22>0,$O22,1)*IF($M22>0,$M22,1)*IF($K22>0,$K22,1)*SUMIFS(OFFSET(pop_brasil!$C$2:$C$274, 0, X$19-2017),pop_brasil!$A$2:$A$274,controle_formulario!$G$41,pop_brasil!$B$2:$B$274,">="&Populacao!$C22,pop_brasil!$B$2:$B$274,"<="&Populacao!$E22) * $G22 -> 0 | Y22: =IF($I22>0,$I22,1)*IF($O22>0,$O22,1)*IF($M22>0,$M22,1)*IF($K22>0,$K22,1)*SUMIFS(OFFSET(pop_brasil!$C$2:$C$274, 0, Y$19-2017),pop_brasil!$A$2:$A$274,controle_formulario!$G$41,pop_brasil!$B$2:$B$274,">="&Populacao!$C22,pop_brasil!$B$2:$B$274,"<="&Populacao!$E22) * $G22 -> 0 | Z22: =IF($I22>0,$I22,1)*IF($O22>0,$O22,1)*IF($M22>0,$M22,1)*IF($K22>0,$K22,1)*SUMIFS(OFFSET(pop_brasil!$C$2:$C$274, 0, Z$19-2017),pop_brasil!$A$2:$A$274,controle_formulario!$G$41,pop_brasil!$B$2:$B$274,">="&Populacao!$C22,pop_brasil!$B$2:$B$274,"<="&Populacao!$E22) * $G22 -> 0 | AA22: =IF($I22>0,$I22,1)*IF($O22>0,$O22,1)*IF($M22>0,$M22,1)*IF($K22>0,$K22,1)*SUMIFS(OFFSET(pop_brasil!$C$2:$C$274, 0, AA$19-2017),pop_brasil!$A$2:$A$274,controle_formulario!$G$41,pop_brasil!$B$2:$B$274,">="&Populacao!$C22,pop_brasil!$B$2:$B$274,"<="&Populacao!$E22) * $G22 -> 0 | AB22: =IF($I22>0,$I22,1)*IF($O22>0,$O22,1)*IF($M22>0,$M22,1)*IF($K22>0,$K22,1)*SUMIFS(OFFSET(pop_brasil!$C$2:$C$274, 0, AB$19-2017),pop_brasil!$A$2:$A$274,controle_formulario!$G$41,pop_brasil!$B$2:$B$274,">="&Populacao!$C22,pop_brasil!$B$2:$B$274,"<="&Populacao!$E22) * $G22 -> 0 | AE22: =IF(controle_formulario!$C$39=2,"Ocultar","") ->  | AG22: =IF(controle_formulario!$C$39=2,"Ocultar","") -> 
C23: 20 | D23: - | E23: 29 | S23: =IF($I23>0,$I23,1)*IF($O23>0,$O23,1)*IF($M23>0,$M23,1)*IF($K23>0,$K23,1)*SUMIFS(OFFSET(pop_brasil!$C$2:$C$274, 0, S$19-2017),pop_brasil!$A$2:$A$274,controle_formulario!$G$41,pop_brasil!$B$2:$B$274,">="&Populacao!$C23,pop_brasil!$B$2:$B$274,"<="&Populacao!$E23) * $G23 -> 0 | T23: =IF($I23>0,$I23,1)*IF($O23>0,$O23,1)*IF($M23>0,$M23,1)*IF($K23>0,$K23,1)*SUMIFS(OFFSET(pop_brasil!$C$2:$C$274, 0, T$19-2017),pop_brasil!$A$2:$A$274,controle_formulario!$G$41,pop_brasil!$B$2:$B$274,">="&Populacao!$C23,pop_brasil!$B$2:$B$274,"<="&Populacao!$E23) * $G23 -> 0 | U23: =IF($I23>0,$I23,1)*IF($O23>0,$O23,1)*IF($M23>0,$M23,1)*IF($K23>0,$K23,1)*SUMIFS(OFFSET(pop_brasil!$C$2:$C$274, 0, U$19-2017),pop_brasil!$A$2:$A$274,controle_formulario!$G$41,pop_brasil!$B$2:$B$274,">="&Populacao!$C23,pop_brasil!$B$2:$B$274,"<="&Populacao!$E23) * $G23 -> 0 | V23: =IF($I23>0,$I23,1)*IF($O23>0,$O23,1)*IF($M23>0,$M23,1)*IF($K23>0,$K23,1)*SUMIFS(OFFSET(pop_brasil!$C$2:$C$274, 0, V$19-2017),pop_brasil!$A$2:$A$274,controle_formulario!$G$41,pop_brasil!$B$2:$B$274,">="&Populacao!$C23,pop_brasil!$B$2:$B$274,"<="&Populacao!$E23) * $G23 -> 0 | W23: =IF($I23>0,$I23,1)*IF($O23>0,$O23,1)*IF($M23>0,$M23,1)*IF($K23>0,$K23,1)*SUMIFS(OFFSET(pop_brasil!$C$2:$C$274, 0, W$19-2017),pop_brasil!$A$2:$A$274,controle_formulario!$G$41,pop_brasil!$B$2:$B$274,">="&Populacao!$C23,pop_brasil!$B$2:$B$274,"<="&Populacao!$E23) * $G23 -> 0 | X23: =IF($I23>0,$I23,1)*IF($O23>0,$O23,1)*IF($M23>0,$M23,1)*IF($K23>0,$K23,1)*SUMIFS(OFFSET(pop_brasil!$C$2:$C$274, 0, X$19-2017),pop_brasil!$A$2:$A$274,controle_formulario!$G$41,pop_brasil!$B$2:$B$274,">="&Populacao!$C23,pop_brasil!$B$2:$B$274,"<="&Populacao!$E23) * $G23 -> 0 | Y23: =IF($I23>0,$I23,1)*IF($O23>0,$O23,1)*IF($M23>0,$M23,1)*IF($K23>0,$K23,1)*SUMIFS(OFFSET(pop_brasil!$C$2:$C$274, 0, Y$19-2017),pop_brasil!$A$2:$A$274,controle_formulario!$G$41,pop_brasil!$B$2:$B$274,">="&Populacao!$C23,pop_brasil!$B$2:$B$274,"<="&Populacao!$E23) * $G23 -> 0 | Z23: =IF($I23>0,$I23,1)*IF($O23>0,$O23,1)*IF($M23>0,$M23,1)*IF($K23>0,$K23,1)*SUMIFS(OFFSET(pop_brasil!$C$2:$C$274, 0, Z$19-2017),pop_brasil!$A$2:$A$274,controle_formulario!$G$41,pop_brasil!$B$2:$B$274,">="&Populacao!$C23,pop_brasil!$B$2:$B$274,"<="&Populacao!$E23) * $G23 -> 0 | AA23: =IF($I23>0,$I23,1)*IF($O23>0,$O23,1)*IF($M23>0,$M23,1)*IF($K23>0,$K23,1)*SUMIFS(OFFSET(pop_brasil!$C$2:$C$274, 0, AA$19-2017),pop_brasil!$A$2:$A$274,controle_formulario!$G$41,pop_brasil!$B$2:$B$274,">="&Populacao!$C23,pop_brasil!$B$2:$B$274,"<="&Populacao!$E23) * $G23 -> 0 | AB23: =IF($I23>0,$I23,1)*IF($O23>0,$O23,1)*IF($M23>0,$M23,1)*IF($K23>0,$K23,1)*SUMIFS(OFFSET(pop_brasil!$C$2:$C$274, 0, AB$19-2017),pop_brasil!$A$2:$A$274,controle_formulario!$G$41,pop_brasil!$B$2:$B$274,">="&Populacao!$C23,pop_brasil!$B$2:$B$274,"<="&Populacao!$E23) * $G23 -> 0 | AE23: =IF(controle_formulario!$C$39=2,"Ocultar","") ->  | AG23: =IF(controle_formulario!$C$39=2,"Ocultar","") -> 
C24: 30 | D24: - | E24: 39 | S24: =IF($I24>0,$I24,1)*IF($O24>0,$O24,1)*IF($M24>0,$M24,1)*IF($K24>0,$K24,1)*SUMIFS(OFFSET(pop_brasil!$C$2:$C$274, 0, S$19-2017),pop_brasil!$A$2:$A$274,controle_formulario!$G$41,pop_brasil!$B$2:$B$274,">="&Populacao!$C24,pop_brasil!$B$2:$B$274,"<="&Populacao!$E24) * $G24 -> 0 | T24: =IF($I24>0,$I24,1)*IF($O24>0,$O24,1)*IF($M24>0,$M24,1)*IF($K24>0,$K24,1)*SUMIFS(OFFSET(pop_brasil!$C$2:$C$274, 0, T$19-2017),pop_brasil!$A$2:$A$274,controle_formulario!$G$41,pop_brasil!$B$2:$B$274,">="&Populacao!$C24,pop_brasil!$B$2:$B$274,"<="&Populacao!$E24) * $G24 -> 0 | U24: =IF($I24>0,$I24,1)*IF($O24>0,$O24,1)*IF($M24>0,$M24,1)*IF($K24>0,$K24,1)*SUMIFS(OFFSET(pop_brasil!$C$2:$C$274, 0, U$19-2017),pop_brasil!$A$2:$A$274,controle_formulario!$G$41,pop_brasil!$B$2:$B$274,">="&Populacao!$C24,pop_brasil!$B$2:$B$274,"<="&Populacao!$E24) * $G24 -> 0 | V24: =IF($I24>0,$I24,1)*IF($O24>0,$O24,1)*IF($M24>0,$M24,1)*IF($K24>0,$K24,1)*SUMIFS(OFFSET(pop_brasil!$C$2:$C$274, 0, V$19-2017),pop_brasil!$A$2:$A$274,controle_formulario!$G$41,pop_brasil!$B$2:$B$274,">="&Populacao!$C24,pop_brasil!$B$2:$B$274,"<="&Populacao!$E24) * $G24 -> 0 | W24: =IF($I24>0,$I24,1)*IF($O24>0,$O24,1)*IF($M24>0,$M24,1)*IF($K24>0,$K24,1)*SUMIFS(OFFSET(pop_brasil!$C$2:$C$274, 0, W$19-2017),pop_brasil!$A$2:$A$274,controle_formulario!$G$41,pop_brasil!$B$2:$B$274,">="&Populacao!$C24,pop_brasil!$B$2:$B$274,"<="&Populacao!$E24) * $G24 -> 0 | X24: =IF($I24>0,$I24,1)*IF($O24>0,$O24,1)*IF($M24>0,$M24,1)*IF($K24>0,$K24,1)*SUMIFS(OFFSET(pop_brasil!$C$2:$C$274, 0, X$19-2017),pop_brasil!$A$2:$A$274,controle_formulario!$G$41,pop_brasil!$B$2:$B$274,">="&Populacao!$C24,pop_brasil!$B$2:$B$274,"<="&Populacao!$E24) * $G24 -> 0 | Y24: =IF($I24>0,$I24,1)*IF($O24>0,$O24,1)*IF($M24>0,$M24,1)*IF($K24>0,$K24,1)*SUMIFS(OFFSET(pop_brasil!$C$2:$C$274, 0, Y$19-2017),pop_brasil!$A$2:$A$274,controle_formulario!$G$41,pop_brasil!$B$2:$B$274,">="&Populacao!$C24,pop_brasil!$B$2:$B$274,"<="&Populacao!$E24) * $G24 -> 0 | Z24: =IF($I24>0,$I24,1)*IF($O24>0,$O24,1)*IF($M24>0,$M24,1)*IF($K24>0,$K24,1)*SUMIFS(OFFSET(pop_brasil!$C$2:$C$274, 0, Z$19-2017),pop_brasil!$A$2:$A$274,controle_formulario!$G$41,pop_brasil!$B$2:$B$274,">="&Populacao!$C24,pop_brasil!$B$2:$B$274,"<="&Populacao!$E24) * $G24 -> 0 | AA24: =IF($I24>0,$I24,1)*IF($O24>0,$O24,1)*IF($M24>0,$M24,1)*IF($K24>0,$K24,1)*SUMIFS(OFFSET(pop_brasil!$C$2:$C$274, 0, AA$19-2017),pop_brasil!$A$2:$A$274,controle_formulario!$G$41,pop_brasil!$B$2:$B$274,">="&Populacao!$C24,pop_brasil!$B$2:$B$274,"<="&Populacao!$E24) * $G24 -> 0 | AB24: =IF($I24>0,$I24,1)*IF($O24>0,$O24,1)*IF($M24>0,$M24,1)*IF($K24>0,$K24,1)*SUMIFS(OFFSET(pop_brasil!$C$2:$C$274, 0, AB$19-2017),pop_brasil!$A$2:$A$274,controle_formulario!$G$41,pop_brasil!$B$2:$B$274,">="&Populacao!$C24,pop_brasil!$B$2:$B$274,"<="&Populacao!$E24) * $G24 -> 0 | AE24: =IF(controle_formulario!$C$39=2,"Ocultar","") ->  | AG24: =IF(controle_formulario!$C$39=2,"Ocultar","") -> 
C25: 40 | D25: - | E25: 49 | S25: =IF($I25>0,$I25,1)*IF($O25>0,$O25,1)*IF($M25>0,$M25,1)*IF($K25>0,$K25,1)*SUMIFS(OFFSET(pop_brasil!$C$2:$C$274, 0, S$19-2017),pop_brasil!$A$2:$A$274,controle_formulario!$G$41,pop_brasil!$B$2:$B$274,">="&Populacao!$C25,pop_brasil!$B$2:$B$274,"<="&Populacao!$E25) * $G25 -> 0 | T25: =IF($I25>0,$I25,1)*IF($O25>0,$O25,1)*IF($M25>0,$M25,1)*IF($K25>0,$K25,1)*SUMIFS(OFFSET(pop_brasil!$C$2:$C$274, 0, T$19-2017),pop_brasil!$A$2:$A$274,controle_formulario!$G$41,pop_brasil!$B$2:$B$274,">="&Populacao!$C25,pop_brasil!$B$2:$B$274,"<="&Populacao!$E25) * $G25 -> 0 | U25: =IF($I25>0,$I25,1)*IF($O25>0,$O25,1)*IF($M25>0,$M25,1)*IF($K25>0,$K25,1)*SUMIFS(OFFSET(pop_brasil!$C$2:$C$274, 0, U$19-2017),pop_brasil!$A$2:$A$274,controle_formulario!$G$41,pop_brasil!$B$2:$B$274,">="&Populacao!$C25,pop_brasil!$B$2:$B$274,"<="&Populacao!$E25) * $G25 -> 0 | V25: =IF($I25>0,$I25,1)*IF($O25>0,$O25,1)*IF($M25>0,$M25,1)*IF($K25>0,$K25,1)*SUMIFS(OFFSET(pop_brasil!$C$2:$C$274, 0, V$19-2017),pop_brasil!$A$2:$A$274,controle_formulario!$G$41,pop_brasil!$B$2:$B$274,">="&Populacao!$C25,pop_brasil!$B$2:$B$274,"<="&Populacao!$E25) * $G25 -> 0 | W25: =IF($I25>0,$I25,1)*IF($O25>0,$O25,1)*IF($M25>0,$M25,1)*IF($K25>0,$K25,1)*SUMIFS(OFFSET(pop_brasil!$C$2:$C$274, 0, W$19-2017),pop_brasil!$A$2:$A$274,controle_formulario!$G$41,pop_brasil!$B$2:$B$274,">="&Populacao!$C25,pop_brasil!$B$2:$B$274,"<="&Populacao!$E25) * $G25 -> 0 | X25: =IF($I25>0,$I25,1)*IF($O25>0,$O25,1)*IF($M25>0,$M25,1)*IF($K25>0,$K25,1)*SUMIFS(OFFSET(pop_brasil!$C$2:$C$274, 0, X$19-2017),pop_brasil!$A$2:$A$274,controle_formulario!$G$41,pop_brasil!$B$2:$B$274,">="&Populacao!$C25,pop_brasil!$B$2:$B$274,"<="&Populacao!$E25) * $G25 -> 0 | Y25: =IF($I25>0,$I25,1)*IF($O25>0,$O25,1)*IF($M25>0,$M25,1)*IF($K25>0,$K25,1)*SUMIFS(OFFSET(pop_brasil!$C$2:$C$274, 0, Y$19-2017),pop_brasil!$A$2:$A$274,controle_formulario!$G$41,pop_brasil!$B$2:$B$274,">="&Populacao!$C25,pop_brasil!$B$2:$B$274,"<="&Populacao!$E25) * $G25 -> 0 | Z25: =IF($I25>0,$I25,1)*IF($O25>0,$O25,1)*IF($M25>0,$M25,1)*IF($K25>0,$K25,1)*SUMIFS(OFFSET(pop_brasil!$C$2:$C$274, 0, Z$19-2017),pop_brasil!$A$2:$A$274,controle_formulario!$G$41,pop_brasil!$B$2:$B$274,">="&Populacao!$C25,pop_brasil!$B$2:$B$274,"<="&Populacao!$E25) * $G25 -> 0 | AA25: =IF($I25>0,$I25,1)*IF($O25>0,$O25,1)*IF($M25>0,$M25,1)*IF($K25>0,$K25,1)*SUMIFS(OFFSET(pop_brasil!$C$2:$C$274, 0, AA$19-2017),pop_brasil!$A$2:$A$274,controle_formulario!$G$41,pop_brasil!$B$2:$B$274,">="&Populacao!$C25,pop_brasil!$B$2:$B$274,"<="&Populacao!$E25) * $G25 -> 0 | AB25: =IF($I25>0,$I25,1)*IF($O25>0,$O25,1)*IF($M25>0,$M25,1)*IF($K25>0,$K25,1)*SUMIFS(OFFSET(pop_brasil!$C$2:$C$274, 0, AB$19-2017),pop_brasil!$A$2:$A$274,controle_formulario!$G$41,pop_brasil!$B$2:$B$274,">="&Populacao!$C25,pop_brasil!$B$2:$B$274,"<="&Populacao!$E25) * $G25 -> 0 | AE25: =IF(controle_formulario!$C$39=2,"Ocultar","") ->  | AG25: =IF(controle_formulario!$C$39=2,"Ocultar","") -> 
C26: 50 | D26: - | E26: 59 | S26: =IF($I26>0,$I26,1)*IF($O26>0,$O26,1)*IF($M26>0,$M26,1)*IF($K26>0,$K26,1)*SUMIFS(OFFSET(pop_brasil!$C$2:$C$274, 0, S$19-2017),pop_brasil!$A$2:$A$274,controle_formulario!$G$41,pop_brasil!$B$2:$B$274,">="&Populacao!$C26,pop_brasil!$B$2:$B$274,"<="&Populacao!$E26) * $G26 -> 0 | T26: =IF($I26>0,$I26,1)*IF($O26>0,$O26,1)*IF($M26>0,$M26,1)*IF($K26>0,$K26,1)*SUMIFS(OFFSET(pop_brasil!$C$2:$C$274, 0, T$19-2017),pop_brasil!$A$2:$A$274,controle_formulario!$G$41,pop_brasil!$B$2:$B$274,">="&Populacao!$C26,pop_brasil!$B$2:$B$274,"<="&Populacao!$E26) * $G26 -> 0 | U26: =IF($I26>0,$I26,1)*IF($O26>0,$O26,1)*IF($M26>0,$M26,1)*IF($K26>0,$K26,1)*SUMIFS(OFFSET(pop_brasil!$C$2:$C$274, 0, U$19-2017),pop_brasil!$A$2:$A$274,controle_formulario!$G$41,pop_brasil!$B$2:$B$274,">="&Populacao!$C26,pop_brasil!$B$2:$B$274,"<="&Populacao!$E26) * $G26 -> 0 | V26: =IF($I26>0,$I26,1)*IF($O26>0,$O26,1)*IF($M26>0,$M26,1)*IF($K26>0,$K26,1)*SUMIFS(OFFSET(pop_brasil!$C$2:$C$274, 0, V$19-2017),pop_brasil!$A$2:$A$274,controle_formulario!$G$41,pop_brasil!$B$2:$B$274,">="&Populacao!$C26,pop_brasil!$B$2:$B$274,"<="&Populacao!$E26) * $G26 -> 0 | W26: =IF($I26>0,$I26,1)*IF($O26>0,$O26,1)*IF($M26>0,$M26,1)*IF($K26>0,$K26,1)*SUMIFS(OFFSET(pop_brasil!$C$2:$C$274, 0, W$19-2017),pop_brasil!$A$2:$A$274,controle_formulario!$G$41,pop_brasil!$B$2:$B$274,">="&Populacao!$C26,pop_brasil!$B$2:$B$274,"<="&Populacao!$E26) * $G26 -> 0 | X26: =IF($I26>0,$I26,1)*IF($O26>0,$O26,1)*IF($M26>0,$M26,1)*IF($K26>0,$K26,1)*SUMIFS(OFFSET(pop_brasil!$C$2:$C$274, 0, X$19-2017),pop_brasil!$A$2:$A$274,controle_formulario!$G$41,pop_brasil!$B$2:$B$274,">="&Populacao!$C26,pop_brasil!$B$2:$B$274,"<="&Populacao!$E26) * $G26 -> 0 | Y26: =IF($I26>0,$I26,1)*IF($O26>0,$O26,1)*IF($M26>0,$M26,1)*IF($K26>0,$K26,1)*SUMIFS(OFFSET(pop_brasil!$C$2:$C$274, 0, Y$19-2017),pop_brasil!$A$2:$A$274,controle_formulario!$G$41,pop_brasil!$B$2:$B$274,">="&Populacao!$C26,pop_brasil!$B$2:$B$274,"<="&Populacao!$E26) * $G26 -> 0 | Z26: =IF($I26>0,$I26,1)*IF($O26>0,$O26,1)*IF($M26>0,$M26,1)*IF($K26>0,$K26,1)*SUMIFS(OFFSET(pop_brasil!$C$2:$C$274, 0, Z$19-2017),pop_brasil!$A$2:$A$274,controle_formulario!$G$41,pop_brasil!$B$2:$B$274,">="&Populacao!$C26,pop_brasil!$B$2:$B$274,"<="&Populacao!$E26) * $G26 -> 0 | AA26: =IF($I26>0,$I26,1)*IF($O26>0,$O26,1)*IF($M26>0,$M26,1)*IF($K26>0,$K26,1)*SUMIFS(OFFSET(pop_brasil!$C$2:$C$274, 0, AA$19-2017),pop_brasil!$A$2:$A$274,controle_formulario!$G$41,pop_brasil!$B$2:$B$274,">="&Populacao!$C26,pop_brasil!$B$2:$B$274,"<="&Populacao!$E26) * $G26 -> 0 | AB26: =IF($I26>0,$I26,1)*IF($O26>0,$O26,1)*IF($M26>0,$M26,1)*IF($K26>0,$K26,1)*SUMIFS(OFFSET(pop_brasil!$C$2:$C$274, 0, AB$19-2017),pop_brasil!$A$2:$A$274,controle_formulario!$G$41,pop_brasil!$B$2:$B$274,">="&Populacao!$C26,pop_brasil!$B$2:$B$274,"<="&Populacao!$E26) * $G26 -> 0 | AE26: =IF(controle_formulario!$C$39=2,"Ocultar","") ->  | AG26: =IF(controle_formulario!$C$39=2,"Ocultar","") -> 
C27: 60 | D27: - | E27: 69 | S27: =IF($I27>0,$I27,1)*IF($O27>0,$O27,1)*IF($M27>0,$M27,1)*IF($K27>0,$K27,1)*SUMIFS(OFFSET(pop_brasil!$C$2:$C$274, 0, S$19-2017),pop_brasil!$A$2:$A$274,controle_formulario!$G$41,pop_brasil!$B$2:$B$274,">="&Populacao!$C27,pop_brasil!$B$2:$B$274,"<="&Populacao!$E27) * $G27 -> 0 | T27: =IF($I27>0,$I27,1)*IF($O27>0,$O27,1)*IF($M27>0,$M27,1)*IF($K27>0,$K27,1)*SUMIFS(OFFSET(pop_brasil!$C$2:$C$274, 0, T$19-2017),pop_brasil!$A$2:$A$274,controle_formulario!$G$41,pop_brasil!$B$2:$B$274,">="&Populacao!$C27,pop_brasil!$B$2:$B$274,"<="&Populacao!$E27) * $G27 -> 0 | U27: =IF($I27>0,$I27,1)*IF($O27>0,$O27,1)*IF($M27>0,$M27,1)*IF($K27>0,$K27,1)*SUMIFS(OFFSET(pop_brasil!$C$2:$C$274, 0, U$19-2017),pop_brasil!$A$2:$A$274,controle_formulario!$G$41,pop_brasil!$B$2:$B$274,">="&Populacao!$C27,pop_brasil!$B$2:$B$274,"<="&Populacao!$E27) * $G27 -> 0 | V27: =IF($I27>0,$I27,1)*IF($O27>0,$O27,1)*IF($M27>0,$M27,1)*IF($K27>0,$K27,1)*SUMIFS(OFFSET(pop_brasil!$C$2:$C$274, 0, V$19-2017),pop_brasil!$A$2:$A$274,controle_formulario!$G$41,pop_brasil!$B$2:$B$274,">="&Populacao!$C27,pop_brasil!$B$2:$B$274,"<="&Populacao!$E27) * $G27 -> 0 | W27: =IF($I27>0,$I27,1)*IF($O27>0,$O27,1)*IF($M27>0,$M27,1)*IF($K27>0,$K27,1)*SUMIFS(OFFSET(pop_brasil!$C$2:$C$274, 0, W$19-2017),pop_brasil!$A$2:$A$274,controle_formulario!$G$41,pop_brasil!$B$2:$B$274,">="&Populacao!$C27,pop_brasil!$B$2:$B$274,"<="&Populacao!$E27) * $G27 -> 0 | X27: =IF($I27>0,$I27,1)*IF($O27>0,$O27,1)*IF($M27>0,$M27,1)*IF($K27>0,$K27,1)*SUMIFS(OFFSET(pop_brasil!$C$2:$C$274, 0, X$19-2017),pop_brasil!$A$2:$A$274,controle_formulario!$G$41,pop_brasil!$B$2:$B$274,">="&Populacao!$C27,pop_brasil!$B$2:$B$274,"<="&Populacao!$E27) * $G27 -> 0 | Y27: =IF($I27>0,$I27,1)*IF($O27>0,$O27,1)*IF($M27>0,$M27,1)*IF($K27>0,$K27,1)*SUMIFS(OFFSET(pop_brasil!$C$2:$C$274, 0, Y$19-2017),pop_brasil!$A$2:$A$274,controle_formulario!$G$41,pop_brasil!$B$2:$B$274,">="&Populacao!$C27,pop_brasil!$B$2:$B$274,"<="&Populacao!$E27) * $G27 -> 0 | Z27: =IF($I27>0,$I27,1)*IF($O27>0,$O27,1)*IF($M27>0,$M27,1)*IF($K27>0,$K27,1)*SUMIFS(OFFSET(pop_brasil!$C$2:$C$274, 0, Z$19-2017),pop_brasil!$A$2:$A$274,controle_formulario!$G$41,pop_brasil!$B$2:$B$274,">="&Populacao!$C27,pop_brasil!$B$2:$B$274,"<="&Populacao!$E27) * $G27 -> 0 | AA27: =IF($I27>0,$I27,1)*IF($O27>0,$O27,1)*IF($M27>0,$M27,1)*IF($K27>0,$K27,1)*SUMIFS(OFFSET(pop_brasil!$C$2:$C$274, 0, AA$19-2017),pop_brasil!$A$2:$A$274,controle_formulario!$G$41,pop_brasil!$B$2:$B$274,">="&Populacao!$C27,pop_brasil!$B$2:$B$274,"<="&Populacao!$E27) * $G27 -> 0 | AB27: =IF($I27>0,$I27,1)*IF($O27>0,$O27,1)*IF($M27>0,$M27,1)*IF($K27>0,$K27,1)*SUMIFS(OFFSET(pop_brasil!$C$2:$C$274, 0, AB$19-2017),pop_brasil!$A$2:$A$274,controle_formulario!$G$41,pop_brasil!$B$2:$B$274,">="&Populacao!$C27,pop_brasil!$B$2:$B$274,"<="&Populacao!$E27) * $G27 -> 0 | AE27: =IF(controle_formulario!$C$39=2,"Ocultar","") ->  | AG27: =IF(controle_formulario!$C$39=2,"Ocultar","") -> 
C28: 70 | D28: - | E28: 79 | S28: =IF($I28>0,$I28,1)*IF($O28>0,$O28,1)*IF($M28>0,$M28,1)*IF($K28>0,$K28,1)*SUMIFS(OFFSET(pop_brasil!$C$2:$C$274, 0, S$19-2017),pop_brasil!$A$2:$A$274,controle_formulario!$G$41,pop_brasil!$B$2:$B$274,">="&Populacao!$C28,pop_brasil!$B$2:$B$274,"<="&Populacao!$E28) * $G28 -> 0 | T28: =IF($I28>0,$I28,1)*IF($O28>0,$O28,1)*IF($M28>0,$M28,1)*IF($K28>0,$K28,1)*SUMIFS(OFFSET(pop_brasil!$C$2:$C$274, 0, T$19-2017),pop_brasil!$A$2:$A$274,controle_formulario!$G$41,pop_brasil!$B$2:$B$274,">="&Populacao!$C28,pop_brasil!$B$2:$B$274,"<="&Populacao!$E28) * $G28 -> 0 | U28: =IF($I28>0,$I28,1)*IF($O28>0,$O28,1)*IF($M28>0,$M28,1)*IF($K28>0,$K28,1)*SUMIFS(OFFSET(pop_brasil!$C$2:$C$274, 0, U$19-2017),pop_brasil!$A$2:$A$274,controle_formulario!$G$41,pop_brasil!$B$2:$B$274,">="&Populacao!$C28,pop_brasil!$B$2:$B$274,"<="&Populacao!$E28) * $G28 -> 0 | V28: =IF($I28>0,$I28,1)*IF($O28>0,$O28,1)*IF($M28>0,$M28,1)*IF($K28>0,$K28,1)*SUMIFS(OFFSET(pop_brasil!$C$2:$C$274, 0, V$19-2017),pop_brasil!$A$2:$A$274,controle_formulario!$G$41,pop_brasil!$B$2:$B$274,">="&Populacao!$C28,pop_brasil!$B$2:$B$274,"<="&Populacao!$E28) * $G28 -> 0 | W28: =IF($I28>0,$I28,1)*IF($O28>0,$O28,1)*IF($M28>0,$M28,1)*IF($K28>0,$K28,1)*SUMIFS(OFFSET(pop_brasil!$C$2:$C$274, 0, W$19-2017),pop_brasil!$A$2:$A$274,controle_formulario!$G$41,pop_brasil!$B$2:$B$274,">="&Populacao!$C28,pop_brasil!$B$2:$B$274,"<="&Populacao!$E28) * $G28 -> 0 | X28: =IF($I28>0,$I28,1)*IF($O28>0,$O28,1)*IF($M28>0,$M28,1)*IF($K28>0,$K28,1)*SUMIFS(OFFSET(pop_brasil!$C$2:$C$274, 0, X$19-2017),pop_brasil!$A$2:$A$274,controle_formulario!$G$41,pop_brasil!$B$2:$B$274,">="&Populacao!$C28,pop_brasil!$B$2:$B$274,"<="&Populacao!$E28) * $G28 -> 0 | Y28: =IF($I28>0,$I28,1)*IF($O28>0,$O28,1)*IF($M28>0,$M28,1)*IF($K28>0,$K28,1)*SUMIFS(OFFSET(pop_brasil!$C$2:$C$274, 0, Y$19-2017),pop_brasil!$A$2:$A$274,controle_formulario!$G$41,pop_brasil!$B$2:$B$274,">="&Populacao!$C28,pop_brasil!$B$2:$B$274,"<="&Populacao!$E28) * $G28 -> 0 | Z28: =IF($I28>0,$I28,1)*IF($O28>0,$O28,1)*IF($M28>0,$M28,1)*IF($K28>0,$K28,1)*SUMIFS(OFFSET(pop_brasil!$C$2:$C$274, 0, Z$19-2017),pop_brasil!$A$2:$A$274,controle_formulario!$G$41,pop_brasil!$B$2:$B$274,">="&Populacao!$C28,pop_brasil!$B$2:$B$274,"<="&Populacao!$E28) * $G28 -> 0 | AA28: =IF($I28>0,$I28,1)*IF($O28>0,$O28,1)*IF($M28>0,$M28,1)*IF($K28>0,$K28,1)*SUMIFS(OFFSET(pop_brasil!$C$2:$C$274, 0, AA$19-2017),pop_brasil!$A$2:$A$274,controle_formulario!$G$41,pop_brasil!$B$2:$B$274,">="&Populacao!$C28,pop_brasil!$B$2:$B$274,"<="&Populacao!$E28) * $G28 -> 0 | AB28: =IF($I28>0,$I28,1)*IF($O28>0,$O28,1)*IF($M28>0,$M28,1)*IF($K28>0,$K28,1)*SUMIFS(OFFSET(pop_brasil!$C$2:$C$274, 0, AB$19-2017),pop_brasil!$A$2:$A$274,controle_formulario!$G$41,pop_brasil!$B$2:$B$274,">="&Populacao!$C28,pop_brasil!$B$2:$B$274,"<="&Populacao!$E28) * $G28 -> 0 | AE28: =IF(controle_formulario!$C$39=2,"Ocultar","") ->  | AG28: =IF(controle_formulario!$C$39=2,"Ocultar","") -> 
C29: 80 | D29: - | E29: 89 | S29: =IF($I29>0,$I29,1)*IF($O29>0,$O29,1)*IF($M29>0,$M29,1)*IF($K29>0,$K29,1)*SUMIFS(OFFSET(pop_brasil!$C$2:$C$274, 0, S$19-2017),pop_brasil!$A$2:$A$274,controle_formulario!$G$41,pop_brasil!$B$2:$B$274,">="&Populacao!$C29,pop_brasil!$B$2:$B$274,"<="&Populacao!$E29) * $G29 -> 0 | T29: =IF($I29>0,$I29,1)*IF($O29>0,$O29,1)*IF($M29>0,$M29,1)*IF($K29>0,$K29,1)*SUMIFS(OFFSET(pop_brasil!$C$2:$C$274, 0, T$19-2017),pop_brasil!$A$2:$A$274,controle_formulario!$G$41,pop_brasil!$B$2:$B$274,">="&Populacao!$C29,pop_brasil!$B$2:$B$274,"<="&Populacao!$E29) * $G29 -> 0 | U29: =IF($I29>0,$I29,1)*IF($O29>0,$O29,1)*IF($M29>0,$M29,1)*IF($K29>0,$K29,1)*SUMIFS(OFFSET(pop_brasil!$C$2:$C$274, 0, U$19-2017),pop_brasil!$A$2:$A$274,controle_formulario!$G$41,pop_brasil!$B$2:$B$274,">="&Populacao!$C29,pop_brasil!$B$2:$B$274,"<="&Populacao!$E29) * $G29 -> 0 | V29: =IF($I29>0,$I29,1)*IF($O29>0,$O29,1)*IF($M29>0,$M29,1)*IF($K29>0,$K29,1)*SUMIFS(OFFSET(pop_brasil!$C$2:$C$274, 0, V$19-2017),pop_brasil!$A$2:$A$274,controle_formulario!$G$41,pop_brasil!$B$2:$B$274,">="&Populacao!$C29,pop_brasil!$B$2:$B$274,"<="&Populacao!$E29) * $G29 -> 0 | W29: =IF($I29>0,$I29,1)*IF($O29>0,$O29,1)*IF($M29>0,$M29,1)*IF($K29>0,$K29,1)*SUMIFS(OFFSET(pop_brasil!$C$2:$C$274, 0, W$19-2017),pop_brasil!$A$2:$A$274,controle_formulario!$G$41,pop_brasil!$B$2:$B$274,">="&Populacao!$C29,pop_brasil!$B$2:$B$274,"<="&Populacao!$E29) * $G29 -> 0 | X29: =IF($I29>0,$I29,1)*IF($O29>0,$O29,1)*IF($M29>0,$M29,1)*IF($K29>0,$K29,1)*SUMIFS(OFFSET(pop_brasil!$C$2:$C$274, 0, X$19-2017),pop_brasil!$A$2:$A$274,controle_formulario!$G$41,pop_brasil!$B$2:$B$274,">="&Populacao!$C29,pop_brasil!$B$2:$B$274,"<="&Populacao!$E29) * $G29 -> 0 | Y29: =IF($I29>0,$I29,1)*IF($O29>0,$O29,1)*IF($M29>0,$M29,1)*IF($K29>0,$K29,1)*SUMIFS(OFFSET(pop_brasil!$C$2:$C$274, 0, Y$19-2017),pop_brasil!$A$2:$A$274,controle_formulario!$G$41,pop_brasil!$B$2:$B$274,">="&Populacao!$C29,pop_brasil!$B$2:$B$274,"<="&Populacao!$E29) * $G29 -> 0 | Z29: =IF($I29>0,$I29,1)*IF($O29>0,$O29,1)*IF($M29>0,$M29,1)*IF($K29>0,$K29,1)*SUMIFS(OFFSET(pop_brasil!$C$2:$C$274, 0, Z$19-2017),pop_brasil!$A$2:$A$274,controle_formulario!$G$41,pop_brasil!$B$2:$B$274,">="&Populacao!$C29,pop_brasil!$B$2:$B$274,"<="&Populacao!$E29) * $G29 -> 0 | AA29: =IF($I29>0,$I29,1)*IF($O29>0,$O29,1)*IF($M29>0,$M29,1)*IF($K29>0,$K29,1)*SUMIFS(OFFSET(pop_brasil!$C$2:$C$274, 0, AA$19-2017),pop_brasil!$A$2:$A$274,controle_formulario!$G$41,pop_brasil!$B$2:$B$274,">="&Populacao!$C29,pop_brasil!$B$2:$B$274,"<="&Populacao!$E29) * $G29 -> 0 | AB29: =IF($I29>0,$I29,1)*IF($O29>0,$O29,1)*IF($M29>0,$M29,1)*IF($K29>0,$K29,1)*SUMIFS(OFFSET(pop_brasil!$C$2:$C$274, 0, AB$19-2017),pop_brasil!$A$2:$A$274,controle_formulario!$G$41,pop_brasil!$B$2:$B$274,">="&Populacao!$C29,pop_brasil!$B$2:$B$274,"<="&Populacao!$E29) * $G29 -> 0 | AE29: =IF(controle_formulario!$C$39=2,"Ocultar","") ->  | AG29: =IF(controle_formulario!$C$39=2,"Ocultar","") -> 
C30: 90 | D30: - | E30: 100 | S30: =IF($I30>0,$I30,1)*IF($O30>0,$O30,1)*IF($M30>0,$M30,1)*IF($K30>0,$K30,1)*SUMIFS(OFFSET(pop_brasil!$C$2:$C$274, 0, S$19-2017),pop_brasil!$A$2:$A$274,controle_formulario!$G$41,pop_brasil!$B$2:$B$274,">="&Populacao!$C30,pop_brasil!$B$2:$B$274,"<="&Populacao!$E30) * $G30 -> 0 | T30: =IF($I30>0,$I30,1)*IF($O30>0,$O30,1)*IF($M30>0,$M30,1)*IF($K30>0,$K30,1)*SUMIFS(OFFSET(pop_brasil!$C$2:$C$274, 0, T$19-2017),pop_brasil!$A$2:$A$274,controle_formulario!$G$41,pop_brasil!$B$2:$B$274,">="&Populacao!$C30,pop_brasil!$B$2:$B$274,"<="&Populacao!$E30) * $G30 -> 0 | U30: =IF($I30>0,$I30,1)*IF($O30>0,$O30,1)*IF($M30>0,$M30,1)*IF($K30>0,$K30,1)*SUMIFS(OFFSET(pop_brasil!$C$2:$C$274, 0, U$19-2017),pop_brasil!$A$2:$A$274,controle_formulario!$G$41,pop_brasil!$B$2:$B$274,">="&Populacao!$C30,pop_brasil!$B$2:$B$274,"<="&Populacao!$E30) * $G30 -> 0 | V30: =IF($I30>0,$I30,1)*IF($O30>0,$O30,1)*IF($M30>0,$M30,1)*IF($K30>0,$K30,1)*SUMIFS(OFFSET(pop_brasil!$C$2:$C$274, 0, V$19-2017),pop_brasil!$A$2:$A$274,controle_formulario!$G$41,pop_brasil!$B$2:$B$274,">="&Populacao!$C30,pop_brasil!$B$2:$B$274,"<="&Populacao!$E30) * $G30 -> 0 | W30: =IF($I30>0,$I30,1)*IF($O30>0,$O30,1)*IF($M30>0,$M30,1)*IF($K30>0,$K30,1)*SUMIFS(OFFSET(pop_brasil!$C$2:$C$274, 0, W$19-2017),pop_brasil!$A$2:$A$274,controle_formulario!$G$41,pop_brasil!$B$2:$B$274,">="&Populacao!$C30,pop_brasil!$B$2:$B$274,"<="&Populacao!$E30) * $G30 -> 0 | X30: =IF($I30>0,$I30,1)*IF($O30>0,$O30,1)*IF($M30>0,$M30,1)*IF($K30>0,$K30,1)*SUMIFS(OFFSET(pop_brasil!$C$2:$C$274, 0, X$19-2017),pop_brasil!$A$2:$A$274,controle_formulario!$G$41,pop_brasil!$B$2:$B$274,">="&Populacao!$C30,pop_brasil!$B$2:$B$274,"<="&Populacao!$E30) * $G30 -> 0 | Y30: =IF($I30>0,$I30,1)*IF($O30>0,$O30,1)*IF($M30>0,$M30,1)*IF($K30>0,$K30,1)*SUMIFS(OFFSET(pop_brasil!$C$2:$C$274, 0, Y$19-2017),pop_brasil!$A$2:$A$274,controle_formulario!$G$41,pop_brasil!$B$2:$B$274,">="&Populacao!$C30,pop_brasil!$B$2:$B$274,"<="&Populacao!$E30) * $G30 -> 0 | Z30: =IF($I30>0,$I30,1)*IF($O30>0,$O30,1)*IF($M30>0,$M30,1)*IF($K30>0,$K30,1)*SUMIFS(OFFSET(pop_brasil!$C$2:$C$274, 0, Z$19-2017),pop_brasil!$A$2:$A$274,controle_formulario!$G$41,pop_brasil!$B$2:$B$274,">="&Populacao!$C30,pop_brasil!$B$2:$B$274,"<="&Populacao!$E30) * $G30 -> 0 | AA30: =IF($I30>0,$I30,1)*IF($O30>0,$O30,1)*IF($M30>0,$M30,1)*IF($K30>0,$K30,1)*SUMIFS(OFFSET(pop_brasil!$C$2:$C$274, 0, AA$19-2017),pop_brasil!$A$2:$A$274,controle_formulario!$G$41,pop_brasil!$B$2:$B$274,">="&Populacao!$C30,pop_brasil!$B$2:$B$274,"<="&Populacao!$E30) * $G30 -> 0 | AB30: =IF($I30>0,$I30,1)*IF($O30>0,$O30,1)*IF($M30>0,$M30,1)*IF($K30>0,$K30,1)*SUMIFS(OFFSET(pop_brasil!$C$2:$C$274, 0, AB$19-2017),pop_brasil!$A$2:$A$274,controle_formulario!$G$41,pop_brasil!$B$2:$B$274,">="&Populacao!$C30,pop_brasil!$B$2:$B$274,"<="&Populacao!$E30) * $G30 -> 0 | AE30: =IF(controle_formulario!$C$39=2,"Ocultar","") ->  | AG30: =IF(controle_formulario!$C$39=2,"Ocultar","") -> 
AE31: =IF(controle_formulario!$C$39=2,"Ocultar","") ->  | AG31: =IF(controle_formulario!$C$39=2,"Ocultar","") -> 
S32: =SUM(S21:S30) -> 0 | T32: 0 | U32: 0 | V32: 0 | W32: 0 | X32: 0 | Y32: 0 | Z32: 0 | AA32: 0 | AB32: 0 | AE32: =IF(controle_formulario!$C$39=2,"Ocultar","") ->  | AG32: =IF(controle_formulario!$C$39=2,"Ocultar","") -> 
AE33: =IF(controle_formulario!$C$39=2,"Ocultar","") ->  | AG33: =IF(controle_formulario!$C$39=2,"Ocultar","") -> 
AE34: =IF(OR(controle_formulario!$C$39=2,controle_formulario!$G$40=3),"Ocultar","") -> Ocultar | AG34: =IF(OR(controle_formulario!$C$39=2,controle_formulario!$G$40=3),"Ocultar","") -> Ocultar
C35: Sexo: | D35: =IF(controle_formulario!$G$40=1,controle_formulario!$G$38,IF(controle_formulario!$G$40=2,controle_formulario!$G$37, "Omitido")) -> Omitido | AE35: =IF(OR(controle_formulario!$C$39=2,controle_formulario!$G$40=3),"Ocultar","") -> Ocultar | AG35: =IF(OR(controle_formulario!$C$39=2,controle_formulario!$G$40=3),"Ocultar","") -> Ocultar
G36: Parâmetros Epidemiológicos | S36: 1 ano | T36: 2 anos | U36: 3 anos | V36: 4 anos | W36: 5 anos | X36: 6 anos | Y36: 7 anos | Z36: 8 anos | AA36: 9 anos | AB36: 10 anos | AE36: =IF(OR(controle_formulario!$C$39=2,controle_formulario!$G$40=3),"Ocultar","") -> Ocultar | AG36: =IF(OR(controle_formulario!$C$39=2,controle_formulario!$G$40=3),"Ocultar","") -> Ocultar
C37: Faixa Etária | G37: Proporção | I37: Fração | K37: Fração | M37: Fração | O37: Fração | S37: =Criterios!$C$31 -> 2020 | T37: =S37+1 -> 2021 | U37: =T37+1 -> 2022 | V37: =U37+1 -> 2023 | W37: =V37+1 -> 2024 | X37: =W37+1 -> 2025 | Y37: =X37+1 -> 2026 | Z37: =Y37+1 -> 2027 | AA37: =Z37+1 -> 2028 | AB37: =AA37+1 -> 2029 | AE37: =IF(OR(controle_formulario!$C$39=2,controle_formulario!$G$40=3),"Ocultar","") -> Ocultar | AG37: =IF(OR(controle_formulario!$C$39=2,controle_formulario!$G$40=3),"Ocultar","") -> Ocultar
AE38: =IF(OR(controle_formulario!$C$39=2,controle_formulario!$G$40=3),"Ocultar","") -> Ocultar | AG38: =IF(OR(controle_formulario!$C$39=2,controle_formulario!$G$40=3),"Ocultar","") -> Ocultar
C39: 0 | D39: - | E39: 9 | S39: =IF($I39>0,$I39,1)*IF($O39>0,$O39,1)*IF($M39>0,$M39,1)*IF($K39>0,$K39,1)*IF(controle_formulario!$G$40 <> 3, SUMIFS(OFFSET(pop_brasil!$C$2:$C$274, 0, S$37-2017),pop_brasil!$A$2:$A$274,controle_formulario!$H$40,pop_brasil!$B$2:$B$274,">="&Populacao!$C39,pop_brasil!$B$2:$B$274,"<="&Populacao!$E39) * $G39, 0) -> 0 | T39: =IF($I39>0,$I39,1)*IF($O39>0,$O39,1)*IF($M39>0,$M39,1)*IF($K39>0,$K39,1)*IF(controle_formulario!$G$40<>3,SUMIFS(OFFSET(pop_brasil!$C$2:$C$274,0,T$19-2017),pop_brasil!$A$2:$A$274,controle_formulario!$H$40,pop_brasil!$B$2:$B$274,">="&Populacao!$C39,pop_brasil!$B$2:$B$274,"<="&Populacao!$E39) * $G39,0) -> 0 | U39: =IF($I39>0,$I39,1)*IF($O39>0,$O39,1)*IF($M39>0,$M39,1)*IF($K39>0,$K39,1)*IF(controle_formulario!$G$40<>3,SUMIFS(OFFSET(pop_brasil!$C$2:$C$274,0,U$19-2017),pop_brasil!$A$2:$A$274,controle_formulario!$H$40,pop_brasil!$B$2:$B$274,">="&Populacao!$C39,pop_brasil!$B$2:$B$274,"<="&Populacao!$E39) * $G39,0) -> 0 | V39: =IF($I39>0,$I39,1)*IF($O39>0,$O39,1)*IF($M39>0,$M39,1)*IF($K39>0,$K39,1)*IF(controle_formulario!$G$40<>3,SUMIFS(OFFSET(pop_brasil!$C$2:$C$274,0,V$19-2017),pop_brasil!$A$2:$A$274,controle_formulario!$H$40,pop_brasil!$B$2:$B$274,">="&Populacao!$C39,pop_brasil!$B$2:$B$274,"<="&Populacao!$E39) * $G39,0) -> 0 | W39: =IF($I39>0,$I39,1)*IF($O39>0,$O39,1)*IF($M39>0,$M39,1)*IF($K39>0,$K39,1)*IF(controle_formulario!$G$40<>3,SUMIFS(OFFSET(pop_brasil!$C$2:$C$274,0,W$19-2017),pop_brasil!$A$2:$A$274,controle_formulario!$H$40,pop_brasil!$B$2:$B$274,">="&Populacao!$C39,pop_brasil!$B$2:$B$274,"<="&Populacao!$E39) * $G39,0) -> 0 | X39: =IF($I39>0,$I39,1)*IF($O39>0,$O39,1)*IF($M39>0,$M39,1)*IF($K39>0,$K39,1)*IF(controle_formulario!$G$40<>3,SUMIFS(OFFSET(pop_brasil!$C$2:$C$274,0,X$19-2017),pop_brasil!$A$2:$A$274,controle_formulario!$H$40,pop_brasil!$B$2:$B$274,">="&Populacao!$C39,pop_brasil!$B$2:$B$274,"<="&Populacao!$E39) * $G39,0) -> 0 | Y39: =IF($I39>0,$I39,1)*IF($O39>0,$O39,1)*IF($M39>0,$M39,1)*IF($K39>0,$K39,1)*IF(controle_formulario!$G$40<>3,SUMIFS(OFFSET(pop_brasil!$C$2:$C$274,0,Y$19-2017),pop_brasil!$A$2:$A$274,controle_formulario!$H$40,pop_brasil!$B$2:$B$274,">="&Populacao!$C39,pop_brasil!$B$2:$B$274,"<="&Populacao!$E39) * $G39,0) -> 0 | Z39: =IF($I39>0,$I39,1)*IF($O39>0,$O39,1)*IF($M39>0,$M39,1)*IF($K39>0,$K39,1)*IF(controle_formulario!$G$40<>3,SUMIFS(OFFSET(pop_brasil!$C$2:$C$274,0,Z$19-2017),pop_brasil!$A$2:$A$274,controle_formulario!$H$40,pop_brasil!$B$2:$B$274,">="&Populacao!$C39,pop_brasil!$B$2:$B$274,"<="&Populacao!$E39) * $G39,0) -> 0 | AA39: =IF($I39>0,$I39,1)*IF($O39>0,$O39,1)*IF($M39>0,$M39,1)*IF($K39>0,$K39,1)*IF(controle_formulario!$G$40<>3,SUMIFS(OFFSET(pop_brasil!$C$2:$C$274,0,AA$19-2017),pop_brasil!$A$2:$A$274,controle_formulario!$H$40,pop_brasil!$B$2:$B$274,">="&Populacao!$C39,pop_brasil!$B$2:$B$274,"<="&Populacao!$E39) * $G39,0) -> 0 | AB39: =IF($I39>0,$I39,1)*IF($O39>0,$O39,1)*IF($M39>0,$M39,1)*IF($K39>0,$K39,1)*IF(controle_formulario!$G$40<>3,SUMIFS(OFFSET(pop_brasil!$C$2:$C$274,0,AB$19-2017),pop_brasil!$A$2:$A$274,controle_formulario!$H$40,pop_brasil!$B$2:$B$274,">="&Populacao!$C39,pop_brasil!$B$2:$B$274,"<="&Populacao!$E39) * $G39,0) -> 0 | AE39: =IF(OR(controle_formulario!$C$39=2,controle_formulario!$G$40=3),"Ocultar","") -> Ocultar | AG39: =IF(OR(controle_formulario!$C$39=2,controle_formulario!$G$40=3),"Ocultar","") -> Ocultar
C40: 10 | D40: - | E40: 19 | S40: =IF(controle_formulario!$G$40 <> 3, SUMIFS(OFFSET(pop_brasil!$C$2:$C$274, 0, S$37-2017),pop_brasil!$A$2:$A$274,controle_formulario!$H$40,pop_brasil!$B$2:$B$274,">="&Populacao!$C40,pop_brasil!$B$2:$B$274,"<="&Populacao!$E40) * $G40, 0) -> 0 | T40: =IF(controle_formulario!$G$40<>3,SUMIFS(OFFSET(pop_brasil!$C$2:$C$274,0,T$19-2017),pop_brasil!$A$2:$A$274,controle_formulario!$H$40,pop_brasil!$B$2:$B$274,">="&Populacao!$C40,pop_brasil!$B$2:$B$274,"<="&Populacao!$E40) * $I40,0) -> 0 | U40: =IF(controle_formulario!$G$40<>3,SUMIFS(OFFSET(pop_brasil!$C$2:$C$274,0,U$19-2017),pop_brasil!$A$2:$A$274,controle_formulario!$H$40,pop_brasil!$B$2:$B$274,">="&Populacao!$C40,pop_brasil!$B$2:$B$274,"<="&Populacao!$E40) * $I40,0) -> 0 | V40: =IF(controle_formulario!$G$40<>3,SUMIFS(OFFSET(pop_brasil!$C$2:$C$274,0,V$19-2017),pop_brasil!$A$2:$A$274,controle_formulario!$H$40,pop_brasil!$B$2:$B$274,">="&Populacao!$C40,pop_brasil!$B$2:$B$274,"<="&Populacao!$E40) * $I40,0) -> 0 | W40: =IF(controle_formulario!$G$40<>3,SUMIFS(OFFSET(pop_brasil!$C$2:$C$274,0,W$19-2017),pop_brasil!$A$2:$A$274,controle_formulario!$H$40,pop_brasil!$B$2:$B$274,">="&Populacao!$C40,pop_brasil!$B$2:$B$274,"<="&Populacao!$E40) * $I40,0) -> 0 | X40: =IF(controle_formulario!$G$40<>3,SUMIFS(OFFSET(pop_brasil!$C$2:$C$274,0,X$19-2017),pop_brasil!$A$2:$A$274,controle_formulario!$H$40,pop_brasil!$B$2:$B$274,">="&Populacao!$C40,pop_brasil!$B$2:$B$274,"<="&Populacao!$E40) * $I40,0) -> 0 | Y40: =IF(controle_formulario!$G$40<>3,SUMIFS(OFFSET(pop_brasil!$C$2:$C$274,0,Y$19-2017),pop_brasil!$A$2:$A$274,controle_formulario!$H$40,pop_brasil!$B$2:$B$274,">="&Populacao!$C40,pop_brasil!$B$2:$B$274,"<="&Populacao!$E40) * $I40,0) -> 0 | Z40: =IF(controle_formulario!$G$40<>3,SUMIFS(OFFSET(pop_brasil!$C$2:$C$274,0,Z$19-2017),pop_brasil!$A$2:$A$274,controle_formulario!$H$40,pop_brasil!$B$2:$B$274,">="&Populacao!$C40,pop_brasil!$B$2:$B$274,"<="&Populacao!$E40) * $I40,0) -> 0 | AA40: =IF(controle_formulario!$G$40<>3,SUMIFS(OFFSET(pop_brasil!$C$2:$C$274,0,AA$19-2017),pop_brasil!$A$2:$A$274,controle_formulario!$H$40,pop_brasil!$B$2:$B$274,">="&Populacao!$C40,pop_brasil!$B$2:$B$274,"<="&Populacao!$E40) * $I40,0) -> 0 | AB40: =IF(controle_formulario!$G$40<>3,SUMIFS(OFFSET(pop_brasil!$C$2:$C$274,0,AB$19-2017),pop_brasil!$A$2:$A$274,controle_formulario!$H$40,pop_brasil!$B$2:$B$274,">="&Populacao!$C40,pop_brasil!$B$2:$B$274,"<="&Populacao!$E40) * $I40,0) -> 0 | AE40: =IF(OR(controle_formulario!$C$39=2,controle_formulario!$G$40=3),"Ocultar","") -> Ocultar | AG40: =IF(OR(controle_formulario!$C$39=2,controle_formulario!$G$40=3),"Ocultar","") -> Ocultar
C41: 20 | D41: - | E41: 29 | S41: =IF(controle_formulario!$G$40 <> 3, SUMIFS(OFFSET(pop_brasil!$C$2:$C$274, 0, S$37-2017),pop_brasil!$A$2:$A$274,controle_formulario!$H$40,pop_brasil!$B$2:$B$274,">="&Populacao!$C41,pop_brasil!$B$2:$B$274,"<="&Populacao!$E41) * $G41, 0) -> 0 | T41: =IF(controle_formulario!$G$40<>3,SUMIFS(OFFSET(pop_brasil!$C$2:$C$274,0,T$19-2017),pop_brasil!$A$2:$A$274,controle_formulario!$H$40,pop_brasil!$B$2:$B$274,">="&Populacao!$C41,pop_brasil!$B$2:$B$274,"<="&Populacao!$E41) * $I41,0) -> 0 | U41: =IF(controle_formulario!$G$40<>3,SUMIFS(OFFSET(pop_brasil!$C$2:$C$274,0,U$19-2017),pop_brasil!$A$2:$A$274,controle_formulario!$H$40,pop_brasil!$B$2:$B$274,">="&Populacao!$C41,pop_brasil!$B$2:$B$274,"<="&Populacao!$E41) * $I41,0) -> 0 | V41: =IF(controle_formulario!$G$40<>3,SUMIFS(OFFSET(pop_brasil!$C$2:$C$274,0,V$19-2017),pop_brasil!$A$2:$A$274,controle_formulario!$H$40,pop_brasil!$B$2:$B$274,">="&Populacao!$C41,pop_brasil!$B$2:$B$274,"<="&Populacao!$E41) * $I41,0) -> 0 | W41: =IF(controle_formulario!$G$40<>3,SUMIFS(OFFSET(pop_brasil!$C$2:$C$274,0,W$19-2017),pop_brasil!$A$2:$A$274,controle_formulario!$H$40,pop_brasil!$B$2:$B$274,">="&Populacao!$C41,pop_brasil!$B$2:$B$274,"<="&Populacao!$E41) * $I41,0) -> 0 | X41: =IF(controle_formulario!$G$40<>3,SUMIFS(OFFSET(pop_brasil!$C$2:$C$274,0,X$19-2017),pop_brasil!$A$2:$A$274,controle_formulario!$H$40,pop_brasil!$B$2:$B$274,">="&Populacao!$C41,pop_brasil!$B$2:$B$274,"<="&Populacao!$E41) * $I41,0) -> 0 | Y41: =IF(controle_formulario!$G$40<>3,SUMIFS(OFFSET(pop_brasil!$C$2:$C$274,0,Y$19-2017),pop_brasil!$A$2:$A$274,controle_formulario!$H$40,pop_brasil!$B$2:$B$274,">="&Populacao!$C41,pop_brasil!$B$2:$B$274,"<="&Populacao!$E41) * $I41,0) -> 0 | Z41: =IF(controle_formulario!$G$40<>3,SUMIFS(OFFSET(pop_brasil!$C$2:$C$274,0,Z$19-2017),pop_brasil!$A$2:$A$274,controle_formulario!$H$40,pop_brasil!$B$2:$B$274,">="&Populacao!$C41,pop_brasil!$B$2:$B$274,"<="&Populacao!$E41) * $I41,0) -> 0 | AA41: =IF(controle_formulario!$G$40<>3,SUMIFS(OFFSET(pop_brasil!$C$2:$C$274,0,AA$19-2017),pop_brasil!$A$2:$A$274,controle_formulario!$H$40,pop_brasil!$B$2:$B$274,">="&Populacao!$C41,pop_brasil!$B$2:$B$274,"<="&Populacao!$E41) * $I41,0) -> 0 | AB41: =IF(controle_formulario!$G$40<>3,SUMIFS(OFFSET(pop_brasil!$C$2:$C$274,0,AB$19-2017),pop_brasil!$A$2:$A$274,controle_formulario!$H$40,pop_brasil!$B$2:$B$274,">="&Populacao!$C41,pop_brasil!$B$2:$B$274,"<="&Populacao!$E41) * $I41,0) -> 0 | AE41: =IF(OR(controle_formulario!$C$39=2,controle_formulario!$G$40=3),"Ocultar","") -> Ocultar | AG41: =IF(OR(controle_formulario!$C$39=2,controle_formulario!$G$40=3),"Ocultar","") -> Ocultar
C42: 30 | D42: - | E42: 39 | S42: =IF(controle_formulario!$G$40 <> 3, SUMIFS(OFFSET(pop_brasil!$C$2:$C$274, 0, S$37-2017),pop_brasil!$A$2:$A$274,controle_formulario!$H$40,pop_brasil!$B$2:$B$274,">="&Populacao!$C42,pop_brasil!$B$2:$B$274,"<="&Populacao!$E42) * $G42, 0) -> 0 | T42: =IF(controle_formulario!$G$40<>3,SUMIFS(OFFSET(pop_brasil!$C$2:$C$274,0,T$19-2017),pop_brasil!$A$2:$A$274,controle_formulario!$H$40,pop_brasil!$B$2:$B$274,">="&Populacao!$C42,pop_brasil!$B$2:$B$274,"<="&Populacao!$E42) * $I42,0) -> 0 | U42: =IF(controle_formulario!$G$40<>3,SUMIFS(OFFSET(pop_brasil!$C$2:$C$274,0,U$19-2017),pop_brasil!$A$2:$A$274,controle_formulario!$H$40,pop_brasil!$B$2:$B$274,">="&Populacao!$C42,pop_brasil!$B$2:$B$274,"<="&Populacao!$E42) * $I42,0) -> 0 | V42: =IF(controle_formulario!$G$40<>3,SUMIFS(OFFSET(pop_brasil!$C$2:$C$274,0,V$19-2017),pop_brasil!$A$2:$A$274,controle_formulario!$H$40,pop_brasil!$B$2:$B$274,">="&Populacao!$C42,pop_brasil!$B$2:$B$274,"<="&Populacao!$E42) * $I42,0) -> 0 | W42: =IF(controle_formulario!$G$40<>3,SUMIFS(OFFSET(pop_brasil!$C$2:$C$274,0,W$19-2017),pop_brasil!$A$2:$A$274,controle_formulario!$H$40,pop_brasil!$B$2:$B$274,">="&Populacao!$C42,pop_brasil!$B$2:$B$274,"<="&Populacao!$E42) * $I42,0) -> 0 | X42: =IF(controle_formulario!$G$40<>3,SUMIFS(OFFSET(pop_brasil!$C$2:$C$274,0,X$19-2017),pop_brasil!$A$2:$A$274,controle_formulario!$H$40,pop_brasil!$B$2:$B$274,">="&Populacao!$C42,pop_brasil!$B$2:$B$274,"<="&Populacao!$E42) * $I42,0) -> 0 | Y42: =IF(controle_formulario!$G$40<>3,SUMIFS(OFFSET(pop_brasil!$C$2:$C$274,0,Y$19-2017),pop_brasil!$A$2:$A$274,controle_formulario!$H$40,pop_brasil!$B$2:$B$274,">="&Populacao!$C42,pop_brasil!$B$2:$B$274,"<="&Populacao!$E42) * $I42,0) -> 0 | Z42: =IF(controle_formulario!$G$40<>3,SUMIFS(OFFSET(pop_brasil!$C$2:$C$274,0,Z$19-2017),pop_brasil!$A$2:$A$274,controle_formulario!$H$40,pop_brasil!$B$2:$B$274,">="&Populacao!$C42,pop_brasil!$B$2:$B$274,"<="&Populacao!$E42) * $I42,0) -> 0 | AA42: =IF(controle_formulario!$G$40<>3,SUMIFS(OFFSET(pop_brasil!$C$2:$C$274,0,AA$19-2017),pop_brasil!$A$2:$A$274,controle_formulario!$H$40,pop_brasil!$B$2:$B$274,">="&Populacao!$C42,pop_brasil!$B$2:$B$274,"<="&Populacao!$E42) * $I42,0) -> 0 | AB42: =IF(controle_formulario!$G$40<>3,SUMIFS(OFFSET(pop_brasil!$C$2:$C$274,0,AB$19-2017),pop_brasil!$A$2:$A$274,controle_formulario!$H$40,pop_brasil!$B$2:$B$274,">="&Populacao!$C42,pop_brasil!$B$2:$B$274,"<="&Populacao!$E42) * $I42,0) -> 0 | AE42: =IF(OR(controle_formulario!$C$39=2,controle_formulario!$G$40=3),"Ocultar","") -> Ocultar | AG42: =IF(OR(controle_formulario!$C$39=2,controle_formulario!$G$40=3),"Ocultar","") -> Ocultar
C43: 40 | D43: - | E43: 49 | S43: =IF(controle_formulario!$G$40 <> 3, SUMIFS(OFFSET(pop_brasil!$C$2:$C$274, 0, S$37-2017),pop_brasil!$A$2:$A$274,controle_formulario!$H$40,pop_brasil!$B$2:$B$274,">="&Populacao!$C43,pop_brasil!$B$2:$B$274,"<="&Populacao!$E43) * $G43, 0) -> 0 | T43: =IF(controle_formulario!$G$40<>3,SUMIFS(OFFSET(pop_brasil!$C$2:$C$274,0,T$19-2017),pop_brasil!$A$2:$A$274,controle_formulario!$H$40,pop_brasil!$B$2:$B$274,">="&Populacao!$C43,pop_brasil!$B$2:$B$274,"<="&Populacao!$E43) * $I43,0) -> 0 | U43: =IF(controle_formulario!$G$40<>3,SUMIFS(OFFSET(pop_brasil!$C$2:$C$274,0,U$19-2017),pop_brasil!$A$2:$A$274,controle_formulario!$H$40,pop_brasil!$B$2:$B$274,">="&Populacao!$C43,pop_brasil!$B$2:$B$274,"<="&Populacao!$E43) * $I43,0) -> 0 | V43: =IF(controle_formulario!$G$40<>3,SUMIFS(OFFSET(pop_brasil!$C$2:$C$274,0,V$19-2017),pop_brasil!$A$2:$A$274,controle_formulario!$H$40,pop_brasil!$B$2:$B$274,">="&Populacao!$C43,pop_brasil!$B$2:$B$274,"<="&Populacao!$E43) * $I43,0) -> 0 | W43: =IF(controle_formulario!$G$40<>3,SUMIFS(OFFSET(pop_brasil!$C$2:$C$274,0,W$19-2017),pop_brasil!$A$2:$A$274,controle_formulario!$H$40,pop_brasil!$B$2:$B$274,">="&Populacao!$C43,pop_brasil!$B$2:$B$274,"<="&Populacao!$E43) * $I43,0) -> 0 | X43: =IF(controle_formulario!$G$40<>3,SUMIFS(OFFSET(pop_brasil!$C$2:$C$274,0,X$19-2017),pop_brasil!$A$2:$A$274,controle_formulario!$H$40,pop_brasil!$B$2:$B$274,">="&Populacao!$C43,pop_brasil!$B$2:$B$274,"<="&Populacao!$E43) * $I43,0) -> 0 | Y43: =IF(controle_formulario!$G$40<>3,SUMIFS(OFFSET(pop_brasil!$C$2:$C$274,0,Y$19-2017),pop_brasil!$A$2:$A$274,controle_formulario!$H$40,pop_brasil!$B$2:$B$274,">="&Populacao!$C43,pop_brasil!$B$2:$B$274,"<="&Populacao!$E43) * $I43,0) -> 0 | Z43: =IF(controle_formulario!$G$40<>3,SUMIFS(OFFSET(pop_brasil!$C$2:$C$274,0,Z$19-2017),pop_brasil!$A$2:$A$274,controle_formulario!$H$40,pop_brasil!$B$2:$B$274,">="&Populacao!$C43,pop_brasil!$B$2:$B$274,"<="&Populacao!$E43) * $I43,0) -> 0 | AA43: =IF(controle_formulario!$G$40<>3,SUMIFS(OFFSET(pop_brasil!$C$2:$C$274,0,AA$19-2017),pop_brasil!$A$2:$A$274,controle_formulario!$H$40,pop_brasil!$B$2:$B$274,">="&Populacao!$C43,pop_brasil!$B$2:$B$274,"<="&Populacao!$E43) * $I43,0) -> 0 | AB43: =IF(controle_formulario!$G$40<>3,SUMIFS(OFFSET(pop_brasil!$C$2:$C$274,0,AB$19-2017),pop_brasil!$A$2:$A$274,controle_formulario!$H$40,pop_brasil!$B$2:$B$274,">="&Populacao!$C43,pop_brasil!$B$2:$B$274,"<="&Populacao!$E43) * $I43,0) -> 0 | AE43: =IF(OR(controle_formulario!$C$39=2,controle_formulario!$G$40=3),"Ocultar","") -> Ocultar | AG43: =IF(OR(controle_formulario!$C$39=2,controle_formulario!$G$40=3),"Ocultar","") -> Ocultar
C44: 50 | D44: - | E44: 59 | S44: =IF(controle_formulario!$G$40 <> 3, SUMIFS(OFFSET(pop_brasil!$C$2:$C$274, 0, S$37-2017),pop_brasil!$A$2:$A$274,controle_formulario!$H$40,pop_brasil!$B$2:$B$274,">="&Populacao!$C44,pop_brasil!$B$2:$B$274,"<="&Populacao!$E44) * $G44, 0) -> 0 | T44: =IF(controle_formulario!$G$40<>3,SUMIFS(OFFSET(pop_brasil!$C$2:$C$274,0,T$19-2017),pop_brasil!$A$2:$A$274,controle_formulario!$H$40,pop_brasil!$B$2:$B$274,">="&Populacao!$C44,pop_brasil!$B$2:$B$274,"<="&Populacao!$E44) * $I44,0) -> 0 | U44: =IF(controle_formulario!$G$40<>3,SUMIFS(OFFSET(pop_brasil!$C$2:$C$274,0,U$19-2017),pop_brasil!$A$2:$A$274,controle_formulario!$H$40,pop_brasil!$B$2:$B$274,">="&Populacao!$C44,pop_brasil!$B$2:$B$274,"<="&Populacao!$E44) * $I44,0) -> 0 | V44: =IF(controle_formulario!$G$40<>3,SUMIFS(OFFSET(pop_brasil!$C$2:$C$274,0,V$19-2017),pop_brasil!$A$2:$A$274,controle_formulario!$H$40,pop_brasil!$B$2:$B$274,">="&Populacao!$C44,pop_brasil!$B$2:$B$274,"<="&Populacao!$E44) * $I44,0) -> 0 | W44: =IF(controle_formulario!$G$40<>3,SUMIFS(OFFSET(pop_brasil!$C$2:$C$274,0,W$19-2017),pop_brasil!$A$2:$A$274,controle_formulario!$H$40,pop_brasil!$B$2:$B$274,">="&Populacao!$C44,pop_brasil!$B$2:$B$274,"<="&Populacao!$E44) * $I44,0) -> 0 | X44: =IF(controle_formulario!$G$40<>3,SUMIFS(OFFSET(pop_brasil!$C$2:$C$274,0,X$19-2017),pop_brasil!$A$2:$A$274,controle_formulario!$H$40,pop_brasil!$B$2:$B$274,">="&Populacao!$C44,pop_brasil!$B$2:$B$274,"<="&Populacao!$E44) * $I44,0) -> 0 | Y44: =IF(controle_formulario!$G$40<>3,SUMIFS(OFFSET(pop_brasil!$C$2:$C$274,0,Y$19-2017),pop_brasil!$A$2:$A$274,controle_formulario!$H$40,pop_brasil!$B$2:$B$274,">="&Populacao!$C44,pop_brasil!$B$2:$B$274,"<="&Populacao!$E44) * $I44,0) -> 0 | Z44: =IF(controle_formulario!$G$40<>3,SUMIFS(OFFSET(pop_brasil!$C$2:$C$274,0,Z$19-2017),pop_brasil!$A$2:$A$274,controle_formulario!$H$40,pop_brasil!$B$2:$B$274,">="&Populacao!$C44,pop_brasil!$B$2:$B$274,"<="&Populacao!$E44) * $I44,0) -> 0 | AA44: =IF(controle_formulario!$G$40<>3,SUMIFS(OFFSET(pop_brasil!$C$2:$C$274,0,AA$19-2017),pop_brasil!$A$2:$A$274,controle_formulario!$H$40,pop_brasil!$B$2:$B$274,">="&Populacao!$C44,pop_brasil!$B$2:$B$274,"<="&Populacao!$E44) * $I44,0) -> 0 | AB44: =IF(controle_formulario!$G$40<>3,SUMIFS(OFFSET(pop_brasil!$C$2:$C$274,0,AB$19-2017),pop_brasil!$A$2:$A$274,controle_formulario!$H$40,pop_brasil!$B$2:$B$274,">="&Populacao!$C44,pop_brasil!$B$2:$B$274,"<="&Populacao!$E44) * $I44,0) -> 0 | AE44: =IF(OR(controle_formulario!$C$39=2,controle_formulario!$G$40=3),"Ocultar","") -> Ocultar | AG44: =IF(OR(controle_formulario!$C$39=2,controle_formulario!$G$40=3),"Ocultar","") -> Ocultar
C45: 60 | D45: - | E45: 69 | S45: =IF(controle_formulario!$G$40 <> 3, SUMIFS(OFFSET(pop_brasil!$C$2:$C$274, 0, S$37-2017),pop_brasil!$A$2:$A$274,controle_formulario!$H$40,pop_brasil!$B$2:$B$274,">="&Populacao!$C45,pop_brasil!$B$2:$B$274,"<="&Populacao!$E45) * $G45, 0) -> 0 | T45: =IF(controle_formulario!$G$40<>3,SUMIFS(OFFSET(pop_brasil!$C$2:$C$274,0,T$19-2017),pop_brasil!$A$2:$A$274,controle_formulario!$H$40,pop_brasil!$B$2:$B$274,">="&Populacao!$C45,pop_brasil!$B$2:$B$274,"<="&Populacao!$E45) * $I45,0) -> 0 | U45: =IF(controle_formulario!$G$40<>3,SUMIFS(OFFSET(pop_brasil!$C$2:$C$274,0,U$19-2017),pop_brasil!$A$2:$A$274,controle_formulario!$H$40,pop_brasil!$B$2:$B$274,">="&Populacao!$C45,pop_brasil!$B$2:$B$274,"<="&Populacao!$E45) * $I45,0) -> 0 | V45: =IF(controle_formulario!$G$40<>3,SUMIFS(OFFSET(pop_brasil!$C$2:$C$274,0,V$19-2017),pop_brasil!$A$2:$A$274,controle_formulario!$H$40,pop_brasil!$B$2:$B$274,">="&Populacao!$C45,pop_brasil!$B$2:$B$274,"<="&Populacao!$E45) * $I45,0) -> 0 | W45: =IF(controle_formulario!$G$40<>3,SUMIFS(OFFSET(pop_brasil!$C$2:$C$274,0,W$19-2017),pop_brasil!$A$2:$A$274,controle_formulario!$H$40,pop_brasil!$B$2:$B$274,">="&Populacao!$C45,pop_brasil!$B$2:$B$274,"<="&Populacao!$E45) * $I45,0) -> 0 | X45: =IF(controle_formulario!$G$40<>3,SUMIFS(OFFSET(pop_brasil!$C$2:$C$274,0,X$19-2017),pop_brasil!$A$2:$A$274,controle_formulario!$H$40,pop_brasil!$B$2:$B$274,">="&Populacao!$C45,pop_brasil!$B$2:$B$274,"<="&Populacao!$E45) * $I45,0) -> 0 | Y45: =IF(controle_formulario!$G$40<>3,SUMIFS(OFFSET(pop_brasil!$C$2:$C$274,0,Y$19-2017),pop_brasil!$A$2:$A$274,controle_formulario!$H$40,pop_brasil!$B$2:$B$274,">="&Populacao!$C45,pop_brasil!$B$2:$B$274,"<="&Populacao!$E45) * $I45,0) -> 0 | Z45: =IF(controle_formulario!$G$40<>3,SUMIFS(OFFSET(pop_brasil!$C$2:$C$274,0,Z$19-2017),pop_brasil!$A$2:$A$274,controle_formulario!$H$40,pop_brasil!$B$2:$B$274,">="&Populacao!$C45,pop_brasil!$B$2:$B$274,"<="&Populacao!$E45) * $I45,0) -> 0 | AA45: =IF(controle_formulario!$G$40<>3,SUMIFS(OFFSET(pop_brasil!$C$2:$C$274,0,AA$19-2017),pop_brasil!$A$2:$A$274,controle_formulario!$H$40,pop_brasil!$B$2:$B$274,">="&Populacao!$C45,pop_brasil!$B$2:$B$274,"<="&Populacao!$E45) * $I45,0) -> 0 | AB45: =IF(controle_formulario!$G$40<>3,SUMIFS(OFFSET(pop_brasil!$C$2:$C$274,0,AB$19-2017),pop_brasil!$A$2:$A$274,controle_formulario!$H$40,pop_brasil!$B$2:$B$274,">="&Populacao!$C45,pop_brasil!$B$2:$B$274,"<="&Populacao!$E45) * $I45,0) -> 0 | AE45: =IF(OR(controle_formulario!$C$39=2,controle_formulario!$G$40=3),"Ocultar","") -> Ocultar | AG45: =IF(OR(controle_formulario!$C$39=2,controle_formulario!$G$40=3),"Ocultar","") -> Ocultar
C46: 70 | D46: - | E46: 79 | S46: =IF(controle_formulario!$G$40 <> 3, SUMIFS(OFFSET(pop_brasil!$C$2:$C$274, 0, S$37-2017),pop_brasil!$A$2:$A$274,controle_formulario!$H$40,pop_brasil!$B$2:$B$274,">="&Populacao!$C46,pop_brasil!$B$2:$B$274,"<="&Populacao!$E46) * $G46, 0) -> 0 | T46: =IF(controle_formulario!$G$40<>3,SUMIFS(OFFSET(pop_brasil!$C$2:$C$274,0,T$19-2017),pop_brasil!$A$2:$A$274,controle_formulario!$H$40,pop_brasil!$B$2:$B$274,">="&Populacao!$C46,pop_brasil!$B$2:$B$274,"<="&Populacao!$E46) * $I46,0) -> 0 | U46: =IF(controle_formulario!$G$40<>3,SUMIFS(OFFSET(pop_brasil!$C$2:$C$274,0,U$19-2017),pop_brasil!$A$2:$A$274,controle_formulario!$H$40,pop_brasil!$B$2:$B$274,">="&Populacao!$C46,pop_brasil!$B$2:$B$274,"<="&Populacao!$E46) * $I46,0) -> 0 | V46: =IF(controle_formulario!$G$40<>3,SUMIFS(OFFSET(pop_brasil!$C$2:$C$274,0,V$19-2017),pop_brasil!$A$2:$A$274,controle_formulario!$H$40,pop_brasil!$B$2:$B$274,">="&Populacao!$C46,pop_brasil!$B$2:$B$274,"<="&Populacao!$E46) * $I46,0) -> 0 | W46: =IF(controle_formulario!$G$40<>3,SUMIFS(OFFSET(pop_brasil!$C$2:$C$274,0,W$19-2017),pop_brasil!$A$2:$A$274,controle_formulario!$H$40,pop_brasil!$B$2:$B$274,">="&Populacao!$C46,pop_brasil!$B$2:$B$274,"<="&Populacao!$E46) * $I46,0) -> 0 | X46: =IF(controle_formulario!$G$40<>3,SUMIFS(OFFSET(pop_brasil!$C$2:$C$274,0,X$19-2017),pop_brasil!$A$2:$A$274,controle_formulario!$H$40,pop_brasil!$B$2:$B$274,">="&Populacao!$C46,pop_brasil!$B$2:$B$274,"<="&Populacao!$E46) * $I46,0) -> 0 | Y46: =IF(controle_formulario!$G$40<>3,SUMIFS(OFFSET(pop_brasil!$C$2:$C$274,0,Y$19-2017),pop_brasil!$A$2:$A$274,controle_formulario!$H$40,pop_brasil!$B$2:$B$274,">="&Populacao!$C46,pop_brasil!$B$2:$B$274,"<="&Populacao!$E46) * $I46,0) -> 0 | Z46: =IF(controle_formulario!$G$40<>3,SUMIFS(OFFSET(pop_brasil!$C$2:$C$274,0,Z$19-2017),pop_brasil!$A$2:$A$274,controle_formulario!$H$40,pop_brasil!$B$2:$B$274,">="&Populacao!$C46,pop_brasil!$B$2:$B$274,"<="&Populacao!$E46) * $I46,0) -> 0 | AA46: =IF(controle_formulario!$G$40<>3,SUMIFS(OFFSET(pop_brasil!$C$2:$C$274,0,AA$19-2017),pop_brasil!$A$2:$A$274,controle_formulario!$H$40,pop_brasil!$B$2:$B$274,">="&Populacao!$C46,pop_brasil!$B$2:$B$274,"<="&Populacao!$E46) * $I46,0) -> 0 | AB46: =IF(controle_formulario!$G$40<>3,SUMIFS(OFFSET(pop_brasil!$C$2:$C$274,0,AB$19-2017),pop_brasil!$A$2:$A$274,controle_formulario!$H$40,pop_brasil!$B$2:$B$274,">="&Populacao!$C46,pop_brasil!$B$2:$B$274,"<="&Populacao!$E46) * $I46,0) -> 0 | AE46: =IF(OR(controle_formulario!$C$39=2,controle_formulario!$G$40=3),"Ocultar","") -> Ocultar | AG46: =IF(OR(controle_formulario!$C$39=2,controle_formulario!$G$40=3),"Ocultar","") -> Ocultar
C47: 80 | D47: - | E47: 89 | S47: =IF(controle_formulario!$G$40 <> 3, SUMIFS(OFFSET(pop_brasil!$C$2:$C$274, 0, S$37-2017),pop_brasil!$A$2:$A$274,controle_formulario!$H$40,pop_brasil!$B$2:$B$274,">="&Populacao!$C47,pop_brasil!$B$2:$B$274,"<="&Populacao!$E47) * $G47, 0) -> 0 | T47: =IF(controle_formulario!$G$40<>3,SUMIFS(OFFSET(pop_brasil!$C$2:$C$274,0,T$19-2017),pop_brasil!$A$2:$A$274,controle_formulario!$H$40,pop_brasil!$B$2:$B$274,">="&Populacao!$C47,pop_brasil!$B$2:$B$274,"<="&Populacao!$E47) * $I47,0) -> 0 | U47: =IF(controle_formulario!$G$40<>3,SUMIFS(OFFSET(pop_brasil!$C$2:$C$274,0,U$19-2017),pop_brasil!$A$2:$A$274,controle_formulario!$H$40,pop_brasil!$B$2:$B$274,">="&Populacao!$C47,pop_brasil!$B$2:$B$274,"<="&Populacao!$E47) * $I47,0) -> 0 | V47: =IF(controle_formulario!$G$40<>3,SUMIFS(OFFSET(pop_brasil!$C$2:$C$274,0,V$19-2017),pop_brasil!$A$2:$A$274,controle_formulario!$H$40,pop_brasil!$B$2:$B$274,">="&Populacao!$C47,pop_brasil!$B$2:$B$274,"<="&Populacao!$E47) * $I47,0) -> 0 | W47: =IF(controle_formulario!$G$40<>3,SUMIFS(OFFSET(pop_brasil!$C$2:$C$274,0,W$19-2017),pop_brasil!$A$2:$A$274,controle_formulario!$H$40,pop_brasil!$B$2:$B$274,">="&Populacao!$C47,pop_brasil!$B$2:$B$274,"<="&Populacao!$E47) * $I47,0) -> 0 | X47: =IF(controle_formulario!$G$40<>3,SUMIFS(OFFSET(pop_brasil!$C$2:$C$274,0,X$19-2017),pop_brasil!$A$2:$A$274,controle_formulario!$H$40,pop_brasil!$B$2:$B$274,">="&Populacao!$C47,pop_brasil!$B$2:$B$274,"<="&Populacao!$E47) * $I47,0) -> 0 | Y47: =IF(controle_formulario!$G$40<>3,SUMIFS(OFFSET(pop_brasil!$C$2:$C$274,0,Y$19-2017),pop_brasil!$A$2:$A$274,controle_formulario!$H$40,pop_brasil!$B$2:$B$274,">="&Populacao!$C47,pop_brasil!$B$2:$B$274,"<="&Populacao!$E47) * $I47,0) -> 0 | Z47: =IF(controle_formulario!$G$40<>3,SUMIFS(OFFSET(pop_brasil!$C$2:$C$274,0,Z$19-2017),pop_brasil!$A$2:$A$274,controle_formulario!$H$40,pop_brasil!$B$2:$B$274,">="&Populacao!$C47,pop_brasil!$B$2:$B$274,"<="&Populacao!$E47) * $I47,0) -> 0 | AA47: =IF(controle_formulario!$G$40<>3,SUMIFS(OFFSET(pop_brasil!$C$2:$C$274,0,AA$19-2017),pop_brasil!$A$2:$A$274,controle_formulario!$H$40,pop_brasil!$B$2:$B$274,">="&Populacao!$C47,pop_brasil!$B$2:$B$274,"<="&Populacao!$E47) * $I47,0) -> 0 | AB47: =IF(controle_formulario!$G$40<>3,SUMIFS(OFFSET(pop_brasil!$C$2:$C$274,0,AB$19-2017),pop_brasil!$A$2:$A$274,controle_formulario!$H$40,pop_brasil!$B$2:$B$274,">="&Populacao!$C47,pop_brasil!$B$2:$B$274,"<="&Populacao!$E47) * $I47,0) -> 0 | AE47: =IF(OR(controle_formulario!$C$39=2,controle_formulario!$G$40=3),"Ocultar","") -> Ocultar | AG47: =IF(OR(controle_formulario!$C$39=2,controle_formulario!$G$40=3),"Ocultar","") -> Ocultar
C48: 90 | D48: - | E48: 100 | S48: =IF(controle_formulario!$G$40 <> 3, SUMIFS(OFFSET(pop_brasil!$C$2:$C$274, 0, S$37-2017),pop_brasil!$A$2:$A$274,controle_formulario!$H$40,pop_brasil!$B$2:$B$274,">="&Populacao!$C48,pop_brasil!$B$2:$B$274,"<="&Populacao!$E48) * $G48, 0) -> 0 | T48: =IF(controle_formulario!$G$40<>3,SUMIFS(OFFSET(pop_brasil!$C$2:$C$274,0,T$19-2017),pop_brasil!$A$2:$A$274,controle_formulario!$H$40,pop_brasil!$B$2:$B$274,">="&Populacao!$C48,pop_brasil!$B$2:$B$274,"<="&Populacao!$E48) * $I48,0) -> 0 | U48: =IF(controle_formulario!$G$40<>3,SUMIFS(OFFSET(pop_brasil!$C$2:$C$274,0,U$19-2017),pop_brasil!$A$2:$A$274,controle_formulario!$H$40,pop_brasil!$B$2:$B$274,">="&Populacao!$C48,pop_brasil!$B$2:$B$274,"<="&Populacao!$E48) * $I48,0) -> 0 | V48: =IF(controle_formulario!$G$40<>3,SUMIFS(OFFSET(pop_brasil!$C$2:$C$274,0,V$19-2017),pop_brasil!$A$2:$A$274,controle_formulario!$H$40,pop_brasil!$B$2:$B$274,">="&Populacao!$C48,pop_brasil!$B$2:$B$274,"<="&Populacao!$E48) * $I48,0) -> 0 | W48: =IF(controle_formulario!$G$40<>3,SUMIFS(OFFSET(pop_brasil!$C$2:$C$274,0,W$19-2017),pop_brasil!$A$2:$A$274,controle_formulario!$H$40,pop_brasil!$B$2:$B$274,">="&Populacao!$C48,pop_brasil!$B$2:$B$274,"<="&Populacao!$E48) * $I48,0) -> 0 | X48: =IF(controle_formulario!$G$40<>3,SUMIFS(OFFSET(pop_brasil!$C$2:$C$274,0,X$19-2017),pop_brasil!$A$2:$A$274,controle_formulario!$H$40,pop_brasil!$B$2:$B$274,">="&Populacao!$C48,pop_brasil!$B$2:$B$274,"<="&Populacao!$E48) * $I48,0) -> 0 | Y48: =IF(controle_formulario!$G$40<>3,SUMIFS(OFFSET(pop_brasil!$C$2:$C$274,0,Y$19-2017),pop_brasil!$A$2:$A$274,controle_formulario!$H$40,pop_brasil!$B$2:$B$274,">="&Populacao!$C48,pop_brasil!$B$2:$B$274,"<="&Populacao!$E48) * $I48,0) -> 0 | Z48: =IF(controle_formulario!$G$40<>3,SUMIFS(OFFSET(pop_brasil!$C$2:$C$274,0,Z$19-2017),pop_brasil!$A$2:$A$274,controle_formulario!$H$40,pop_brasil!$B$2:$B$274,">="&Populacao!$C48,pop_brasil!$B$2:$B$274,"<="&Populacao!$E48) * $I48,0) -> 0 | AA48: =IF(controle_formulario!$G$40<>3,SUMIFS(OFFSET(pop_brasil!$C$2:$C$274,0,AA$19-2017),pop_brasil!$A$2:$A$274,controle_formulario!$H$40,pop_brasil!$B$2:$B$274,">="&Populacao!$C48,pop_brasil!$B$2:$B$274,"<="&Populacao!$E48) * $I48,0) -> 0 | AB48: =IF(controle_formulario!$G$40<>3,SUMIFS(OFFSET(pop_brasil!$C$2:$C$274,0,AB$19-2017),pop_brasil!$A$2:$A$274,controle_formulario!$H$40,pop_brasil!$B$2:$B$274,">="&Populacao!$C48,pop_brasil!$B$2:$B$274,"<="&Populacao!$E48) * $I48,0) -> 0 | AE48: =IF(OR(controle_formulario!$C$39=2,controle_formulario!$G$40=3),"Ocultar","") -> Ocultar | AG48: =IF(OR(controle_formulario!$C$39=2,controle_formulario!$G$40=3),"Ocultar","") -> Ocultar
AE49: =IF(OR(controle_formulario!$C$39=2,controle_formulario!$G$40=3),"Ocultar","") -> Ocultar | AG49: =IF(OR(controle_formulario!$C$39=2,controle_formulario!$G$40=3),"Ocultar","") -> Ocultar
S50: =SUM(S39:S48) -> 0 | T50: 0 | U50: 0 | V50: 0 | W50: 0 | X50: 0 | Y50: 0 | Z50: 0 | AA50: 0 | AB50: 0 | AE50: =IF(OR(controle_formulario!$C$39=2,controle_formulario!$G$40=3),"Ocultar","") -> Ocultar | AG50: =IF(OR(controle_formulario!$C$39=2,controle_formulario!$G$40=3),"Ocultar","") -> Ocultar
AE51: =IF(OR(controle_formulario!$C$39=2,controle_formulario!$G$40=3),"Ocultar","") -> Ocultar | AG51: =IF(OR(controle_formulario!$C$39=2,controle_formulario!$G$40=3),"Ocultar","") -> Ocultar
C52: Fonte: | AE52: =IF(controle_formulario!$C$39=2,"Ocultar","") ->  | AG52: =IF(controle_formulario!$C$39=2,"Ocultar","") -> 
C53: População: IBGE/Diretoria de Pesquisas. Coordenação de População e Indicadores Sociais. Gerência de Estudos e Análises da Dinâmica Demográfica. | AE53: =IF(controle_formulario!$C$39=2,"Ocultar","") ->  | AG53: =IF(controle_formulario!$C$39=2,"Ocultar","") -> 
E54: Projeção da população do Brasil por sexo e idade para o período 2000-2060. | AE54: =IF(controle_formulario!$C$39=2,"Ocultar","") ->  | AG54: =IF(controle_formulario!$C$39=2,"Ocultar","") -> 
AE55: =IF(controle_formulario!$C$39=2,"Ocultar","") ->  | AG55: =IF(controle_formulario!$C$39=2,"Ocultar","") -> 
AE56: =IF(controle_formulario!$C$39=2,"Ocultar","") ->  | AG56: =IF(controle_formulario!$C$39=2,"Ocultar","") -> 
AE57: =IF(controle_formulario!$C$39=2,"Ocultar","") ->  | AG57: =IF(controle_formulario!$C$39=2,"Ocultar","") -> 
AE58: =IF(controle_formulario!$C$39=2,"Ocultar","") ->  | AG58: =IF(controle_formulario!$C$39=2,"Ocultar","") -> 
AE61: =IF(controle_formulario!$C$39=1,"Ocultar","") -> Ocultar | AG61: =IF(controle_formulario!$C$39=1,"Ocultar","") -> Ocultar
C62: População de referência | AE62: =IF(controle_formulario!$C$39=1,"Ocultar","") -> Ocultar | AG62: =IF(controle_formulario!$C$39=1,"Ocultar","") -> Ocultar
AE63: =IF(controle_formulario!$C$39=1,"Ocultar","") -> Ocultar | AG63: =IF(controle_formulario!$C$39=1,"Ocultar","") -> Ocultar
AE64: =IF(controle_formulario!$C$39=1,"Ocultar","") -> Ocultar | AG64: =IF(controle_formulario!$C$39=1,"Ocultar","") -> Ocultar
I65: Parâmetros Epidemiológicos | S65: 1 ano | T65: 2 anos | U65: 3 anos | V65: 4 anos | W65: 5 anos | X65: 6 anos | Y65: 7 anos | Z65: 8 anos | AA65: 9 anos | AB65: 10 anos | AE65: =IF(controle_formulario!$C$39=1,"Ocultar","") -> Ocultar | AG65: =IF(controle_formulario!$C$39=1,"Ocultar","") -> Ocultar
C66: População | G66: Valor | I66: Fração | K66: Fração | M66: Fração | O66: Fração | Q66: Fração | S66: =Criterios!$C$31 -> 2020 | T66: =S66+1 -> 2021 | U66: 2022 | V66: 2023 | W66: 2024 | X66: 2025 | Y66: 2026 | Z66: 2027 | AA66: 2028 | AB66: 2029 | AE66: =IF(controle_formulario!$C$39=1,"Ocultar","") -> Ocultar | AG66: =IF(controle_formulario!$C$39=1,"Ocultar","") -> Ocultar
AE67: =IF(controle_formulario!$C$39=1,"Ocultar","") -> Ocultar | AG67: =IF(controle_formulario!$C$39=1,"Ocultar","") -> Ocultar
C68: Descrição da população | S68: =IF($I68>0,$I68*$G68,$G68)*IF($K68>0,$K68,1)*IF($M68>0,$M68,1)*IF($O68>0,$O68,1)*IF($Q68>0,$Q68,1) -> 0 | T68: =IF($I68>0,$I68*$G68,$G68)*IF($K68>0,$K68,1)*IF($M68>0,$M68,1)*IF($O68>0,$O68,1)*IF($Q68>0,$Q68,1) -> 0 | U68: 0 | V68: 0 | W68: 0 | X68: 0 | Y68: 0 | Z68: 0 | AA68: 0 | AB68: 0 | AE68: =IF(controle_formulario!$C$39=1,"Ocultar","") -> Ocultar | AG68: =IF(controle_formulario!$C$39=1,"Ocultar","") -> Ocultar
C69: Descrição da população | S69: =IF($I69>0,$I69*$G69,$G69)*IF($K69>0,$K69,1)*IF($M69>0,$M69,1)*IF($O69>0,$O69,1)*IF($Q69>0,$Q69,1) -> 0 | T69: 0 | U69: 0 | V69: 0 | W69: 0 | X69: 0 | Y69: 0 | Z69: 0 | AA69: 0 | AB69: 0 | AE69: =IF(controle_formulario!$C$39=1,"Ocultar","") -> Ocultar | AG69: =IF(controle_formulario!$C$39=1,"Ocultar","") -> Ocultar
C70: Descrição da população | S70: 0 | T70: 0 | U70: 0 | V70: 0 | W70: 0 | X70: 0 | Y70: 0 | Z70: 0 | AA70: 0 | AB70: 0 | AE70: =IF(controle_formulario!$C$39=1,"Ocultar","") -> Ocultar | AG70: =IF(controle_formulario!$C$39=1,"Ocultar","") -> Ocultar
C71: Descrição da população | S71: 0 | T71: 0 | U71: 0 | V71: 0 | W71: 0 | X71: 0 | Y71: 0 | Z71: 0 | AA71: 0 | AB71: 0 | AE71: =IF(controle_formulario!$C$39=1,"Ocultar","") -> Ocultar | AG71: =IF(controle_formulario!$C$39=1,"Ocultar","") -> Ocultar
C72: Descrição da população | S72: 0 | T72: 0 | U72: 0 | V72: 0 | W72: 0 | X72: 0 | Y72: 0 | Z72: 0 | AA72: 0 | AB72: 0 | AE72: =IF(controle_formulario!$C$39=1,"Ocultar","") -> Ocultar | AG72: =IF(controle_formulario!$C$39=1,"Ocultar","") -> Ocultar
C73: Descrição da população | S73: 0 | T73: 0 | U73: 0 | V73: 0 | W73: 0 | X73: 0 | Y73: 0 | Z73: 0 | AA73: 0 | AB73: 0 | AE73: =IF(controle_formulario!$C$39=1,"Ocultar","") -> Ocultar | AG73: =IF(controle_formulario!$C$39=1,"Ocultar","") -> Ocultar
C74: Descrição da população | S74: 0 | T74: 0 | U74: 0 | V74: 0 | W74: 0 | X74: 0 | Y74: 0 | Z74: 0 | AA74: 0 | AB74: 0 | AE74: =IF(controle_formulario!$C$39=1,"Ocultar","") -> Ocultar | AG74: =IF(controle_formulario!$C$39=1,"Ocultar","") -> Ocultar
C75: Descrição da população | S75: 0 | T75: 0 | U75: 0 | V75: 0 | W75: 0 | X75: 0 | Y75: 0 | Z75: 0 | AA75: 0 | AB75: 0 | AE75: =IF(controle_formulario!$C$39=1,"Ocultar","") -> Ocultar | AG75: =IF(controle_formulario!$C$39=1,"Ocultar","") -> Ocultar
C76: Descrição da população | S76: 0 | T76: 0 | U76: 0 | V76: 0 | W76: 0 | X76: 0 | Y76: 0 | Z76: 0 | AA76: 0 | AB76: 0 | AE76: =IF(controle_formulario!$C$39=1,"Ocultar","") -> Ocultar | AG76: =IF(controle_formulario!$C$39=1,"Ocultar","") -> Ocultar
C77: Descrição da população | S77: 0 | T77: 0 | U77: 0 | V77: 0 | W77: 0 | X77: 0 | Y77: 0 | Z77: 0 | AA77: 0 | AB77: 0 | AE77: =IF(controle_formulario!$C$39=1,"Ocultar","") -> Ocultar | AG77: =IF(controle_formulario!$C$39=1,"Ocultar","") -> Ocultar
AE78: =IF(controle_formulario!$C$39=1,"Ocultar","") -> Ocultar | AG78: =IF(controle_formulario!$C$39=1,"Ocultar","") -> Ocultar
S79: =SUM(S68:S77) -> 0 | T79: =SUM(T68:T77) -> 0 | U79: =SUM(U68:U77) -> 0 | V79: =SUM(V68:V77) -> 0 | W79: =SUM(W68:W77) -> 0 | X79: =SUM(X68:X77) -> 0 | Y79: =SUM(Y68:Y77) -> 0 | Z79: =SUM(Z68:Z77) -> 0 | AA79: =SUM(AA68:AA77) -> 0 | AB79: =SUM(AB68:AB77) -> 0 | AE79: =IF(controle_formulario!$C$39=1,"Ocultar","") -> Ocultar | AG79: =IF(controle_formulario!$C$39=1,"Ocultar","") -> Ocultar
AE80: =IF(controle_formulario!$C$39=1,"Ocultar","") -> Ocultar | AG80: =IF(controle_formulario!$C$39=1,"Ocultar","") -> Ocultar
C81: Fonte: | AE81: =IF(controle_formulario!$C$39=1,"Ocultar","") -> Ocultar | AG81: =IF(controle_formulario!$C$39=1,"Ocultar","") -> Ocultar
AE82: =IF(controle_formulario!$C$39=1,"Ocultar","") -> Ocultar | AG82: =IF(controle_formulario!$C$39=1,"Ocultar","") -> Ocultar
AE83: =IF(controle_formulario!$C$39=1,"Ocultar","") -> Ocultar | AG83: =IF(controle_formulario!$C$39=1,"Ocultar","") -> Ocultar
AE84: =IF(controle_formulario!$C$39=1,"Ocultar","") -> Ocultar | AG84: =IF(controle_formulario!$C$39=1,"Ocultar","") -> Ocultar
AE85: =IF(controle_formulario!$C$39=1,"Ocultar","") -> Ocultar | AG85: =IF(controle_formulario!$C$39=1,"Ocultar","") -> Ocultar
AE86: =IF(controle_formulario!$C$39=1,"Ocultar","") -> Ocultar | AG86: =IF(controle_formulario!$C$39=1,"Ocultar","") -> Ocultar
AE87: =IF(controle_formulario!$C$39=1,"Ocultar","") -> Ocultar | AG87: =IF(controle_formulario!$C$39=1,"Ocultar","") -> Ocultar
AE88: =IF(controle_formulario!$E$39=2,"Ocultar","") ->  | AG88: =IF(controle_formulario!$E$39=2,"Ocultar","") -> 
AE89: =IF(controle_formulario!$E$39=2,"Ocultar","") ->  | AG89: =IF(controle_formulario!$E$39=2,"Ocultar","") -> 
AE90: =IF(controle_formulario!$E$39=2,"Ocultar","") ->  | AG90: =IF(controle_formulario!$E$39=2,"Ocultar","") -> 
C91: Restrições e aumentos de demanda | AE91: =IF(controle_formulario!$E$39=2,"Ocultar","") ->  | AG91: =IF(controle_formulario!$E$39=2,"Ocultar","") -> 
AE92: =IF(controle_formulario!$E$39=2,"Ocultar","") ->  | AG92: =IF(controle_formulario!$E$39=2,"Ocultar","") -> 
AE93: =IF(controle_formulario!$E$39=2,"Ocultar","") ->  | AG93: =IF(controle_formulario!$E$39=2,"Ocultar","") -> 
C94: Restrições | I94: Valor | K94: Aumento de demanda | O94: Valor | AE94: =IF(controle_formulario!$E$39=2,"Ocultar","") ->  | AG94: =IF(controle_formulario!$E$39=2,"Ocultar","") -> 
AE95: =IF(controle_formulario!$E$39=2,"Ocultar","") ->  | AG95: =IF(controle_formulario!$E$39=2,"Ocultar","") -> 
C96: Descrição da restrição 1: | K96: Descrição da demanda 1: | AE96: =IF(controle_formulario!$E$39=2,"Ocultar","") ->  | AG96: =IF(controle_formulario!$E$39=2,"Ocultar","") -> 
C97: Descrição da restrição 2: | K97: Descrição da demanda 2: | AE97: =IF(controle_formulario!$E$39=2,"Ocultar","") ->  | AG97: =IF(controle_formulario!$E$39=2,"Ocultar","") -> 
C98: Descrição da restrição 3: | K98: Descrição da demanda 3: | AE98: =IF(controle_formulario!$E$39=2,"Ocultar","") ->  | AG98: =IF(controle_formulario!$E$39=2,"Ocultar","") -> 
C99: Descrição da restrição 4: | K99: Descrição da demanda 4: | AE99: =IF(controle_formulario!$E$39=2,"Ocultar","") ->  | AG99: =IF(controle_formulario!$E$39=2,"Ocultar","") -> 
AE100: =IF(controle_formulario!$E$39=2,"Ocultar","") ->  | AG100: =IF(controle_formulario!$E$39=2,"Ocultar","") -> 
C101: Restrição Total: | I101: =SUM(I96:I99) -> 0 | K101: Aumento de demanda Total: | O101: =SUM(O96:O99) -> 0 | AE101: =IF(controle_formulario!$E$39=2,"Ocultar","") ->  | AG101: =IF(controle_formulario!$E$39=2,"Ocultar","") -> 
AE102: =IF(controle_formulario!$E$39=2,"Ocultar","") ->  | AG102: =IF(controle_formulario!$E$39=2,"Ocultar","") -> 
C103: Fonte: | AE103: =IF(controle_formulario!$E$39=2,"Ocultar","") ->  | AG103: =IF(controle_formulario!$E$39=2,"Ocultar","") -> 
AE104: =IF(controle_formulario!$E$39=2,"Ocultar","") ->  | AG104: =IF(controle_formulario!$E$39=2,"Ocultar","") -> 
AE105: =IF(controle_formulario!$E$39=2,"Ocultar","") ->  | AG105: =IF(controle_formulario!$E$39=2,"Ocultar","") -> 
AE106: =IF(controle_formulario!$E$39=2,"Ocultar","") ->  | AG106: =IF(controle_formulario!$E$39=2,"Ocultar","") -> 
AE107: =IF(controle_formulario!$E$39=2,"Ocultar","") ->  | AG107: =IF(controle_formulario!$E$39=2,"Ocultar","") -> 
AE108: =IF(controle_formulario!$E$39=2,"Ocultar","") ->  | AG108: =IF(controle_formulario!$E$39=2,"Ocultar","") -> 
AE109: =IF(controle_formulario!$E$39=2,"Ocultar","") ->  | AG109: =IF(controle_formulario!$E$39=2,"Ocultar","") -> 
AE110: =IF(controle_formulario!$E$39=2,"Ocultar","") ->  | AG110: =IF(controle_formulario!$E$39=2,"Ocultar","") -> 
C114: População Elegível Final
G116: 1 ano | H116: 1 | I116: =IF(H116 <= controle_formulario!$J$16,IF(controle_formulario!$C$39 = 1, INDEX($S$50:$AB$50, H116) + INDEX($S$32:$AB$32, H116), INDEX($S$79:$AB$79, H116)) * IF(controle_formulario!$E$39 = 1, ($O$101-$I$101+1), 1),0) -> 0
G117: 2 anos | H117: 2 | I117: =IF(H117 <= controle_formulario!$J$16,IF(controle_formulario!$C$39 = 1, INDEX($S$50:$AB$50, H117) + INDEX($S$32:$AB$32, H117), INDEX($S$79:$AB$79, H117)) * IF(controle_formulario!$E$39 = 1, ($O$101-$I$101+1), 1),0) -> 0 | AE117: =(IF(OR(AF117>controle_formulario!$J$16,$C$87>controle_formulario!$E$16),"Ocultar","")) ->  | AF117: 2 | AG117: =(IF(OR(AF117>controle_formulario!$J$16,$C$87>controle_formulario!$E$16),"Ocultar","")) -> 
G118: 3 anos | H118: 3 | I118: =IF(H118 <= controle_formulario!$J$16,IF(controle_formulario!$C$39 = 1, INDEX($S$50:$AB$50, H118) + INDEX($S$32:$AB$32, H118), INDEX($S$79:$AB$79, H118)) * IF(controle_formulario!$E$39 = 1, ($O$101-$I$101+1), 1),0) -> 0 | AE118: =(IF(OR(AF118>controle_formulario!$J$16,$C$87>controle_formulario!$E$16),"Ocultar","")) ->  | AF118: 3 | AG118: =(IF(OR(AF118>controle_formulario!$J$16,$C$87>controle_formulario!$E$16),"Ocultar","")) -> 
G119: 4 anos | H119: 4 | I119: =IF(H119 <= controle_formulario!$J$16,IF(controle_formulario!$C$39 = 1, INDEX($S$50:$AB$50, H119) + INDEX($S$32:$AB$32, H119), INDEX($S$79:$AB$79, H119)) * IF(controle_formulario!$E$39 = 1, ($O$101-$I$101+1), 1),0) -> 0 | AE119: =(IF(OR(AF119>controle_formulario!$J$16,$C$87>controle_formulario!$E$16),"Ocultar","")) ->  | AF119: 4 | AG119: =(IF(OR(AF119>controle_formulario!$J$16,$C$87>controle_formulario!$E$16),"Ocultar","")) -> 
G120: 5 anos | H120: 5 | I120: =IF(H120 <= controle_formulario!$J$16,IF(controle_formulario!$C$39 = 1, INDEX($S$50:$AB$50, H120) + INDEX($S$32:$AB$32, H120), INDEX($S$79:$AB$79, H120)) * IF(controle_formulario!$E$39 = 1, ($O$101-$I$101+1), 1),0) -> 0 | AE120: =(IF(OR(AF120>controle_formulario!$J$16,$C$87>controle_formulario!$E$16),"Ocultar","")) ->  | AF120: 5 | AG120: =(IF(OR(AF120>controle_formulario!$J$16,$C$87>controle_formulario!$E$16),"Ocultar","")) -> 
G121: 6 anos | H121: 6 | I121: =IF(H121 <= controle_formulario!$J$16,IF(controle_formulario!$C$39 = 1, INDEX($S$50:$AB$50, H121) + INDEX($S$32:$AB$32, H121), INDEX($S$79:$AB$79, H121)) * IF(controle_formulario!$E$39 = 1, ($O$101-$I$101+1), 1),0) -> 0 | AE121: =(IF(OR(AF121>controle_formulario!$J$16,$C$87>controle_formulario!$E$16),"Ocultar","")) -> Ocultar | AF121: 6 | AG121: =(IF(OR(AF121>controle_formulario!$J$16,$C$87>controle_formulario!$E$16),"Ocultar","")) -> Ocultar
G122: 7 anos | H122: 7 | I122: =IF(H122 <= controle_formulario!$J$16,IF(controle_formulario!$C$39 = 1, INDEX($S$50:$AB$50, H122) + INDEX($S$32:$AB$32, H122), INDEX($S$79:$AB$79, H122)) * IF(controle_formulario!$E$39 = 1, ($O$101-$I$101+1), 1),0) -> 0 | AE122: =(IF(OR(AF122>controle_formulario!$J$16,$C$87>controle_formulario!$E$16),"Ocultar","")) -> Ocultar | AF122: 7 | AG122: =(IF(OR(AF122>controle_formulario!$J$16,$C$87>controle_formulario!$E$16),"Ocultar","")) -> Ocultar
G123: 8 anos | H123: 8 | I123: =IF(H123 <= controle_formulario!$J$16,IF(controle_formulario!$C$39 = 1, INDEX($S$50:$AB$50, H123) + INDEX($S$32:$AB$32, H123), INDEX($S$79:$AB$79, H123)) * IF(controle_formulario!$E$39 = 1, ($O$101-$I$101+1), 1),0) -> 0 | AE123: =(IF(OR(AF123>controle_formulario!$J$16,$C$87>controle_formulario!$E$16),"Ocultar","")) -> Ocultar | AF123: 8 | AG123: =(IF(OR(AF123>controle_formulario!$J$16,$C$87>controle_formulario!$E$16),"Ocultar","")) -> Ocultar
G124: 9 anos | H124: 9 | I124: =IF(H124 <= controle_formulario!$J$16,IF(controle_formulario!$C$39 = 1, INDEX($S$50:$AB$50, H124) + INDEX($S$32:$AB$32, H124), INDEX($S$79:$AB$79, H124)) * IF(controle_formulario!$E$39 = 1, ($O$101-$I$101+1), 1),0) -> 0 | AE124: =(IF(OR(AF124>controle_formulario!$J$16,$C$87>controle_formulario!$E$16),"Ocultar","")) -> Ocultar | AF124: 9 | AG124: =(IF(OR(AF124>controle_formulario!$J$16,$C$87>controle_formulario!$E$16),"Ocultar","")) -> Ocultar
G125: 10 anos | H125: 10 | I125: =IF(H125 <= controle_formulario!$J$16,IF(controle_formulario!$C$39 = 1, INDEX($S$50:$AB$50, H125) + INDEX($S$32:$AB$32, H125), INDEX($S$79:$AB$79, H125)) * IF(controle_formulario!$E$39 = 1, ($O$101-$I$101+1), 1),0) -> 0 | AE125: =(IF(OR(AF125>controle_formulario!$J$16,$C$87>controle_formulario!$E$16),"Ocultar","")) -> Ocultar | AF125: 10 | AG125: =(IF(OR(AF125>controle_formulario!$J$16,$C$87>controle_formulario!$E$16),"Ocultar","")) -> Ocultar
G126: Total | I126: =SUM(I116:I125) -> 0
T199: 2 | U199: 3 | V199: 4 | W199: 5 | X199: 6 | Y199: 7 | Z199: 8 | AA199: 9 | AB199: 10
T200: =IF(T199>controle_formulario!$J$16,"Ocultar","") ->  | U200: =IF(U199>controle_formulario!$J$16,"Ocultar","") ->  | V200: =IF(V199>controle_formulario!$J$16,"Ocultar","") ->  | W200: =IF(W199>controle_formulario!$J$16,"Ocultar","") ->  | X200: =IF(X199>controle_formulario!$J$16,"Ocultar","") -> Ocultar | Y200: =IF(Y199>controle_formulario!$J$16,"Ocultar","") -> Ocultar | Z200: =IF(Z199>controle_formulario!$J$16,"Ocultar","") -> Ocultar | AA200: =IF(AA199>controle_formulario!$J$16,"Ocultar","") -> Ocultar | AB200: =IF(AB199>controle_formulario!$J$16,"Ocultar","") -> Ocultar | AD200: =IF(AD199>controle_formulario!$J$16,"Ocultar","") -> 

Sheet Market Share
C3: Mix de tratamento - Market Share
C5: =cen.ref -> 0 | K5: =cen.alt1 -> 0
D6: =trat.novo -> 0 | E6: =trat.a -> 0 | F6: =trat.b -> 0 | G6: =trat.c -> 0 | H6: =trat.d -> 0 | I6: Total | L6: =trat.novo -> 0 | M6: =trat.a -> 0 | N6: =trat.b -> 0 | O6: =trat.c -> 0 | P6: =trat.d -> 0 | Q6: Total
C8: Ano 1 | D8: 0 | E8: 0 | F8: 0.15 | G8: 0.31 | H8: 0.04 | I8: 0 | K8: Ano 1 | L8: 0 | M8: 0 | N8: 0.2069 | O8: 0.0975 | P8: 0.04 | Q8: =SUM(L8:P8) -> 0.3444 | AF8: 1
C9: Ano 2 | D9: 0 | E9: 0 | F9: 0.15 | G9: 0.31 | H9: 0.04 | I9: 0 | K9: Ano 2 | L9: 0 | M9: 0 | N9: 0.18 | O9: 0.08 | P9: 0.03 | Q9: 0.29 | AF9: 2 | AG9: =(IF(AF9>controle_formulario!$J$16,"Ocultar","")) -> 
C10: Ano 3 | D10: 0 | E10: 0 | F10: 0.15 | G10: 0.31 | H10: 0.04 | I10: 0 | K10: Ano 3 | L10: 0 | M10: 0 | N10: 0.16 | O10: 0.06 | P10: 0.02 | Q10: 0.24 | AF10: 3 | AG10: =(IF(AF10>controle_formulario!$J$16,"Ocultar","")) -> 
C11: Ano 4 | D11: 0 | E11: 0 | F11: 0.15 | G11: 0.31 | H11: 0.04 | I11: 0 | K11: Ano 4 | L11: 0 | M11: 0 | N11: 0.12 | O11: 0.04 | P11: 0.02 | Q11: 0.18 | AF11: 4 | AG11: =(IF(AF11>controle_formulario!$J$16,"Ocultar","")) -> 
C12: Ano 5 | D12: 0 | E12: 0 | F12: 0.15 | G12: 0.31 | H12: 0.04 | I12: 0 | K12: Ano 5 | L12: 0 | M12: 0 | N12: 0.1 | O12: 0.03 | P12: 0.02 | Q12: 0.15 | AF12: 5 | AG12: =(IF(AF12>controle_formulario!$J$16,"Ocultar","")) -> 
C13: Ano 6 | I13: =SUM(D13:H13) -> 0 | K13: Ano 6 | Q13: 0 | AF13: 6 | AG13: =(IF(AF13>controle_formulario!$J$16,"Ocultar","")) -> Ocultar
C14: Ano 7 | I14: 0 | K14: Ano 7 | Q14: 0 | AF14: 7 | AG14: =(IF(AF14>controle_formulario!$J$16,"Ocultar","")) -> Ocultar
C15: Ano 8 | I15: 0 | K15: Ano 8 | Q15: 0 | AF15: 8 | AG15: =(IF(AF15>controle_formulario!$J$16,"Ocultar","")) -> Ocultar
C16: Ano 9 | I16: 0 | K16: Ano 9 | Q16: 0 | AF16: 9 | AG16: =(IF(AF16>controle_formulario!$J$16,"Ocultar","")) -> Ocultar
C17: Ano 10 | I17: 0 | K17: Ano 10 | Q17: 0 | AF17: 10 | AG17: =(IF(AF17>controle_formulario!$J$16,"Ocultar","")) -> Ocultar
C21: =cen.alt2 -> Custo SIASG | K21: =cen.alt3 -> Custo CMED | AG21: =IF($C$22>controle_formulario!$E$16,"Ocultar","") -> Ocultar
C22: 2 | D22: =trat.novo -> 0 | E22: =trat.a -> 0 | F22: =trat.b -> 0 | G22: =trat.c -> 0 | H22: =trat.d -> 0 | I22: Total | K22: 3 | L22: =trat.novo -> 0 | M22: =trat.a -> 0 | N22: =trat.b -> 0 | O22: =trat.c -> 0 | P22: =trat.d -> 0 | Q22: Total | AG22: =IF($C$22>controle_formulario!$E$16,"Ocultar","") -> Ocultar
AG23: =IF($C$22>controle_formulario!$E$16,"Ocultar","") -> Ocultar
C24: Ano 1 | D24: 0.3232 | E24: 0.3351 | F24: 0.2069 | G24: 0.0975 | H24: 0.04 | I24: =SUM(D24:H24) -> 1.0027 | K24: Ano 1 | L24: 0.3232 | M24: 0.3351 | N24: 0.2069 | O24: 0.0975 | P24: 0.04 | Q24: =SUM(L24:P24) -> 1.0027 | AF24: 1 | AG24: =IF($C$22>controle_formulario!$E$16,"Ocultar","") -> Ocultar
C25: Ano 2 | D25: 0.4 | E25: 0.31 | F25: 0.18 | G25: 0.08 | H25: 0.03 | I25: 1 | K25: Ano 2 | L25: 0.4 | M25: 0.31 | N25: 0.18 | O25: 0.08 | P25: 0.03 | Q25: 1 | AF25: 2 | AG25: =(IF(OR(AF24>controle_formulario!$J$16,$C$22>controle_formulario!$E$16),"Ocultar","")) -> Ocultar
C26: Ano 3 | D26: 0.5 | E26: 0.26 | F26: 0.16 | G26: 0.06 | H26: 0.02 | I26: 1 | K26: Ano 3 | L26: 0.5 | M26: 0.26 | N26: 0.16 | O26: 0.06 | P26: 0.02 | Q26: 1 | AF26: 3 | AG26: =(IF(OR(AF26>controle_formulario!$J$16,$C$22>controle_formulario!$E$16),"Ocultar","")) -> Ocultar
C27: Ano 4 | D27: 0.6 | E27: 0.22 | F27: 0.12 | G27: 0.04 | H27: 0.02 | I27: 1 | K27: Ano 4 | L27: 0.6 | M27: 0.22 | N27: 0.12 | O27: 0.04 | P27: 0.02 | Q27: 1 | AF27: 4 | AG27: =(IF(OR(AF27>controle_formulario!$J$16,$C$22>controle_formulario!$E$16),"Ocultar","")) -> Ocultar
C28: Ano 5 | D28: 0.7 | E28: 0.15 | F28: 0.1 | G28: 0.03 | H28: 0.02 | I28: 1 | K28: Ano 5 | L28: 0.7 | M28: 0.15 | N28: 0.1 | O28: 0.03 | P28: 0.02 | Q28: 1 | AF28: 5 | AG28: =(IF(OR(AF28>controle_formulario!$J$16,$C$22>controle_formulario!$E$16),"Ocultar","")) -> Ocultar
C29: Ano 6 | I29: 0 | K29: Ano 6 | Q29: 0 | AF29: 6 | AG29: =(IF(OR(AF29>controle_formulario!$J$16,$C$22>controle_formulario!$E$16),"Ocultar","")) -> Ocultar
C30: Ano 7 | I30: 0 | K30: Ano 7 | Q30: 0 | AF30: 7 | AG30: =(IF(OR(AF30>controle_formulario!$J$16,$C$22>controle_formulario!$E$16),"Ocultar","")) -> Ocultar
C31: Ano 8 | I31: 0 | K31: Ano 8 | Q31: 0 | AF31: 8 | AG31: =(IF(OR(AF31>controle_formulario!$J$16,$C$22>controle_formulario!$E$16),"Ocultar","")) -> Ocultar
C32: Ano 9 | I32: 0 | K32: Ano 9 | Q32: 0 | AF32: 9 | AG32: =(IF(OR(AF32>controle_formulario!$J$16,$C$22>controle_formulario!$E$16),"Ocultar","")) -> Ocultar
C33: Ano 10 | I33: 0 | K33: Ano 10 | Q33: 0 | AF33: 10 | AG33: =(IF(OR(AF33>controle_formulario!$J$16,$C$22>controle_formulario!$E$16),"Ocultar","")) -> Ocultar
AG34: =IF($C$22>controle_formulario!$E$16,"Ocultar","") -> Ocultar
C37: =cen.alt4 -> Cenário Alternativo 4 | K37: =cen.alt5 -> Cenário Alternativo 5 | AG37: =IF($C$38>controle_formulario!$E$16,"Ocultar","") -> Ocultar
C38: 4 | D38: =trat.novo -> 0 | E38: =trat.a -> 0 | F38: =trat.b -> 0 | G38: =trat.c -> 0 | H38: =trat.d -> 0 | I38: Total | K38: 5 | L38: =trat.novo -> 0 | M38: =trat.a -> 0 | N38: =trat.b -> 0 | O38: =trat.c -> 0 | P38: =trat.d -> 0 | Q38: Total | AG38: =IF($C$38>controle_formulario!$E$16,"Ocultar","") -> Ocultar
AG39: =IF($C$38>controle_formulario!$E$16,"Ocultar","") -> Ocultar
C40: Ano 1 | I40: =SUM(D40:H40) -> 0 | K40: Ano 1 | Q40: =SUM(L40:P40) -> 0 | AG40: =IF($C$38>controle_formulario!$E$16,"Ocultar","") -> Ocultar
C41: Ano 2 | I41: 0 | K41: Ano 2 | Q41: 0 | AF41: 2 | AG41: =(IF(OR(AF41>controle_formulario!$J$16,$C$38>controle_formulario!$E$16),"Ocultar","")) -> Ocultar
C42: Ano 3 | I42: 0 | K42: Ano 3 | Q42: 0 | AF42: 3 | AG42: =(IF(OR(AF42>controle_formulario!$J$16,$C$38>controle_formulario!$E$16),"Ocultar","")) -> Ocultar
C43: Ano 4 | I43: 0 | K43: Ano 4 | Q43: 0 | AF43: 4 | AG43: =(IF(OR(AF43>controle_formulario!$J$16,$C$38>controle_formulario!$E$16),"Ocultar","")) -> Ocultar
C44: Ano 5 | I44: 0 | K44: Ano 5 | Q44: 0 | AF44: 5 | AG44: =(IF(OR(AF44>controle_formulario!$J$16,$C$38>controle_formulario!$E$16),"Ocultar","")) -> Ocultar
C45: Ano 6 | I45: 0 | K45: Ano 6 | Q45: 0 | AF45: 6 | AG45: =(IF(OR(AF45>controle_formulario!$J$16,$C$38>controle_formulario!$E$16),"Ocultar","")) -> Ocultar
C46: Ano 7 | I46: 0 | K46: Ano 7 | Q46: 0 | AF46: 7 | AG46: =(IF(OR(AF46>controle_formulario!$J$16,$C$38>controle_formulario!$E$16),"Ocultar","")) -> Ocultar
C47: Ano 8 | I47: 0 | K47: Ano 8 | Q47: 0 | AF47: 8 | AG47: =(IF(OR(AF47>controle_formulario!$J$16,$C$38>controle_formulario!$E$16),"Ocultar","")) -> Ocultar
C48: Ano 9 | I48: 0 | K48: Ano 9 | Q48: 0 | AF48: 9 | AG48: =(IF(OR(AF48>controle_formulario!$J$16,$C$38>controle_formulario!$E$16),"Ocultar","")) -> Ocultar
C49: Ano 10 | I49: 0 | K49: Ano 10 | Q49: 0 | AF49: 10 | AG49: =(IF(OR(AF49>controle_formulario!$J$16,$C$38>controle_formulario!$E$16),"Ocultar","")) -> Ocultar
AG50: =IF($C$38>controle_formulario!$E$16,"Ocultar","") -> Ocultar
C53: =cen.alt6 -> Cenário Alternativo 6 | K53: =cen.alt7 -> Cenário Alternativo 7 | AG53: =IF($C$54>controle_formulario!$E$16,"Ocultar","") -> Ocultar
C54: 6 | D54: =trat.novo -> 0 | E54: =trat.a -> 0 | F54: =trat.b -> 0 | G54: =trat.c -> 0 | H54: =trat.d -> 0 | I54: Total | K54: 7 | L54: =trat.novo -> 0 | M54: =trat.a -> 0 | N54: =trat.b -> 0 | O54: =trat.c -> 0 | P54: =trat.d -> 0 | Q54: Total | AG54: =IF($C$54>controle_formulario!$E$16,"Ocultar","") -> Ocultar
AG55: =IF($C$54>controle_formulario!$E$16,"Ocultar","") -> Ocultar
C56: Ano 1 | I56: =SUM(D56:H56) -> 0 | K56: Ano 1 | Q56: =SUM(L56:P56) -> 0 | AG56: =IF($C$54>controle_formulario!$E$16,"Ocultar","") -> Ocultar
C57: Ano 2 | I57: 0 | K57: Ano 2 | Q57: 0 | AF57: 2 | AG57: =(IF(OR(AF57>controle_formulario!$J$16,$C$54>controle_formulario!$E$16),"Ocultar","")) -> Ocultar
C58: Ano 3 | I58: 0 | K58: Ano 3 | Q58: 0 | AF58: 3 | AG58: =(IF(OR(AF58>controle_formulario!$J$16,$C$54>controle_formulario!$E$16),"Ocultar","")) -> Ocultar
C59: Ano 4 | I59: 0 | K59: Ano 4 | Q59: 0 | AF59: 4 | AG59: =(IF(OR(AF59>controle_formulario!$J$16,$C$54>controle_formulario!$E$16),"Ocultar","")) -> Ocultar
C60: Ano 5 | I60: 0 | K60: Ano 5 | Q60: 0 | AF60: 5 | AG60: =(IF(OR(AF60>controle_formulario!$J$16,$C$54>controle_formulario!$E$16),"Ocultar","")) -> Ocultar
C61: Ano 6 | I61: 0 | K61: Ano 6 | Q61: 0 | AF61: 6 | AG61: =(IF(OR(AF61>controle_formulario!$J$16,$C$54>controle_formulario!$E$16),"Ocultar","")) -> Ocultar
C62: Ano 7 | I62: 0 | K62: Ano 7 | Q62: 0 | AF62: 7 | AG62: =(IF(OR(AF62>controle_formulario!$J$16,$C$54>controle_formulario!$E$16),"Ocultar","")) -> Ocultar
C63: Ano 8 | I63: 0 | K63: Ano 8 | Q63: 0 | AF63: 8 | AG63: =(IF(OR(AF63>controle_formulario!$J$16,$C$54>controle_formulario!$E$16),"Ocultar","")) -> Ocultar
C64: Ano 9 | I64: 0 | K64: Ano 9 | Q64: 0 | AF64: 9 | AG64: =(IF(OR(AF64>controle_formulario!$J$16,$C$54>controle_formulario!$E$16),"Ocultar","")) -> Ocultar
C65: Ano 10 | I65: 0 | K65: Ano 10 | Q65: 0 | AF65: 10 | AG65: =(IF(OR(AF65>controle_formulario!$J$16,$C$54>controle_formulario!$E$16),"Ocultar","")) -> Ocultar
AG66: =IF($C$54>controle_formulario!$E$16,"Ocultar","") -> Ocultar
C69: =cen.alt8 -> Cenário Alternativo 8 | K69: =cen.alt9 -> Cenário Alternativo 9 | AG69: =IF($C$70>controle_formulario!$E$16,"Ocultar","") -> Ocultar
C70: 8 | D70: =trat.novo -> 0 | E70: =trat.a -> 0 | F70: =trat.b -> 0 | G70: =trat.c -> 0 | H70: =trat.d -> 0 | I70: Total | K70: 9 | L70: =trat.novo -> 0 | M70: =trat.a -> 0 | N70: =trat.b -> 0 | O70: =trat.c -> 0 | P70: =trat.d -> 0 | Q70: Total | AG70: =IF($C$70>controle_formulario!$E$16,"Ocultar","") -> Ocultar
AG71: =IF($C$70>controle_formulario!$E$16,"Ocultar","") -> Ocultar
C72: Ano 1 | I72: =SUM(D72:H72) -> 0 | K72: Ano 1 | Q72: =SUM(L72:P72) -> 0 | AG72: =IF($C$70>controle_formulario!$E$16,"Ocultar","") -> Ocultar
C73: Ano 2 | I73: 0 | K73: Ano 2 | Q73: 0 | AF73: 2 | AG73: =(IF(OR(AF73>controle_formulario!$J$16,$C$70>controle_formulario!$E$16),"Ocultar","")) -> Ocultar
C74: Ano 3 | I74: 0 | K74: Ano 3 | Q74: 0 | AF74: 3 | AG74: =(IF(OR(AF74>controle_formulario!$J$16,$C$70>controle_formulario!$E$16),"Ocultar","")) -> Ocultar
C75: Ano 4 | I75: 0 | K75: Ano 4 | Q75: 0 | AF75: 4 | AG75: =(IF(OR(AF75>controle_formulario!$J$16,$C$70>controle_formulario!$E$16),"Ocultar","")) -> Ocultar
C76: Ano 5 | I76: 0 | K76: Ano 5 | Q76: 0 | AF76: 5 | AG76: =(IF(OR(AF76>controle_formulario!$J$16,$C$70>controle_formulario!$E$16),"Ocultar","")) -> Ocultar
C77: Ano 6 | I77: 0 | K77: Ano 6 | Q77: 0 | AF77: 6 | AG77: =(IF(OR(AF77>controle_formulario!$J$16,$C$70>controle_formulario!$E$16),"Ocultar","")) -> Ocultar
C78: Ano 7 | I78: 0 | K78: Ano 7 | Q78: 0 | AF78: 7 | AG78: =(IF(OR(AF78>controle_formulario!$J$16,$C$70>controle_formulario!$E$16),"Ocultar","")) -> Ocultar
C79: Ano 8 | I79: 0 | K79: Ano 8 | Q79: 0 | AF79: 8 | AG79: =(IF(OR(AF79>controle_formulario!$J$16,$C$70>controle_formulario!$E$16),"Ocultar","")) -> Ocultar
C80: Ano 9 | I80: 0 | K80: Ano 9 | Q80: 0 | AF80: 9 | AG80: =(IF(OR(AF80>controle_formulario!$J$16,$C$70>controle_formulario!$E$16),"Ocultar","")) -> Ocultar
C81: Ano 10 | I81: 0 | K81: Ano 10 | Q81: 0 | AF81: 10 | AG81: =(IF(OR(AF81>controle_formulario!$J$16,$C$70>controle_formulario!$E$16),"Ocultar","")) -> Ocultar
AG82: =IF($C$70>controle_formulario!$E$16,"Ocultar","") -> Ocultar
C85: =cen.alt10 -> Cenário Alternativo 10 | AG85: =IF($C$86>controle_formulario!$E$16,"Ocultar","") -> Ocultar
C86: 10 | D86: =trat.novo -> 0 | E86: =trat.a -> 0 | F86: =trat.b -> 0 | G86: =trat.c -> 0 | H86: =trat.d -> 0 | I86: Total | AG86: =IF($C$86>controle_formulario!$E$16,"Ocultar","") -> Ocultar
AG87: =IF($C$86>controle_formulario!$E$16,"Ocultar","") -> Ocultar
C88: Ano 1 | I88: =SUM(D88:H88) -> 0 | AG88: =IF($C$86>controle_formulario!$E$16,"Ocultar","") -> Ocultar
C89: Ano 2 | I89: 0 | AF89: 2 | AG89: =(IF(OR(AF89>controle_formulario!$J$16,$C$86>controle_formulario!$E$16),"Ocultar","")) -> Ocultar
C90: Ano 3 | I90: 0 | AF90: 3 | AG90: =(IF(OR(AF90>controle_formulario!$J$16,$C$86>controle_formulario!$E$16),"Ocultar","")) -> Ocultar
C91: Ano 4 | I91: 0 | AF91: 4 | AG91: =(IF(OR(AF91>controle_formulario!$J$16,$C$86>controle_formulario!$E$16),"Ocultar","")) -> Ocultar
C92: Ano 5 | I92: 0 | AF92: 5 | AG92: =(IF(OR(AF92>controle_formulario!$J$16,$C$86>controle_formulario!$E$16),"Ocultar","")) -> Ocultar
C93: Ano 6 | I93: 0 | AF93: 6 | AG93: =(IF(OR(AF93>controle_formulario!$J$16,$C$86>controle_formulario!$E$16),"Ocultar","")) -> Ocultar
C94: Ano 7 | I94: 0 | AF94: 7 | AG94: =(IF(OR(AF94>controle_formulario!$J$16,$C$86>controle_formulario!$E$16),"Ocultar","")) -> Ocultar
C95: Ano 8 | I95: 0 | AF95: 8 | AG95: =(IF(OR(AF95>controle_formulario!$J$16,$C$86>controle_formulario!$E$16),"Ocultar","")) -> Ocultar
C96: Ano 9 | I96: 0 | AF96: 9 | AG96: =(IF(OR(AF96>controle_formulario!$J$16,$C$86>controle_formulario!$E$16),"Ocultar","")) -> Ocultar
C97: Ano 10 | I97: 0 | AF97: 10 | AG97: =(IF(OR(AF97>controle_formulario!$J$16,$C$86>controle_formulario!$E$16),"Ocultar","")) -> Ocultar
AG98: =IF($C$86>controle_formulario!$E$16,"Ocultar","") -> Ocultar
C101: Total de pessoas que recebem tratamento
C103: =cen.ref -> 0 | K103: =cen.alt1 -> 0
D104: =trat.novo -> 0 | E104: =trat.a -> 0 | F104: =trat.b -> 0 | G104: =trat.c -> 0 | H104: =trat.d -> 0 | I104: Total | L104: =trat.novo -> 0 | M104: =trat.a -> 0 | N104: =trat.b -> 0 | O104: =trat.c -> 0 | P104: =trat.d -> 0 | Q104: Total
C105: Ano 1 | D105: =D8*OFFSET(Populacao!$I$116,'Market Share'!$AF105-1,0) -> 0 | E105: =E8*OFFSET(Populacao!$I$116,'Market Share'!$AF105-1,0) -> 0 | F105: =F8*OFFSET(Populacao!$I$116,'Market Share'!$AF105-1,0) -> 0 | G105: =G8*OFFSET(Populacao!$I$116,'Market Share'!$AF105-1,0) -> 0 | H105: =H8*OFFSET(Populacao!$I$116,'Market Share'!$AF105-1,0) -> 0 | I105: =SUM(D105:H105) -> 0 | K105: Ano 1 | L105: =L8*OFFSET(Populacao!$I$116,'Market Share'!$AF105-1,0) -> 0 | M105: =M8*OFFSET(Populacao!$I$116,'Market Share'!$AF105-1,0) -> 0 | N105: =N8*OFFSET(Populacao!$I$116,'Market Share'!$AF105-1,0) -> 0 | O105: =O8*OFFSET(Populacao!$I$116,'Market Share'!$AF105-1,0) -> 0 | P105: =P8*OFFSET(Populacao!$I$116,'Market Share'!$AF105-1,0) -> 0 | Q105: =SUM(L105:P105) -> 0 | AF105: 1
C106: Ano 2 | D106: =D9*OFFSET(Populacao!$I$116,'Market Share'!$AF106-1,0) -> 0 | E106: =E9*OFFSET(Populacao!$I$116,'Market Share'!$AF106-1,0) -> 0 | F106: =F9*OFFSET(Populacao!$I$116,'Market Share'!$AF106-1,0) -> 0 | G106: =G9*OFFSET(Populacao!$I$116,'Market Share'!$AF106-1,0) -> 0 | H106: =H9*OFFSET(Populacao!$I$116,'Market Share'!$AF106-1,0) -> 0 | I106: =SUM(D106:H106) -> 0 | K106: Ano 2 | L106: =L9*OFFSET(Populacao!$I$116,'Market Share'!$AF106-1,0) -> 0 | M106: =M9*OFFSET(Populacao!$I$116,'Market Share'!$AF106-1,0) -> 0 | N106: =N9*OFFSET(Populacao!$I$116,'Market Share'!$AF106-1,0) -> 0 | O106: =O9*OFFSET(Populacao!$I$116,'Market Share'!$AF106-1,0) -> 0 | P106: =P9*OFFSET(Populacao!$I$116,'Market Share'!$AF106-1,0) -> 0 | Q106: =SUM(L106:P106) -> 0 | AF106: 2 | AG106: =(IF(AF106>controle_formulario!$J$16,"Ocultar","")) -> 
C107: Ano 3 | D107: =D10*OFFSET(Populacao!$I$116,'Market Share'!$AF107-1,0) -> 0 | E107: =E10*OFFSET(Populacao!$I$116,'Market Share'!$AF107-1,0) -> 0 | F107: =F10*OFFSET(Populacao!$I$116,'Market Share'!$AF107-1,0) -> 0 | G107: =G10*OFFSET(Populacao!$I$116,'Market Share'!$AF107-1,0) -> 0 | H107: =H10*OFFSET(Populacao!$I$116,'Market Share'!$AF107-1,0) -> 0 | I107: 0 | K107: Ano 3 | L107: =L10*OFFSET(Populacao!$I$116,'Market Share'!$AF107-1,0) -> 0 | M107: =M10*OFFSET(Populacao!$I$116,'Market Share'!$AF107-1,0) -> 0 | N107: =N10*OFFSET(Populacao!$I$116,'Market Share'!$AF107-1,0) -> 0 | O107: =O10*OFFSET(Populacao!$I$116,'Market Share'!$AF107-1,0) -> 0 | P107: =P10*OFFSET(Populacao!$I$116,'Market Share'!$AF107-1,0) -> 0 | Q107: 0 | AF107: 3 | AG107: =(IF(AF107>controle_formulario!$J$16,"Ocultar","")) -> 
C108: Ano 4 | D108: =D11*OFFSET(Populacao!$I$116,'Market Share'!$AF108-1,0) -> 0 | E108: =E11*OFFSET(Populacao!$I$116,'Market Share'!$AF108-1,0) -> 0 | F108: =F11*OFFSET(Populacao!$I$116,'Market Share'!$AF108-1,0) -> 0 | G108: =G11*OFFSET(Populacao!$I$116,'Market Share'!$AF108-1,0) -> 0 | H108: =H11*OFFSET(Populacao!$I$116,'Market Share'!$AF108-1,0) -> 0 | I108: 0 | K108: Ano 4 | L108: =L11*OFFSET(Populacao!$I$116,'Market Share'!$AF108-1,0) -> 0 | M108: =M11*OFFSET(Populacao!$I$116,'Market Share'!$AF108-1,0) -> 0 | N108: =N11*OFFSET(Populacao!$I$116,'Market Share'!$AF108-1,0) -> 0 | O108: =O11*OFFSET(Populacao!$I$116,'Market Share'!$AF108-1,0) -> 0 | P108: =P11*OFFSET(Populacao!$I$116,'Market Share'!$AF108-1,0) -> 0 | Q108: 0 | AF108: 4 | AG108: =(IF(AF108>controle_formulario!$J$16,"Ocultar","")) -> 
C109: Ano 5 | D109: =D12*OFFSET(Populacao!$I$116,'Market Share'!$AF109-1,0) -> 0 | E109: =E12*OFFSET(Populacao!$I$116,'Market Share'!$AF109-1,0) -> 0 | F109: =F12*OFFSET(Populacao!$I$116,'Market Share'!$AF109-1,0) -> 0 | G109: =G12*OFFSET(Populacao!$I$116,'Market Share'!$AF109-1,0) -> 0 | H109: =H12*OFFSET(Populacao!$I$116,'Market Share'!$AF109-1,0) -> 0 | I109: 0 | K109: Ano 5 | L109: =L12*OFFSET(Populacao!$I$116,'Market Share'!$AF109-1,0) -> 0 | M109: =M12*OFFSET(Populacao!$I$116,'Market Share'!$AF109-1,0) -> 0 | N109: =N12*OFFSET(Populacao!$I$116,'Market Share'!$AF109-1,0) -> 0 | O109: =O12*OFFSET(Populacao!$I$116,'Market Share'!$AF109-1,0) -> 0 | P109: =P12*OFFSET(Populacao!$I$116,'Market Share'!$AF109-1,0) -> 0 | Q109: 0 | AF109: 5 | AG109: =(IF(AF109>controle_formulario!$J$16,"Ocultar","")) -> 
C110: Ano 6 | D110: =D13*OFFSET(Populacao!$I$116,'Market Share'!$AF110-1,0) -> 0 | E110: =E13*OFFSET(Populacao!$I$116,'Market Share'!$AF110-1,0) -> 0 | F110: =F13*OFFSET(Populacao!$I$116,'Market Share'!$AF110-1,0) -> 0 | G110: =G13*OFFSET(Populacao!$I$116,'Market Share'!$AF110-1,0) -> 0 | H110: =H13*OFFSET(Populacao!$I$116,'Market Share'!$AF110-1,0) -> 0 | I110: 0 | K110: Ano 6 | L110: =L13*OFFSET(Populacao!$I$116,'Market Share'!$AF110-1,0) -> 0 | M110: =M13*OFFSET(Populacao!$I$116,'Market Share'!$AF110-1,0) -> 0 | N110: =N13*OFFSET(Populacao!$I$116,'Market Share'!$AF110-1,0) -> 0 | O110: =O13*OFFSET(Populacao!$I$116,'Market Share'!$AF110-1,0) -> 0 | P110: =P13*OFFSET(Populacao!$I$116,'Market Share'!$AF110-1,0) -> 0 | Q110: 0 | AF110: 6 | AG110: =(IF(AF110>controle_formulario!$J$16,"Ocultar","")) -> Ocultar
C111: Ano 7 | D111: =D14*OFFSET(Populacao!$I$116,'Market Share'!$AF111-1,0) -> 0 | E111: =E14*OFFSET(Populacao!$I$116,'Market Share'!$AF111-1,0) -> 0 | F111: =F14*OFFSET(Populacao!$I$116,'Market Share'!$AF111-1,0) -> 0 | G111: =G14*OFFSET(Populacao!$I$116,'Market Share'!$AF111-1,0) -> 0 | H111: =H14*OFFSET(Populacao!$I$116,'Market Share'!$AF111-1,0) -> 0 | I111: 0 | K111: Ano 7 | L111: =L14*OFFSET(Populacao!$I$116,'Market Share'!$AF111-1,0) -> 0 | M111: =M14*OFFSET(Populacao!$I$116,'Market Share'!$AF111-1,0) -> 0 | N111: =N14*OFFSET(Populacao!$I$116,'Market Share'!$AF111-1,0) -> 0 | O111: =O14*OFFSET(Populacao!$I$116,'Market Share'!$AF111-1,0) -> 0 | P111: =P14*OFFSET(Populacao!$I$116,'Market Share'!$AF111-1,0) -> 0 | Q111: 0 | AF111: 7 | AG111: =(IF(AF111>controle_formulario!$J$16,"Ocultar","")) -> Ocultar
C112: Ano 8 | D112: =D15*OFFSET(Populacao!$I$116,'Market Share'!$AF112-1,0) -> 0 | E112: =E15*OFFSET(Populacao!$I$116,'Market Share'!$AF112-1,0) -> 0 | F112: =F15*OFFSET(Populacao!$I$116,'Market Share'!$AF112-1,0) -> 0 | G112: =G15*OFFSET(Populacao!$I$116,'Market Share'!$AF112-1,0) -> 0 | H112: =H15*OFFSET(Populacao!$I$116,'Market Share'!$AF112-1,0) -> 0 | I112: 0 | K112: Ano 8 | L112: =L15*OFFSET(Populacao!$I$116,'Market Share'!$AF112-1,0) -> 0 | M112: =M15*OFFSET(Populacao!$I$116,'Market Share'!$AF112-1,0) -> 0 | N112: =N15*OFFSET(Populacao!$I$116,'Market Share'!$AF112-1,0) -> 0 | O112: =O15*OFFSET(Populacao!$I$116,'Market Share'!$AF112-1,0) -> 0 | P112: =P15*OFFSET(Populacao!$I$116,'Market Share'!$AF112-1,0) -> 0 | Q112: 0 | AF112: 8 | AG112: =(IF(AF112>controle_formulario!$J$16,"Ocultar","")) -> Ocultar
C113: Ano 9 | D113: =D16*OFFSET(Populacao!$I$116,'Market Share'!$AF113-1,0) -> 0 | E113: =E16*OFFSET(Populacao!$I$116,'Market Share'!$AF113-1,0) -> 0 | F113: =F16*OFFSET(Populacao!$I$116,'Market Share'!$AF113-1,0) -> 0 | G113: =G16*OFFSET(Populacao!$I$116,'Market Share'!$AF113-1,0) -> 0 | H113: =H16*OFFSET(Populacao!$I$116,'Market Share'!$AF113-1,0) -> 0 | I113: 0 | K113: Ano 9 | L113: =L16*OFFSET(Populacao!$I$116,'Market Share'!$AF113-1,0) -> 0 | M113: =M16*OFFSET(Populacao!$I$116,'Market Share'!$AF113-1,0) -> 0 | N113: =N16*OFFSET(Populacao!$I$116,'Market Share'!$AF113-1,0) -> 0 | O113: =O16*OFFSET(Populacao!$I$116,'Market Share'!$AF113-1,0) -> 0 | P113: =P16*OFFSET(Populacao!$I$116,'Market Share'!$AF113-1,0) -> 0 | Q113: 0 | AF113: 9 | AG113: =(IF(AF113>controle_formulario!$J$16,"Ocultar","")) -> Ocultar
C114: Ano 10 | D114: =D17*OFFSET(Populacao!$I$116,'Market Share'!$AF114-1,0) -> 0 | E114: =E17*OFFSET(Populacao!$I$116,'Market Share'!$AF114-1,0) -> 0 | F114: =F17*OFFSET(Populacao!$I$116,'Market Share'!$AF114-1,0) -> 0 | G114: =G17*OFFSET(Populacao!$I$116,'Market Share'!$AF114-1,0) -> 0 | H114: =H17*OFFSET(Populacao!$I$116,'Market Share'!$AF114-1,0) -> 0 | I114: 0 | K114: Ano 10 | L114: =L17*OFFSET(Populacao!$I$116,'Market Share'!$AF114-1,0) -> 0 | M114: =M17*OFFSET(Populacao!$I$116,'Market Share'!$AF114-1,0) -> 0 | N114: =N17*OFFSET(Populacao!$I$116,'Market Share'!$AF114-1,0) -> 0 | O114: =O17*OFFSET(Populacao!$I$116,'Market Share'!$AF114-1,0) -> 0 | P114: =P17*OFFSET(Populacao!$I$116,'Market Share'!$AF114-1,0) -> 0 | Q114: 0 | AF114: 10 | AG114: =(IF(AF114>controle_formulario!$J$16,"Ocultar","")) -> Ocultar
C115: Total | D115: =SUM(D105:D114) -> 0 | E115: =SUM(E105:E114) -> 0 | F115: 0 | G115: 0 | H115: =SUM(H105:H114) -> 0 | I115: 0 | K115: Total | L115: =SUM(L105:L114) -> 0 | M115: =SUM(M105:M114) -> 0 | N115: =SUM(N105:N114) -> 0 | O115: =SUM(O105:O114) -> 0 | P115: 0 | Q115: 0
C119: =cen.alt2 -> Custo SIASG | K119: =cen.alt3 -> Custo CMED | AG119: =IF($C$120>controle_formulario!$E$16,"Ocultar","") -> Ocultar
C120: 2 | D120: =trat.novo -> 0 | E120: =trat.a -> 0 | F120: =trat.b -> 0 | G120: =trat.c -> 0 | H120: =trat.d -> 0 | I120: Total | K120: 3 | L120: =trat.novo -> 0 | M120: =trat.a -> 0 | N120: =trat.b -> 0 | O120: =trat.c -> 0 | P120: =trat.d -> 0 | Q120: Total | AG120: =IF($C$120>controle_formulario!$E$16,"Ocultar","") -> Ocultar
C121: Ano 1 | D121: =D24*OFFSET(Populacao!$I$116,'Market Share'!$AF121-1,0) -> 0 | E121: =E24*OFFSET(Populacao!$I$116,'Market Share'!$AF121-1,0) -> 0 | F121: =F24*OFFSET(Populacao!$I$116,'Market Share'!$AF121-1,0) -> 0 | G121: =G24*OFFSET(Populacao!$I$116,'Market Share'!$AF121-1,0) -> 0 | H121: =H24*OFFSET(Populacao!$I$116,'Market Share'!$AF121-1,0) -> 0 | I121: =SUM(D121:H121) -> 0 | K121: Ano 1 | L121: =L24*OFFSET(Populacao!$I$116,'Market Share'!$AF121-1,0) -> 0 | M121: =M24*OFFSET(Populacao!$I$116,'Market Share'!$AF121-1,0) -> 0 | N121: =N24*OFFSET(Populacao!$I$116,'Market Share'!$AF121-1,0) -> 0 | O121: =O24*OFFSET(Populacao!$I$116,'Market Share'!$AF121-1,0) -> 0 | P121: =P24*OFFSET(Populacao!$I$116,'Market Share'!$AF121-1,0) -> 0 | Q121: =SUM(L121:P121) -> 0 | AF121: 1 | AG121: =IF($C$120>controle_formulario!$E$16,"Ocultar","") -> Ocultar
C122: Ano 2 | D122: =D25*OFFSET(Populacao!$I$116,'Market Share'!$AF122-1,0) -> 0 | E122: =E25*OFFSET(Populacao!$I$116,'Market Share'!$AF122-1,0) -> 0 | F122: =F25*OFFSET(Populacao!$I$116,'Market Share'!$AF122-1,0) -> 0 | G122: =G25*OFFSET(Populacao!$I$116,'Market Share'!$AF122-1,0) -> 0 | H122: =H25*OFFSET(Populacao!$I$116,'Market Share'!$AF122-1,0) -> 0 | I122: =SUM(D122:H122) -> 0 | K122: Ano 2 | L122: =L25*OFFSET(Populacao!$I$116,'Market Share'!$AF122-1,0) -> 0 | M122: =M25*OFFSET(Populacao!$I$116,'Market Share'!$AF122-1,0) -> 0 | N122: =N25*OFFSET(Populacao!$I$116,'Market Share'!$AF122-1,0) -> 0 | O122: =O25*OFFSET(Populacao!$I$116,'Market Share'!$AF122-1,0) -> 0 | P122: =P25*OFFSET(Populacao!$I$116,'Market Share'!$AF122-1,0) -> 0 | Q122: =SUM(L122:P122) -> 0 | AF122: 2 | AG122: =(IF(OR(AF122>controle_formulario!$J$16,$C$120>controle_formulario!$E$16),"Ocultar","")) -> Ocultar
C123: Ano 3 | D123: =D26*OFFSET(Populacao!$I$116,'Market Share'!$AF123-1,0) -> 0 | E123: =E26*OFFSET(Populacao!$I$116,'Market Share'!$AF123-1,0) -> 0 | F123: =F26*OFFSET(Populacao!$I$116,'Market Share'!$AF123-1,0) -> 0 | G123: =G26*OFFSET(Populacao!$I$116,'Market Share'!$AF123-1,0) -> 0 | H123: =H26*OFFSET(Populacao!$I$116,'Market Share'!$AF123-1,0) -> 0 | I123: 0 | K123: Ano 3 | L123: =L26*OFFSET(Populacao!$I$116,'Market Share'!$AF123-1,0) -> 0 | M123: =M26*OFFSET(Populacao!$I$116,'Market Share'!$AF123-1,0) -> 0 | N123: =N26*OFFSET(Populacao!$I$116,'Market Share'!$AF123-1,0) -> 0 | O123: =O26*OFFSET(Populacao!$I$116,'Market Share'!$AF123-1,0) -> 0 | P123: =P26*OFFSET(Populacao!$I$116,'Market Share'!$AF123-1,0) -> 0 | Q123: 0 | AF123: 3 | AG123: =(IF(OR(AF123>controle_formulario!$J$16,$C$120>controle_formulario!$E$16),"Ocultar","")) -> Ocultar
C124: Ano 4 | D124: =D27*OFFSET(Populacao!$I$116,'Market Share'!$AF124-1,0) -> 0 | E124: =E27*OFFSET(Populacao!$I$116,'Market Share'!$AF124-1,0) -> 0 | F124: =F27*OFFSET(Populacao!$I$116,'Market Share'!$AF124-1,0) -> 0 | G124: =G27*OFFSET(Populacao!$I$116,'Market Share'!$AF124-1,0) -> 0 | H124: =H27*OFFSET(Populacao!$I$116,'Market Share'!$AF124-1,0) -> 0 | I124: 0 | K124: Ano 4 | L124: =L27*OFFSET(Populacao!$I$116,'Market Share'!$AF124-1,0) -> 0 | M124: =M27*OFFSET(Populacao!$I$116,'Market Share'!$AF124-1,0) -> 0 | N124: =N27*OFFSET(Populacao!$I$116,'Market Share'!$AF124-1,0) -> 0 | O124: =O27*OFFSET(Populacao!$I$116,'Market Share'!$AF124-1,0) -> 0 | P124: =P27*OFFSET(Populacao!$I$116,'Market Share'!$AF124-1,0) -> 0 | Q124: 0 | AF124: 4 | AG124: =(IF(OR(AF124>controle_formulario!$J$16,$C$120>controle_formulario!$E$16),"Ocultar","")) -> Ocultar
C125: Ano 5 | D125: =D28*OFFSET(Populacao!$I$116,'Market Share'!$AF125-1,0) -> 0 | E125: =E28*OFFSET(Populacao!$I$116,'Market Share'!$AF125-1,0) -> 0 | F125: =F28*OFFSET(Populacao!$I$116,'Market Share'!$AF125-1,0) -> 0 | G125: =G28*OFFSET(Populacao!$I$116,'Market Share'!$AF125-1,0) -> 0 | H125: =H28*OFFSET(Populacao!$I$116,'Market Share'!$AF125-1,0) -> 0 | I125: 0 | K125: Ano 5 | L125: =L28*OFFSET(Populacao!$I$116,'Market Share'!$AF125-1,0) -> 0 | M125: =M28*OFFSET(Populacao!$I$116,'Market Share'!$AF125-1,0) -> 0 | N125: =N28*OFFSET(Populacao!$I$116,'Market Share'!$AF125-1,0) -> 0 | O125: =O28*OFFSET(Populacao!$I$116,'Market Share'!$AF125-1,0) -> 0 | P125: =P28*OFFSET(Populacao!$I$116,'Market Share'!$AF125-1,0) -> 0 | Q125: 0 | AF125: 5 | AG125: =(IF(OR(AF125>controle_formulario!$J$16,$C$120>controle_formulario!$E$16),"Ocultar","")) -> Ocultar
C126: Ano 6 | D126: =D29*OFFSET(Populacao!$I$116,'Market Share'!$AF126-1,0) -> 0 | E126: =E29*OFFSET(Populacao!$I$116,'Market Share'!$AF126-1,0) -> 0 | F126: =F29*OFFSET(Populacao!$I$116,'Market Share'!$AF126-1,0) -> 0 | G126: =G29*OFFSET(Populacao!$I$116,'Market Share'!$AF126-1,0) -> 0 | H126: =H29*OFFSET(Populacao!$I$116,'Market Share'!$AF126-1,0) -> 0 | I126: 0 | K126: Ano 6 | L126: =L29*OFFSET(Populacao!$I$116,'Market Share'!$AF126-1,0) -> 0 | M126: =M29*OFFSET(Populacao!$I$116,'Market Share'!$AF126-1,0) -> 0 | N126: =N29*OFFSET(Populacao!$I$116,'Market Share'!$AF126-1,0) -> 0 | O126: =O29*OFFSET(Populacao!$I$116,'Market Share'!$AF126-1,0) -> 0 | P126: =P29*OFFSET(Populacao!$I$116,'Market Share'!$AF126-1,0) -> 0 | Q126: 0 | AF126: 6 | AG126: =(IF(OR(AF126>controle_formulario!$J$16,$C$120>controle_formulario!$E$16),"Ocultar","")) -> Ocultar
C127: Ano 7 | D127: =D30*OFFSET(Populacao!$I$116,'Market Share'!$AF127-1,0) -> 0 | E127: =E30*OFFSET(Populacao!$I$116,'Market Share'!$AF127-1,0) -> 0 | F127: =F30*OFFSET(Populacao!$I$116,'Market Share'!$AF127-1,0) -> 0 | G127: =G30*OFFSET(Populacao!$I$116,'Market Share'!$AF127-1,0) -> 0 | H127: =H30*OFFSET(Populacao!$I$116,'Market Share'!$AF127-1,0) -> 0 | I127: 0 | K127: Ano 7 | L127: =L30*OFFSET(Populacao!$I$116,'Market Share'!$AF127-1,0) -> 0 | M127: =M30*OFFSET(Populacao!$I$116,'Market Share'!$AF127-1,0) -> 0 | N127: =N30*OFFSET(Populacao!$I$116,'Market Share'!$AF127-1,0) -> 0 | O127: =O30*OFFSET(Populacao!$I$116,'Market Share'!$AF127-1,0) -> 0 | P127: =P30*OFFSET(Populacao!$I$116,'Market Share'!$AF127-1,0) -> 0 | Q127: 0 | AF127: 7 | AG127: =(IF(OR(AF127>controle_formulario!$J$16,$C$120>controle_formulario!$E$16),"Ocultar","")) -> Ocultar
C128: Ano 8 | D128: =D31*OFFSET(Populacao!$I$116,'Market Share'!$AF128-1,0) -> 0 | E128: =E31*OFFSET(Populacao!$I$116,'Market Share'!$AF128-1,0) -> 0 | F128: =F31*OFFSET(Populacao!$I$116,'Market Share'!$AF128-1,0) -> 0 | G128: =G31*OFFSET(Populacao!$I$116,'Market Share'!$AF128-1,0) -> 0 | H128: =H31*OFFSET(Populacao!$I$116,'Market Share'!$AF128-1,0) -> 0 | I128: 0 | K128: Ano 8 | L128: =L31*OFFSET(Populacao!$I$116,'Market Share'!$AF128-1,0) -> 0 | M128: =M31*OFFSET(Populacao!$I$116,'Market Share'!$AF128-1,0) -> 0 | N128: =N31*OFFSET(Populacao!$I$116,'Market Share'!$AF128-1,0) -> 0 | O128: =O31*OFFSET(Populacao!$I$116,'Market Share'!$AF128-1,0) -> 0 | P128: =P31*OFFSET(Populacao!$I$116,'Market Share'!$AF128-1,0) -> 0 | Q128: 0 | AF128: 8 | AG128: =(IF(OR(AF128>controle_formulario!$J$16,$C$120>controle_formulario!$E$16),"Ocultar","")) -> Ocultar
C129: Ano 9 | D129: =D32*OFFSET(Populacao!$I$116,'Market Share'!$AF129-1,0) -> 0 | E129: =E32*OFFSET(Populacao!$I$116,'Market Share'!$AF129-1,0) -> 0 | F129: =F32*OFFSET(Populacao!$I$116,'Market Share'!$AF129-1,0) -> 0 | G129: =G32*OFFSET(Populacao!$I$116,'Market Share'!$AF129-1,0) -> 0 | H129: =H32*OFFSET(Populacao!$I$116,'Market Share'!$AF129-1,0) -> 0 | I129: 0 | K129: Ano 9 | L129: =L32*OFFSET(Populacao!$I$116,'Market Share'!$AF129-1,0) -> 0 | M129: =M32*OFFSET(Populacao!$I$116,'Market Share'!$AF129-1,0) -> 0 | N129: =N32*OFFSET(Populacao!$I$116,'Market Share'!$AF129-1,0) -> 0 | O129: =O32*OFFSET(Populacao!$I$116,'Market Share'!$AF129-1,0) -> 0 | P129: =P32*OFFSET(Populacao!$I$116,'Market Share'!$AF129-1,0) -> 0 | Q129: 0 | AF129: 9 | AG129: =(IF(OR(AF129>controle_formulario!$J$16,$C$120>controle_formulario!$E$16),"Ocultar","")) -> Ocultar
C130: Ano 10 | D130: =D33*OFFSET(Populacao!$I$116,'Market Share'!$AF130-1,0) -> 0 | E130: =E33*OFFSET(Populacao!$I$116,'Market Share'!$AF130-1,0) -> 0 | F130: =F33*OFFSET(Populacao!$I$116,'Market Share'!$AF130-1,0) -> 0 | G130: =G33*OFFSET(Populacao!$I$116,'Market Share'!$AF130-1,0) -> 0 | H130: =H33*OFFSET(Populacao!$I$116,'Market Share'!$AF130-1,0) -> 0 | I130: 0 | K130: Ano 10 | L130: =L33*OFFSET(Populacao!$I$116,'Market Share'!$AF130-1,0) -> 0 | M130: =M33*OFFSET(Populacao!$I$116,'Market Share'!$AF130-1,0) -> 0 | N130: =N33*OFFSET(Populacao!$I$116,'Market Share'!$AF130-1,0) -> 0 | O130: =O33*OFFSET(Populacao!$I$116,'Market Share'!$AF130-1,0) -> 0 | P130: =P33*OFFSET(Populacao!$I$116,'Market Share'!$AF130-1,0) -> 0 | Q130: 0 | AF130: 10 | AG130: =(IF(OR(AF130>controle_formulario!$J$16,$C$120>controle_formulario!$E$16),"Ocultar","")) -> Ocultar
C131: Total | D131: =SUM(D121:D130) -> 0 | E131: =SUM(E121:E130) -> 0 | F131: 0 | G131: 0 | H131: =SUM(H121:H130) -> 0 | I131: 0 | K131: Total | L131: =SUM(L121:L130) -> 0 | M131: =SUM(M121:M130) -> 0 | N131: 0 | O131: 0 | P131: =SUM(P121:P130) -> 0 | Q131: 0 | AG131: =IF($C$120>controle_formulario!$E$16,"Ocultar","") -> Ocultar
C135: =cen.alt4 -> Cenário Alternativo 4 | K135: =cen.alt5 -> Cenário Alternativo 5 | AG135: =IF($C$136>controle_formulario!$E$16,"Ocultar","") -> Ocultar
C136: 4 | D136: =trat.novo -> 0 | E136: =trat.a -> 0 | F136: =trat.b -> 0 | G136: =trat.c -> 0 | H136: =trat.d -> 0 | I136: Total | K136: 5 | L136: =trat.novo -> 0 | M136: =trat.a -> 0 | N136: =trat.b -> 0 | O136: =trat.c -> 0 | P136: =trat.d -> 0 | Q136: Total | AG136: =IF($C$136>controle_formulario!$E$16,"Ocultar","") -> Ocultar
C137: Ano 1 | D137: =D40*OFFSET(Populacao!$I$116,'Market Share'!$AF137-1,0) -> 0 | E137: =E40*OFFSET(Populacao!$I$116,'Market Share'!$AF137-1,0) -> 0 | F137: =F40*OFFSET(Populacao!$I$116,'Market Share'!$AF137-1,0) -> 0 | G137: =G40*OFFSET(Populacao!$I$116,'Market Share'!$AF137-1,0) -> 0 | H137: =H40*OFFSET(Populacao!$I$116,'Market Share'!$AF137-1,0) -> 0 | I137: =SUM(D137:H137) -> 0 | K137: Ano 1 | L137: =L40*OFFSET(Populacao!$I$116,'Market Share'!$AF137-1,0) -> 0 | M137: =M40*OFFSET(Populacao!$I$116,'Market Share'!$AF137-1,0) -> 0 | N137: =N40*OFFSET(Populacao!$I$116,'Market Share'!$AF137-1,0) -> 0 | O137: =O40*OFFSET(Populacao!$I$116,'Market Share'!$AF137-1,0) -> 0 | P137: =P40*OFFSET(Populacao!$I$116,'Market Share'!$AF137-1,0) -> 0 | Q137: =SUM(L137:P137) -> 0 | AF137: 1 | AG137: =IF($C$136>controle_formulario!$E$16,"Ocultar","") -> Ocultar
C138: Ano 2 | D138: =D41*OFFSET(Populacao!$I$116,'Market Share'!$AF138-1,0) -> 0 | E138: =E41*OFFSET(Populacao!$I$116,'Market Share'!$AF138-1,0) -> 0 | F138: =F41*OFFSET(Populacao!$I$116,'Market Share'!$AF138-1,0) -> 0 | G138: =G41*OFFSET(Populacao!$I$116,'Market Share'!$AF138-1,0) -> 0 | H138: =H41*OFFSET(Populacao!$I$116,'Market Share'!$AF138-1,0) -> 0 | I138: =SUM(D138:H138) -> 0 | K138: Ano 2 | L138: =L41*OFFSET(Populacao!$I$116,'Market Share'!$AF138-1,0) -> 0 | M138: =M41*OFFSET(Populacao!$I$116,'Market Share'!$AF138-1,0) -> 0 | N138: =N41*OFFSET(Populacao!$I$116,'Market Share'!$AF138-1,0) -> 0 | O138: =O41*OFFSET(Populacao!$I$116,'Market Share'!$AF138-1,0) -> 0 | P138: =P41*OFFSET(Populacao!$I$116,'Market Share'!$AF138-1,0) -> 0 | Q138: =SUM(L138:P138) -> 0 | AF138: 2 | AG138: =(IF(OR(AF138>controle_formulario!$J$16,$C$136>controle_formulario!$E$16),"Ocultar","")) -> Ocultar
C139: Ano 3 | D139: =D42*OFFSET(Populacao!$I$116,'Market Share'!$AF139-1,0) -> 0 | E139: =E42*OFFSET(Populacao!$I$116,'Market Share'!$AF139-1,0) -> 0 | F139: =F42*OFFSET(Populacao!$I$116,'Market Share'!$AF139-1,0) -> 0 | G139: =G42*OFFSET(Populacao!$I$116,'Market Share'!$AF139-1,0) -> 0 | H139: =H42*OFFSET(Populacao!$I$116,'Market Share'!$AF139-1,0) -> 0 | I139: 0 | K139: Ano 3 | L139: =L42*OFFSET(Populacao!$I$116,'Market Share'!$AF139-1,0) -> 0 | M139: =M42*OFFSET(Populacao!$I$116,'Market Share'!$AF139-1,0) -> 0 | N139: =N42*OFFSET(Populacao!$I$116,'Market Share'!$AF139-1,0) -> 0 | O139: =O42*OFFSET(Populacao!$I$116,'Market Share'!$AF139-1,0) -> 0 | P139: =P42*OFFSET(Populacao!$I$116,'Market Share'!$AF139-1,0) -> 0 | Q139: 0 | AF139: 3 | AG139: =(IF(OR(AF139>controle_formulario!$J$16,$C$136>controle_formulario!$E$16),"Ocultar","")) -> Ocultar
C140: Ano 4 | D140: =D43*OFFSET(Populacao!$I$116,'Market Share'!$AF140-1,0) -> 0 | E140: =E43*OFFSET(Populacao!$I$116,'Market Share'!$AF140-1,0) -> 0 | F140: =F43*OFFSET(Populacao!$I$116,'Market Share'!$AF140-1,0) -> 0 | G140: =G43*OFFSET(Populacao!$I$116,'Market Share'!$AF140-1,0) -> 0 | H140: =H43*OFFSET(Populacao!$I$116,'Market Share'!$AF140-1,0) -> 0 | I140: 0 | K140: Ano 4 | L140: =L43*OFFSET(Populacao!$I$116,'Market Share'!$AF140-1,0) -> 0 | M140: =M43*OFFSET(Populacao!$I$116,'Market Share'!$AF140-1,0) -> 0 | N140: =N43*OFFSET(Populacao!$I$116,'Market Share'!$AF140-1,0) -> 0 | O140: =O43*OFFSET(Populacao!$I$116,'Market Share'!$AF140-1,0) -> 0 | P140: =P43*OFFSET(Populacao!$I$116,'Market Share'!$AF140-1,0) -> 0 | Q140: 0 | AF140: 4 | AG140: =(IF(OR(AF140>controle_formulario!$J$16,$C$136>controle_formulario!$E$16),"Ocultar","")) -> Ocultar
C141: Ano 5 | D141: =D44*OFFSET(Populacao!$I$116,'Market Share'!$AF141-1,0) -> 0 | E141: =E44*OFFSET(Populacao!$I$116,'Market Share'!$AF141-1,0) -> 0 | F141: =F44*OFFSET(Populacao!$I$116,'Market Share'!$AF141-1,0) -> 0 | G141: =G44*OFFSET(Populacao!$I$116,'Market Share'!$AF141-1,0) -> 0 | H141: =H44*OFFSET(Populacao!$I$116,'Market Share'!$AF141-1,0) -> 0 | I141: 0 | K141: Ano 5 | L141: =L44*OFFSET(Populacao!$I$116,'Market Share'!$AF141-1,0) -> 0 | M141: =M44*OFFSET(Populacao!$I$116,'Market Share'!$AF141-1,0) -> 0 | N141: =N44*OFFSET(Populacao!$I$116,'Market Share'!$AF141-1,0) -> 0 | O141: =O44*OFFSET(Populacao!$I$116,'Market Share'!$AF141-1,0) -> 0 | P141: =P44*OFFSET(Populacao!$I$116,'Market Share'!$AF141-1,0) -> 0 | Q141: 0 | AF141: 5 | AG141: =(IF(OR(AF141>controle_formulario!$J$16,$C$136>controle_formulario!$E$16),"Ocultar","")) -> Ocultar
C142: Ano 6 | D142: =D45*OFFSET(Populacao!$I$116,'Market Share'!$AF142-1,0) -> 0 | E142: =E45*OFFSET(Populacao!$I$116,'Market Share'!$AF142-1,0) -> 0 | F142: =F45*OFFSET(Populacao!$I$116,'Market Share'!$AF142-1,0) -> 0 | G142: =G45*OFFSET(Populacao!$I$116,'Market Share'!$AF142-1,0) -> 0 | H142: =H45*OFFSET(Populacao!$I$116,'Market Share'!$AF142-1,0) -> 0 | I142: 0 | K142: Ano 6 | L142: =L45*OFFSET(Populacao!$I$116,'Market Share'!$AF142-1,0) -> 0 | M142: =M45*OFFSET(Populacao!$I$116,'Market Share'!$AF142-1,0) -> 0 | N142: =N45*OFFSET(Populacao!$I$116,'Market Share'!$AF142-1,0) -> 0 | O142: =O45*OFFSET(Populacao!$I$116,'Market Share'!$AF142-1,0) -> 0 | P142: =P45*OFFSET(Populacao!$I$116,'Market Share'!$AF142-1,0) -> 0 | Q142: 0 | AF142: 6 | AG142: =(IF(OR(AF142>controle_formulario!$J$16,$C$136>controle_formulario!$E$16),"Ocultar","")) -> Ocultar
C143: Ano 7 | D143: =D46*OFFSET(Populacao!$I$116,'Market Share'!$AF143-1,0) -> 0 | E143: =E46*OFFSET(Populacao!$I$116,'Market Share'!$AF143-1,0) -> 0 | F143: =F46*OFFSET(Populacao!$I$116,'Market Share'!$AF143-1,0) -> 0 | G143: =G46*OFFSET(Populacao!$I$116,'Market Share'!$AF143-1,0) -> 0 | H143: =H46*OFFSET(Populacao!$I$116,'Market Share'!$AF143-1,0) -> 0 | I143: 0 | K143: Ano 7 | L143: =L46*OFFSET(Populacao!$I$116,'Market Share'!$AF143-1,0) -> 0 | M143: =M46*OFFSET(Populacao!$I$116,'Market Share'!$AF143-1,0) -> 0 | N143: =N46*OFFSET(Populacao!$I$116,'Market Share'!$AF143-1,0) -> 0 | O143: =O46*OFFSET(Populacao!$I$116,'Market Share'!$AF143-1,0) -> 0 | P143: =P46*OFFSET(Populacao!$I$116,'Market Share'!$AF143-1,0) -> 0 | Q143: 0 | AF143: 7 | AG143: =(IF(OR(AF143>controle_formulario!$J$16,$C$136>controle_formulario!$E$16),"Ocultar","")) -> Ocultar
C144: Ano 8 | D144: =D47*OFFSET(Populacao!$I$116,'Market Share'!$AF144-1,0) -> 0 | E144: =E47*OFFSET(Populacao!$I$116,'Market Share'!$AF144-1,0) -> 0 | F144: =F47*OFFSET(Populacao!$I$116,'Market Share'!$AF144-1,0) -> 0 | G144: =G47*OFFSET(Populacao!$I$116,'Market Share'!$AF144-1,0) -> 0 | H144: =H47*OFFSET(Populacao!$I$116,'Market Share'!$AF144-1,0) -> 0 | I144: 0 | K144: Ano 8 | L144: =L47*OFFSET(Populacao!$I$116,'Market Share'!$AF144-1,0) -> 0 | M144: =M47*OFFSET(Populacao!$I$116,'Market Share'!$AF144-1,0) -> 0 | N144: =N47*OFFSET(Populacao!$I$116,'Market Share'!$AF144-1,0) -> 0 | O144: =O47*OFFSET(Populacao!$I$116,'Market Share'!$AF144-1,0) -> 0 | P144: =P47*OFFSET(Populacao!$I$116,'Market Share'!$AF144-1,0) -> 0 | Q144: 0 | AF144: 8 | AG144: =(IF(OR(AF144>controle_formulario!$J$16,$C$136>controle_formulario!$E$16),"Ocultar","")) -> Ocultar
C145: Ano 9 | D145: =D48*OFFSET(Populacao!$I$116,'Market Share'!$AF145-1,0) -> 0 | E145: =E48*OFFSET(Populacao!$I$116,'Market Share'!$AF145-1,0) -> 0 | F145: =F48*OFFSET(Populacao!$I$116,'Market Share'!$AF145-1,0) -> 0 | G145: =G48*OFFSET(Populacao!$I$116,'Market Share'!$AF145-1,0) -> 0 | H145: =H48*OFFSET(Populacao!$I$116,'Market Share'!$AF145-1,0) -> 0 | I145: 0 | K145: Ano 9 | L145: =L48*OFFSET(Populacao!$I$116,'Market Share'!$AF145-1,0) -> 0 | M145: =M48*OFFSET(Populacao!$I$116,'Market Share'!$AF145-1,0) -> 0 | N145: =N48*OFFSET(Populacao!$I$116,'Market Share'!$AF145-1,0) -> 0 | O145: =O48*OFFSET(Populacao!$I$116,'Market Share'!$AF145-1,0) -> 0 | P145: =P48*OFFSET(Populacao!$I$116,'Market Share'!$AF145-1,0) -> 0 | Q145: 0 | AF145: 9 | AG145: =(IF(OR(AF145>controle_formulario!$J$16,$C$136>controle_formulario!$E$16),"Ocultar","")) -> Ocultar
C146: Ano 10 | D146: =D49*OFFSET(Populacao!$I$116,'Market Share'!$AF146-1,0) -> 0 | E146: =E49*OFFSET(Populacao!$I$116,'Market Share'!$AF146-1,0) -> 0 | F146: =F49*OFFSET(Populacao!$I$116,'Market Share'!$AF146-1,0) -> 0 | G146: =G49*OFFSET(Populacao!$I$116,'Market Share'!$AF146-1,0) -> 0 | H146: =H49*OFFSET(Populacao!$I$116,'Market Share'!$AF146-1,0) -> 0 | I146: 0 | K146: Ano 10 | L146: =L49*OFFSET(Populacao!$I$116,'Market Share'!$AF146-1,0) -> 0 | M146: =M49*OFFSET(Populacao!$I$116,'Market Share'!$AF146-1,0) -> 0 | N146: =N49*OFFSET(Populacao!$I$116,'Market Share'!$AF146-1,0) -> 0 | O146: =O49*OFFSET(Populacao!$I$116,'Market Share'!$AF146-1,0) -> 0 | P146: =P49*OFFSET(Populacao!$I$116,'Market Share'!$AF146-1,0) -> 0 | Q146: 0 | AF146: 10 | AG146: =(IF(OR(AF146>controle_formulario!$J$16,$C$136>controle_formulario!$E$16),"Ocultar","")) -> Ocultar
C147: Total | D147: =SUM(D137:D146) -> 0 | E147: =SUM(E137:E146) -> 0 | F147: 0 | G147: 0 | H147: 0 | I147: 0 | K147: Total | L147: =SUM(L137:L146) -> 0 | M147: =SUM(M137:M146) -> 0 | N147: 0 | O147: 0 | P147: 0 | Q147: 0 | AG147: =IF($C$136>controle_formulario!$E$16,"Ocultar","") -> Ocultar
C151: =cen.alt6 -> Cenário Alternativo 6 | K151: =cen.alt7 -> Cenário Alternativo 7 | AG151: =IF($C$152>controle_formulario!$E$16,"Ocultar","") -> Ocultar
C152: 6 | D152: =trat.novo -> 0 | E152: =trat.a -> 0 | F152: =trat.b -> 0 | G152: =trat.c -> 0 | H152: =trat.d -> 0 | I152: Total | K152: 7 | L152: =trat.novo -> 0 | M152: =trat.a -> 0 | N152: =trat.b -> 0 | O152: =trat.c -> 0 | P152: =trat.d -> 0 | Q152: Total | AG152: =IF($C$152>controle_formulario!$E$16,"Ocultar","") -> Ocultar
C153: Ano 1 | D153: =D56*OFFSET(Populacao!$I$116,'Market Share'!$AF153-1,0) -> 0 | E153: =E56*OFFSET(Populacao!$I$116,'Market Share'!$AF153-1,0) -> 0 | F153: =F56*OFFSET(Populacao!$I$116,'Market Share'!$AF153-1,0) -> 0 | G153: =G56*OFFSET(Populacao!$I$116,'Market Share'!$AF153-1,0) -> 0 | H153: =H56*OFFSET(Populacao!$I$116,'Market Share'!$AF153-1,0) -> 0 | I153: =SUM(D153:H153) -> 0 | K153: Ano 1 | L153: =L56*OFFSET(Populacao!$I$116,'Market Share'!$AF153-1,0) -> 0 | M153: =M56*OFFSET(Populacao!$I$116,'Market Share'!$AF153-1,0) -> 0 | N153: =N56*OFFSET(Populacao!$I$116,'Market Share'!$AF153-1,0) -> 0 | O153: =O56*OFFSET(Populacao!$I$116,'Market Share'!$AF153-1,0) -> 0 | P153: =P56*OFFSET(Populacao!$I$116,'Market Share'!$AF153-1,0) -> 0 | Q153: =SUM(L153:P153) -> 0 | AF153: 1 | AG153: =IF($C$152>controle_formulario!$E$16,"Ocultar","") -> Ocultar
C154: Ano 2 | D154: =D57*OFFSET(Populacao!$I$116,'Market Share'!$AF154-1,0) -> 0 | E154: =E57*OFFSET(Populacao!$I$116,'Market Share'!$AF154-1,0) -> 0 | F154: =F57*OFFSET(Populacao!$I$116,'Market Share'!$AF154-1,0) -> 0 | G154: =G57*OFFSET(Populacao!$I$116,'Market Share'!$AF154-1,0) -> 0 | H154: =H57*OFFSET(Populacao!$I$116,'Market Share'!$AF154-1,0) -> 0 | I154: =SUM(D154:H154) -> 0 | K154: Ano 2 | L154: =L57*OFFSET(Populacao!$I$116,'Market Share'!$AF154-1,0) -> 0 | M154: =M57*OFFSET(Populacao!$I$116,'Market Share'!$AF154-1,0) -> 0 | N154: =N57*OFFSET(Populacao!$I$116,'Market Share'!$AF154-1,0) -> 0 | O154: =O57*OFFSET(Populacao!$I$116,'Market Share'!$AF154-1,0) -> 0 | P154: =P57*OFFSET(Populacao!$I$116,'Market Share'!$AF154-1,0) -> 0 | Q154: =SUM(L154:P154) -> 0 | AF154: 2 | AG154: =(IF(OR(AF154>controle_formulario!$J$16,$C$152>controle_formulario!$E$16),"Ocultar","")) -> Ocultar
C155: Ano 3 | D155: =D58*OFFSET(Populacao!$I$116,'Market Share'!$AF155-1,0) -> 0 | E155: =E58*OFFSET(Populacao!$I$116,'Market Share'!$AF155-1,0) -> 0 | F155: =F58*OFFSET(Populacao!$I$116,'Market Share'!$AF155-1,0) -> 0 | G155: =G58*OFFSET(Populacao!$I$116,'Market Share'!$AF155-1,0) -> 0 | H155: =H58*OFFSET(Populacao!$I$116,'Market Share'!$AF155-1,0) -> 0 | I155: 0 | K155: Ano 3 | L155: =L58*OFFSET(Populacao!$I$116,'Market Share'!$AF155-1,0) -> 0 | M155: =M58*OFFSET(Populacao!$I$116,'Market Share'!$AF155-1,0) -> 0 | N155: =N58*OFFSET(Populacao!$I$116,'Market Share'!$AF155-1,0) -> 0 | O155: =O58*OFFSET(Populacao!$I$116,'Market Share'!$AF155-1,0) -> 0 | P155: =P58*OFFSET(Populacao!$I$116,'Market Share'!$AF155-1,0) -> 0 | Q155: 0 | AF155: 3 | AG155: =(IF(OR(AF155>controle_formulario!$J$16,$C$152>controle_formulario!$E$16),"Ocultar","")) -> Ocultar
C156: Ano 4 | D156: =D59*OFFSET(Populacao!$I$116,'Market Share'!$AF156-1,0) -> 0 | E156: =E59*OFFSET(Populacao!$I$116,'Market Share'!$AF156-1,0) -> 0 | F156: =F59*OFFSET(Populacao!$I$116,'Market Share'!$AF156-1,0) -> 0 | G156: =G59*OFFSET(Populacao!$I$116,'Market Share'!$AF156-1,0) -> 0 | H156: =H59*OFFSET(Populacao!$I$116,'Market Share'!$AF156-1,0) -> 0 | I156: 0 | K156: Ano 4 | L156: =L59*OFFSET(Populacao!$I$116,'Market Share'!$AF156-1,0) -> 0 | M156: =M59*OFFSET(Populacao!$I$116,'Market Share'!$AF156-1,0) -> 0 | N156: =N59*OFFSET(Populacao!$I$116,'Market Share'!$AF156-1,0) -> 0 | O156: =O59*OFFSET(Populacao!$I$116,'Market Share'!$AF156-1,0) -> 0 | P156: =P59*OFFSET(Populacao!$I$116,'Market Share'!$AF156-1,0) -> 0 | Q156: 0 | AF156: 4 | AG156: =(IF(OR(AF156>controle_formulario!$J$16,$C$152>controle_formulario!$E$16),"Ocultar","")) -> Ocultar
C157: Ano 5 | D157: =D60*OFFSET(Populacao!$I$116,'Market Share'!$AF157-1,0) -> 0 | E157: =E60*OFFSET(Populacao!$I$116,'Market Share'!$AF157-1,0) -> 0 | F157: =F60*OFFSET(Populacao!$I$116,'Market Share'!$AF157-1,0) -> 0 | G157: =G60*OFFSET(Populacao!$I$116,'Market Share'!$AF157-1,0) -> 0 | H157: =H60*OFFSET(Populacao!$I$116,'Market Share'!$AF157-1,0) -> 0 | I157: 0 | K157: Ano 5 | L157: =L60*OFFSET(Populacao!$I$116,'Market Share'!$AF157-1,0) -> 0 | M157: =M60*OFFSET(Populacao!$I$116,'Market Share'!$AF157-1,0) -> 0 | N157: =N60*OFFSET(Populacao!$I$116,'Market Share'!$AF157-1,0) -> 0 | O157: =O60*OFFSET(Populacao!$I$116,'Market Share'!$AF157-1,0) -> 0 | P157: =P60*OFFSET(Populacao!$I$116,'Market Share'!$AF157-1,0) -> 0 | Q157: 0 | AF157: 5 | AG157: =(IF(OR(AF157>controle_formulario!$J$16,$C$152>controle_formulario!$E$16),"Ocultar","")) -> Ocultar
C158: Ano 6 | D158: =D61*OFFSET(Populacao!$I$116,'Market Share'!$AF158-1,0) -> 0 | E158: =E61*OFFSET(Populacao!$I$116,'Market Share'!$AF158-1,0) -> 0 | F158: =F61*OFFSET(Populacao!$I$116,'Market Share'!$AF158-1,0) -> 0 | G158: =G61*OFFSET(Populacao!$I$116,'Market Share'!$AF158-1,0) -> 0 | H158: =H61*OFFSET(Populacao!$I$116,'Market Share'!$AF158-1,0) -> 0 | I158: 0 | K158: Ano 6 | L158: =L61*OFFSET(Populacao!$I$116,'Market Share'!$AF158-1,0) -> 0 | M158: =M61*OFFSET(Populacao!$I$116,'Market Share'!$AF158-1,0) -> 0 | N158: =N61*OFFSET(Populacao!$I$116,'Market Share'!$AF158-1,0) -> 0 | O158: =O61*OFFSET(Populacao!$I$116,'Market Share'!$AF158-1,0) -> 0 | P158: =P61*OFFSET(Populacao!$I$116,'Market Share'!$AF158-1,0) -> 0 | Q158: 0 | AF158: 6 | AG158: =(IF(OR(AF158>controle_formulario!$J$16,$C$152>controle_formulario!$E$16),"Ocultar","")) -> Ocultar
C159: Ano 7 | D159: =D62*OFFSET(Populacao!$I$116,'Market Share'!$AF159-1,0) -> 0 | E159: =E62*OFFSET(Populacao!$I$116,'Market Share'!$AF159-1,0) -> 0 | F159: =F62*OFFSET(Populacao!$I$116,'Market Share'!$AF159-1,0) -> 0 | G159: =G62*OFFSET(Populacao!$I$116,'Market Share'!$AF159-1,0) -> 0 | H159: =H62*OFFSET(Populacao!$I$116,'Market Share'!$AF159-1,0) -> 0 | I159: 0 | K159: Ano 7 | L159: =L62*OFFSET(Populacao!$I$116,'Market Share'!$AF159-1,0) -> 0 | M159: =M62*OFFSET(Populacao!$I$116,'Market Share'!$AF159-1,0) -> 0 | N159: =N62*OFFSET(Populacao!$I$116,'Market Share'!$AF159-1,0) -> 0 | O159: =O62*OFFSET(Populacao!$I$116,'Market Share'!$AF159-1,0) -> 0 | P159: =P62*OFFSET(Populacao!$I$116,'Market Share'!$AF159-1,0) -> 0 | Q159: 0 | AF159: 7 | AG159: =(IF(OR(AF159>controle_formulario!$J$16,$C$152>controle_formulario!$E$16),"Ocultar","")) -> Ocultar
C160: Ano 8 | D160: =D63*OFFSET(Populacao!$I$116,'Market Share'!$AF160-1,0) -> 0 | E160: =E63*OFFSET(Populacao!$I$116,'Market Share'!$AF160-1,0) -> 0 | F160: =F63*OFFSET(Populacao!$I$116,'Market Share'!$AF160-1,0) -> 0 | G160: =G63*OFFSET(Populacao!$I$116,'Market Share'!$AF160-1,0) -> 0 | H160: =H63*OFFSET(Populacao!$I$116,'Market Share'!$AF160-1,0) -> 0 | I160: 0 | K160: Ano 8 | L160: =L63*OFFSET(Populacao!$I$116,'Market Share'!$AF160-1,0) -> 0 | M160: =M63*OFFSET(Populacao!$I$116,'Market Share'!$AF160-1,0) -> 0 | N160: =N63*OFFSET(Populacao!$I$116,'Market Share'!$AF160-1,0) -> 0 | O160: =O63*OFFSET(Populacao!$I$116,'Market Share'!$AF160-1,0) -> 0 | P160: =P63*OFFSET(Populacao!$I$116,'Market Share'!$AF160-1,0) -> 0 | Q160: 0 | AF160: 8 | AG160: =(IF(OR(AF160>controle_formulario!$J$16,$C$152>controle_formulario!$E$16),"Ocultar","")) -> Ocultar
C161: Ano 9 | D161: =D64*OFFSET(Populacao!$I$116,'Market Share'!$AF161-1,0) -> 0 | E161: =E64*OFFSET(Populacao!$I$116,'Market Share'!$AF161-1,0) -> 0 | F161: =F64*OFFSET(Populacao!$I$116,'Market Share'!$AF161-1,0) -> 0 | G161: =G64*OFFSET(Populacao!$I$116,'Market Share'!$AF161-1,0) -> 0 | H161: =H64*OFFSET(Populacao!$I$116,'Market Share'!$AF161-1,0) -> 0 | I161: 0 | K161: Ano 9 | L161: =L64*OFFSET(Populacao!$I$116,'Market Share'!$AF161-1,0) -> 0 | M161: =M64*OFFSET(Populacao!$I$116,'Market Share'!$AF161-1,0) -> 0 | N161: =N64*OFFSET(Populacao!$I$116,'Market Share'!$AF161-1,0) -> 0 | O161: =O64*OFFSET(Populacao!$I$116,'Market Share'!$AF161-1,0) -> 0 | P161: =P64*OFFSET(Populacao!$I$116,'Market Share'!$AF161-1,0) -> 0 | Q161: 0 | AF161: 9 | AG161: =(IF(OR(AF161>controle_formulario!$J$16,$C$152>controle_formulario!$E$16),"Ocultar","")) -> Ocultar
C162: Ano 10 | D162: =D65*OFFSET(Populacao!$I$116,'Market Share'!$AF162-1,0) -> 0 | E162: =E65*OFFSET(Populacao!$I$116,'Market Share'!$AF162-1,0) -> 0 | F162: =F65*OFFSET(Populacao!$I$116,'Market Share'!$AF162-1,0) -> 0 | G162: =G65*OFFSET(Populacao!$I$116,'Market Share'!$AF162-1,0) -> 0 | H162: =H65*OFFSET(Populacao!$I$116,'Market Share'!$AF162-1,0) -> 0 | I162: 0 | K162: Ano 10 | L162: =L65*OFFSET(Populacao!$I$116,'Market Share'!$AF162-1,0) -> 0 | M162: =M65*OFFSET(Populacao!$I$116,'Market Share'!$AF162-1,0) -> 0 | N162: =N65*OFFSET(Populacao!$I$116,'Market Share'!$AF162-1,0) -> 0 | O162: =O65*OFFSET(Populacao!$I$116,'Market Share'!$AF162-1,0) -> 0 | P162: =P65*OFFSET(Populacao!$I$116,'Market Share'!$AF162-1,0) -> 0 | Q162: 0 | AF162: 10 | AG162: =(IF(OR(AF162>controle_formulario!$J$16,$C$152>controle_formulario!$E$16),"Ocultar","")) -> Ocultar
C163: Total | D163: =SUM(D153:D162) -> 0 | E163: =SUM(E153:E162) -> 0 | F163: 0 | G163: 0 | H163: 0 | I163: 0 | K163: Total | L163: =SUM(L153:L162) -> 0 | M163: =SUM(M153:M162) -> 0 | N163: 0 | O163: 0 | P163: 0 | Q163: 0 | AG163: =IF($C$152>controle_formulario!$E$16,"Ocultar","") -> Ocultar
C167: =cen.alt8 -> Cenário Alternativo 8 | K167: =cen.alt9 -> Cenário Alternativo 9 | AG167: =IF($C$168>controle_formulario!$E$16,"Ocultar","") -> Ocultar
C168: 8 | D168: =trat.novo -> 0 | E168: =trat.a -> 0 | F168: =trat.b -> 0 | G168: =trat.c -> 0 | H168: =trat.d -> 0 | I168: Total | K168: 9 | L168: =trat.novo -> 0 | M168: =trat.a -> 0 | N168: =trat.b -> 0 | O168: =trat.c -> 0 | P168: =trat.d -> 0 | Q168: Total | AG168: =IF($C$168>controle_formulario!$E$16,"Ocultar","") -> Ocultar
C169: Ano 1 | D169: =D72*OFFSET(Populacao!$I$116,'Market Share'!$AF169-1,0) -> 0 | E169: =E72*OFFSET(Populacao!$I$116,'Market Share'!$AF169-1,0) -> 0 | F169: =F72*OFFSET(Populacao!$I$116,'Market Share'!$AF169-1,0) -> 0 | G169: =G72*OFFSET(Populacao!$I$116,'Market Share'!$AF169-1,0) -> 0 | H169: =H72*OFFSET(Populacao!$I$116,'Market Share'!$AF169-1,0) -> 0 | I169: =SUM(D169:H169) -> 0 | K169: Ano 1 | L169: =L72*OFFSET(Populacao!$I$116,'Market Share'!$AF169-1,0) -> 0 | M169: =M72*OFFSET(Populacao!$I$116,'Market Share'!$AF169-1,0) -> 0 | N169: =N72*OFFSET(Populacao!$I$116,'Market Share'!$AF169-1,0) -> 0 | O169: =O72*OFFSET(Populacao!$I$116,'Market Share'!$AF169-1,0) -> 0 | P169: =P72*OFFSET(Populacao!$I$116,'Market Share'!$AF169-1,0) -> 0 | Q169: =SUM(L169:P169) -> 0 | AF169: 1 | AG169: =IF($C$168>controle_formulario!$E$16,"Ocultar","") -> Ocultar
C170: Ano 2 | D170: =D73*OFFSET(Populacao!$I$116,'Market Share'!$AF170-1,0) -> 0 | E170: =E73*OFFSET(Populacao!$I$116,'Market Share'!$AF170-1,0) -> 0 | F170: =F73*OFFSET(Populacao!$I$116,'Market Share'!$AF170-1,0) -> 0 | G170: =G73*OFFSET(Populacao!$I$116,'Market Share'!$AF170-1,0) -> 0 | H170: =H73*OFFSET(Populacao!$I$116,'Market Share'!$AF170-1,0) -> 0 | I170: =SUM(D170:H170) -> 0 | K170: Ano 2 | L170: =L73*OFFSET(Populacao!$I$116,'Market Share'!$AF170-1,0) -> 0 | M170: =M73*OFFSET(Populacao!$I$116,'Market Share'!$AF170-1,0) -> 0 | N170: =N73*OFFSET(Populacao!$I$116,'Market Share'!$AF170-1,0) -> 0 | O170: =O73*OFFSET(Populacao!$I$116,'Market Share'!$AF170-1,0) -> 0 | P170: =P73*OFFSET(Populacao!$I$116,'Market Share'!$AF170-1,0) -> 0 | Q170: =SUM(L170:P170) -> 0 | AF170: 2 | AG170: =(IF(OR(AF170>controle_formulario!$J$16,$C$168>controle_formulario!$E$16),"Ocultar","")) -> Ocultar
C171: Ano 3 | D171: =D74*OFFSET(Populacao!$I$116,'Market Share'!$AF171-1,0) -> 0 | E171: =E74*OFFSET(Populacao!$I$116,'Market Share'!$AF171-1,0) -> 0 | F171: =F74*OFFSET(Populacao!$I$116,'Market Share'!$AF171-1,0) -> 0 | G171: =G74*OFFSET(Populacao!$I$116,'Market Share'!$AF171-1,0) -> 0 | H171: =H74*OFFSET(Populacao!$I$116,'Market Share'!$AF171-1,0) -> 0 | I171: 0 | K171: Ano 3 | L171: =L74*OFFSET(Populacao!$I$116,'Market Share'!$AF171-1,0) -> 0 | M171: =M74*OFFSET(Populacao!$I$116,'Market Share'!$AF171-1,0) -> 0 | N171: =N74*OFFSET(Populacao!$I$116,'Market Share'!$AF171-1,0) -> 0 | O171: =O74*OFFSET(Populacao!$I$116,'Market Share'!$AF171-1,0) -> 0 | P171: =P74*OFFSET(Populacao!$I$116,'Market Share'!$AF171-1,0) -> 0 | Q171: 0 | AF171: 3 | AG171: =(IF(OR(AF171>controle_formulario!$J$16,$C$168>controle_formulario!$E$16),"Ocultar","")) -> Ocultar
C172: Ano 4 | D172: =D75*OFFSET(Populacao!$I$116,'Market Share'!$AF172-1,0) -> 0 | E172: =E75*OFFSET(Populacao!$I$116,'Market Share'!$AF172-1,0) -> 0 | F172: =F75*OFFSET(Populacao!$I$116,'Market Share'!$AF172-1,0) -> 0 | G172: =G75*OFFSET(Populacao!$I$116,'Market Share'!$AF172-1,0) -> 0 | H172: =H75*OFFSET(Populacao!$I$116,'Market Share'!$AF172-1,0) -> 0 | I172: 0 | K172: Ano 4 | L172: =L75*OFFSET(Populacao!$I$116,'Market Share'!$AF172-1,0) -> 0 | M172: =M75*OFFSET(Populacao!$I$116,'Market Share'!$AF172-1,0) -> 0 | N172: =N75*OFFSET(Populacao!$I$116,'Market Share'!$AF172-1,0) -> 0 | O172: =O75*OFFSET(Populacao!$I$116,'Market Share'!$AF172-1,0) -> 0 | P172: =P75*OFFSET(Populacao!$I$116,'Market Share'!$AF172-1,0) -> 0 | Q172: 0 | AF172: 4 | AG172: =(IF(OR(AF172>controle_formulario!$J$16,$C$168>controle_formulario!$E$16),"Ocultar","")) -> Ocultar
C173: Ano 5 | D173: =D76*OFFSET(Populacao!$I$116,'Market Share'!$AF173-1,0) -> 0 | E173: =E76*OFFSET(Populacao!$I$116,'Market Share'!$AF173-1,0) -> 0 | F173: =F76*OFFSET(Populacao!$I$116,'Market Share'!$AF173-1,0) -> 0 | G173: =G76*OFFSET(Populacao!$I$116,'Market Share'!$AF173-1,0) -> 0 | H173: =H76*OFFSET(Populacao!$I$116,'Market Share'!$AF173-1,0) -> 0 | I173: 0 | K173: Ano 5 | L173: =L76*OFFSET(Populacao!$I$116,'Market Share'!$AF173-1,0) -> 0 | M173: =M76*OFFSET(Populacao!$I$116,'Market Share'!$AF173-1,0) -> 0 | N173: =N76*OFFSET(Populacao!$I$116,'Market Share'!$AF173-1,0) -> 0 | O173: =O76*OFFSET(Populacao!$I$116,'Market Share'!$AF173-1,0) -> 0 | P173: =P76*OFFSET(Populacao!$I$116,'Market Share'!$AF173-1,0) -> 0 | Q173: 0 | AF173: 5 | AG173: =(IF(OR(AF173>controle_formulario!$J$16,$C$168>controle_formulario!$E$16),"Ocultar","")) -> Ocultar
C174: Ano 6 | D174: =D77*OFFSET(Populacao!$I$116,'Market Share'!$AF174-1,0) -> 0 | E174: =E77*OFFSET(Populacao!$I$116,'Market Share'!$AF174-1,0) -> 0 | F174: =F77*OFFSET(Populacao!$I$116,'Market Share'!$AF174-1,0) -> 0 | G174: =G77*OFFSET(Populacao!$I$116,'Market Share'!$AF174-1,0) -> 0 | H174: =H77*OFFSET(Populacao!$I$116,'Market Share'!$AF174-1,0) -> 0 | I174: 0 | K174: Ano 6 | L174: =L77*OFFSET(Populacao!$I$116,'Market Share'!$AF174-1,0) -> 0 | M174: =M77*OFFSET(Populacao!$I$116,'Market Share'!$AF174-1,0) -> 0 | N174: =N77*OFFSET(Populacao!$I$116,'Market Share'!$AF174-1,0) -> 0 | O174: =O77*OFFSET(Populacao!$I$116,'Market Share'!$AF174-1,0) -> 0 | P174: =P77*OFFSET(Populacao!$I$116,'Market Share'!$AF174-1,0) -> 0 | Q174: 0 | AF174: 6 | AG174: =(IF(OR(AF174>controle_formulario!$J$16,$C$168>controle_formulario!$E$16),"Ocultar","")) -> Ocultar
C175: Ano 7 | D175: =D78*OFFSET(Populacao!$I$116,'Market Share'!$AF175-1,0) -> 0 | E175: =E78*OFFSET(Populacao!$I$116,'Market Share'!$AF175-1,0) -> 0 | F175: =F78*OFFSET(Populacao!$I$116,'Market Share'!$AF175-1,0) -> 0 | G175: =G78*OFFSET(Populacao!$I$116,'Market Share'!$AF175-1,0) -> 0 | H175: =H78*OFFSET(Populacao!$I$116,'Market Share'!$AF175-1,0) -> 0 | I175: 0 | K175: Ano 7 | L175: =L78*OFFSET(Populacao!$I$116,'Market Share'!$AF175-1,0) -> 0 | M175: =M78*OFFSET(Populacao!$I$116,'Market Share'!$AF175-1,0) -> 0 | N175: =N78*OFFSET(Populacao!$I$116,'Market Share'!$AF175-1,0) -> 0 | O175: =O78*OFFSET(Populacao!$I$116,'Market Share'!$AF175-1,0) -> 0 | P175: =P78*OFFSET(Populacao!$I$116,'Market Share'!$AF175-1,0) -> 0 | Q175: 0 | AF175: 7 | AG175: =(IF(OR(AF175>controle_formulario!$J$16,$C$168>controle_formulario!$E$16),"Ocultar","")) -> Ocultar
C176: Ano 8 | D176: =D79*OFFSET(Populacao!$I$116,'Market Share'!$AF176-1,0) -> 0 | E176: =E79*OFFSET(Populacao!$I$116,'Market Share'!$AF176-1,0) -> 0 | F176: =F79*OFFSET(Populacao!$I$116,'Market Share'!$AF176-1,0) -> 0 | G176: =G79*OFFSET(Populacao!$I$116,'Market Share'!$AF176-1,0) -> 0 | H176: =H79*OFFSET(Populacao!$I$116,'Market Share'!$AF176-1,0) -> 0 | I176: 0 | K176: Ano 8 | L176: =L79*OFFSET(Populacao!$I$116,'Market Share'!$AF176-1,0) -> 0 | M176: =M79*OFFSET(Populacao!$I$116,'Market Share'!$AF176-1,0) -> 0 | N176: =N79*OFFSET(Populacao!$I$116,'Market Share'!$AF176-1,0) -> 0 | O176: =O79*OFFSET(Populacao!$I$116,'Market Share'!$AF176-1,0) -> 0 | P176: =P79*OFFSET(Populacao!$I$116,'Market Share'!$AF176-1,0) -> 0 | Q176: 0 | AF176: 8 | AG176: =(IF(OR(AF176>controle_formulario!$J$16,$C$168>controle_formulario!$E$16),"Ocultar","")) -> Ocultar
C177: Ano 9 | D177: =D80*OFFSET(Populacao!$I$116,'Market Share'!$AF177-1,0) -> 0 | E177: =E80*OFFSET(Populacao!$I$116,'Market Share'!$AF177-1,0) -> 0 | F177: =F80*OFFSET(Populacao!$I$116,'Market Share'!$AF177-1,0) -> 0 | G177: =G80*OFFSET(Populacao!$I$116,'Market Share'!$AF177-1,0) -> 0 | H177: =H80*OFFSET(Populacao!$I$116,'Market Share'!$AF177-1,0) -> 0 | I177: 0 | K177: Ano 9 | L177: =L80*OFFSET(Populacao!$I$116,'Market Share'!$AF177-1,0) -> 0 | M177: =M80*OFFSET(Populacao!$I$116,'Market Share'!$AF177-1,0) -> 0 | N177: =N80*OFFSET(Populacao!$I$116,'Market Share'!$AF177-1,0) -> 0 | O177: =O80*OFFSET(Populacao!$I$116,'Market Share'!$AF177-1,0) -> 0 | P177: =P80*OFFSET(Populacao!$I$116,'Market Share'!$AF177-1,0) -> 0 | Q177: 0 | AF177: 9 | AG177: =(IF(OR(AF177>controle_formulario!$J$16,$C$168>controle_formulario!$E$16),"Ocultar","")) -> Ocultar
C178: Ano 10 | D178: =D81*OFFSET(Populacao!$I$116,'Market Share'!$AF178-1,0) -> 0 | E178: =E81*OFFSET(Populacao!$I$116,'Market Share'!$AF178-1,0) -> 0 | F178: =F81*OFFSET(Populacao!$I$116,'Market Share'!$AF178-1,0) -> 0 | G178: =G81*OFFSET(Populacao!$I$116,'Market Share'!$AF178-1,0) -> 0 | H178: =H81*OFFSET(Populacao!$I$116,'Market Share'!$AF178-1,0) -> 0 | I178: 0 | K178: Ano 10 | L178: =L81*OFFSET(Populacao!$I$116,'Market Share'!$AF178-1,0) -> 0 | M178: =M81*OFFSET(Populacao!$I$116,'Market Share'!$AF178-1,0) -> 0 | N178: =N81*OFFSET(Populacao!$I$116,'Market Share'!$AF178-1,0) -> 0 | O178: =O81*OFFSET(Populacao!$I$116,'Market Share'!$AF178-1,0) -> 0 | P178: =P81*OFFSET(Populacao!$I$116,'Market Share'!$AF178-1,0) -> 0 | Q178: 0 | AF178: 10 | AG178: =(IF(OR(AF178>controle_formulario!$J$16,$C$168>controle_formulario!$E$16),"Ocultar","")) -> Ocultar
C179: Total | D179: =SUM(D169:D178) -> 0 | E179: =SUM(E169:E178) -> 0 | F179: 0 | G179: 0 | H179: 0 | I179: 0 | K179: Total | L179: =SUM(L169:L178) -> 0 | M179: =SUM(M169:M178) -> 0 | N179: 0 | O179: 0 | P179: 0 | Q179: 0 | AG179: =IF($C$168>controle_formulario!$E$16,"Ocultar","") -> Ocultar
C183: =cen.alt10 -> Cenário Alternativo 10 | AG183: =IF($C$184>controle_formulario!$E$16,"Ocultar","") -> Ocultar
C184: 10 | D184: =trat.novo -> 0 | E184: =trat.a -> 0 | F184: =trat.b -> 0 | G184: =trat.c -> 0 | H184: =trat.d -> 0 | I184: Total | AG184: =IF($C$184>controle_formulario!$E$16,"Ocultar","") -> Ocultar
C185: Ano 1 | D185: =D88*OFFSET(Populacao!$I$116,'Market Share'!$AF185-1,0) -> 0 | E185: =E88*OFFSET(Populacao!$I$116,'Market Share'!$AF185-1,0) -> 0 | F185: =F88*OFFSET(Populacao!$I$116,'Market Share'!$AF185-1,0) -> 0 | G185: =G88*OFFSET(Populacao!$I$116,'Market Share'!$AF185-1,0) -> 0 | H185: =H88*OFFSET(Populacao!$I$116,'Market Share'!$AF185-1,0) -> 0 | I185: =SUM(D185:H185) -> 0 | AF185: 1 | AG185: =IF($C$184>controle_formulario!$E$16,"Ocultar","") -> Ocultar
C186: Ano 2 | D186: =D89*OFFSET(Populacao!$I$116,'Market Share'!$AF186-1,0) -> 0 | E186: =E89*OFFSET(Populacao!$I$116,'Market Share'!$AF186-1,0) -> 0 | F186: =F89*OFFSET(Populacao!$I$116,'Market Share'!$AF186-1,0) -> 0 | G186: =G89*OFFSET(Populacao!$I$116,'Market Share'!$AF186-1,0) -> 0 | H186: =H89*OFFSET(Populacao!$I$116,'Market Share'!$AF186-1,0) -> 0 | I186: =SUM(D186:H186) -> 0 | AF186: 2 | AG186: =(IF(OR(AF186>controle_formulario!$J$16,$C$184>controle_formulario!$E$16),"Ocultar","")) -> Ocultar
C187: Ano 3 | D187: =D90*OFFSET(Populacao!$I$116,'Market Share'!$AF187-1,0) -> 0 | E187: =E90*OFFSET(Populacao!$I$116,'Market Share'!$AF187-1,0) -> 0 | F187: =F90*OFFSET(Populacao!$I$116,'Market Share'!$AF187-1,0) -> 0 | G187: =G90*OFFSET(Populacao!$I$116,'Market Share'!$AF187-1,0) -> 0 | H187: =H90*OFFSET(Populacao!$I$116,'Market Share'!$AF187-1,0) -> 0 | I187: 0 | AF187: 3 | AG187: =(IF(OR(AF187>controle_formulario!$J$16,$C$184>controle_formulario!$E$16),"Ocultar","")) -> Ocultar
C188: Ano 4 | D188: =D91*OFFSET(Populacao!$I$116,'Market Share'!$AF188-1,0) -> 0 | E188: =E91*OFFSET(Populacao!$I$116,'Market Share'!$AF188-1,0) -> 0 | F188: =F91*OFFSET(Populacao!$I$116,'Market Share'!$AF188-1,0) -> 0 | G188: =G91*OFFSET(Populacao!$I$116,'Market Share'!$AF188-1,0) -> 0 | H188: =H91*OFFSET(Populacao!$I$116,'Market Share'!$AF188-1,0) -> 0 | I188: 0 | AF188: 4 | AG188: =(IF(OR(AF188>controle_formulario!$J$16,$C$184>controle_formulario!$E$16),"Ocultar","")) -> Ocultar
C189: Ano 5 | D189: =D92*OFFSET(Populacao!$I$116,'Market Share'!$AF189-1,0) -> 0 | E189: =E92*OFFSET(Populacao!$I$116,'Market Share'!$AF189-1,0) -> 0 | F189: =F92*OFFSET(Populacao!$I$116,'Market Share'!$AF189-1,0) -> 0 | G189: =G92*OFFSET(Populacao!$I$116,'Market Share'!$AF189-1,0) -> 0 | H189: =H92*OFFSET(Populacao!$I$116,'Market Share'!$AF189-1,0) -> 0 | I189: 0 | AF189: 5 | AG189: =(IF(OR(AF189>controle_formulario!$J$16,$C$184>controle_formulario!$E$16),"Ocultar","")) -> Ocultar
C190: Ano 6 | D190: =D93*OFFSET(Populacao!$I$116,'Market Share'!$AF190-1,0) -> 0 | E190: =E93*OFFSET(Populacao!$I$116,'Market Share'!$AF190-1,0) -> 0 | F190: =F93*OFFSET(Populacao!$I$116,'Market Share'!$AF190-1,0) -> 0 | G190: =G93*OFFSET(Populacao!$I$116,'Market Share'!$AF190-1,0) -> 0 | H190: =H93*OFFSET(Populacao!$I$116,'Market Share'!$AF190-1,0) -> 0 | I190: 0 | AF190: 6 | AG190: =(IF(OR(AF190>controle_formulario!$J$16,$C$184>controle_formulario!$E$16),"Ocultar","")) -> Ocultar
C191: Ano 7 | D191: =D94*OFFSET(Populacao!$I$116,'Market Share'!$AF191-1,0) -> 0 | E191: =E94*OFFSET(Populacao!$I$116,'Market Share'!$AF191-1,0) -> 0 | F191: =F94*OFFSET(Populacao!$I$116,'Market Share'!$AF191-1,0) -> 0 | G191: =G94*OFFSET(Populacao!$I$116,'Market Share'!$AF191-1,0) -> 0 | H191: =H94*OFFSET(Populacao!$I$116,'Market Share'!$AF191-1,0) -> 0 | I191: 0 | AF191: 7 | AG191: =(IF(OR(AF191>controle_formulario!$J$16,$C$184>controle_formulario!$E$16),"Ocultar","")) -> Ocultar
C192: Ano 8 | D192: =D95*OFFSET(Populacao!$I$116,'Market Share'!$AF192-1,0) -> 0 | E192: =E95*OFFSET(Populacao!$I$116,'Market Share'!$AF192-1,0) -> 0 | F192: =F95*OFFSET(Populacao!$I$116,'Market Share'!$AF192-1,0) -> 0 | G192: =G95*OFFSET(Populacao!$I$116,'Market Share'!$AF192-1,0) -> 0 | H192: =H95*OFFSET(Populacao!$I$116,'Market Share'!$AF192-1,0) -> 0 | I192: 0 | AF192: 8 | AG192: =(IF(OR(AF192>controle_formulario!$J$16,$C$184>controle_formulario!$E$16),"Ocultar","")) -> Ocultar
C193: Ano 9 | D193: =D96*OFFSET(Populacao!$I$116,'Market Share'!$AF193-1,0) -> 0 | E193: =E96*OFFSET(Populacao!$I$116,'Market Share'!$AF193-1,0) -> 0 | F193: =F96*OFFSET(Populacao!$I$116,'Market Share'!$AF193-1,0) -> 0 | G193: =G96*OFFSET(Populacao!$I$116,'Market Share'!$AF193-1,0) -> 0 | H193: =H96*OFFSET(Populacao!$I$116,'Market Share'!$AF193-1,0) -> 0 | I193: 0 | AF193: 9 | AG193: =(IF(OR(AF193>controle_formulario!$J$16,$C$184>controle_formulario!$E$16),"Ocultar","")) -> Ocultar
C194: Ano 10 | D194: =D97*OFFSET(Populacao!$I$116,'Market Share'!$AF194-1,0) -> 0 | E194: =E97*OFFSET(Populacao!$I$116,'Market Share'!$AF194-1,0) -> 0 | F194: =F97*OFFSET(Populacao!$I$116,'Market Share'!$AF194-1,0) -> 0 | G194: =G97*OFFSET(Populacao!$I$116,'Market Share'!$AF194-1,0) -> 0 | H194: =H97*OFFSET(Populacao!$I$116,'Market Share'!$AF194-1,0) -> 0 | I194: 0 | AF194: 10 | AG194: =(IF(OR(AF194>controle_formulario!$J$16,$C$184>controle_formulario!$E$16),"Ocultar","")) -> Ocultar
C195: Total | D195: =SUM(D185:D194) -> 0 | E195: =SUM(E185:E194) -> 0 | F195: 0 | G195: 0 | H195: 0 | I195: 0 | AG195: =IF($C$184>controle_formulario!$E$16,"Ocultar","") -> Ocultar
E199: 1 | F199: 2 | G199: 3 | H199: 4 | M199: 1 | N199: 2 | O199: 3 | P199: 4
E200: =IF(E199>controle_formulario!$C$10,"Ocultar","") ->  | F200: =IF(F199>controle_formulario!$C$10,"Ocultar","") -> Ocultar | G200: =IF(G199>controle_formulario!$C$10,"Ocultar","") -> Ocultar | H200: =IF(H199>controle_formulario!$C$10,"Ocultar","") -> Ocultar | M200: =IF(M199>controle_formulario!$C$10,"Ocultar","") ->  | N200: =IF(N199>controle_formulario!$C$10,"Ocultar","") -> Ocultar | O200: =IF(O199>controle_formulario!$C$10,"Ocultar","") -> Ocultar | P200: =IF(P199>controle_formulario!$C$10,"Ocultar","") -> Ocultar

Sheet Custos
C5: Custos Diretos
E7: =trat.novo -> 0 | F7: =trat.a -> 0 | G7: =trat.b -> 0 | H7: =trat.c -> 0 | I7: =trat.d -> 0
C9: seringas C/ 10 undades | G9: 1431.86 | H9: 1648.56 | I9: 2531.98
C10: Unidades Anuais | G10: 52 | H10: 32 | I10: 12
C11: tiras para glicemia c/ 50 unidades
C12: Unidades Anuais
C13: lancetas com 30 unidades
C14: Unidades Anuais
C15: insulina fr 10 ml
C16: Unidades Anuais
C17: Item de custo
C18: Unidades Anuais
C20: Custo Anual | E20: =E9*E10 + E11*E12 + E13*E14 + E15*E16 + E17*E18 -> 0 | F20: =F9*F10 + F11*F12 + F13*F14 + F15*F16 + F17*F18 -> 0 | G20: =G9*G10 + G11*G12 + G13*G14 + G15*G16 + G17*G18 -> 74456.72 | H20: =H9*H10 + H11*H12 + H13*H14 + H15*H16 + H17*H18 -> 52753.92 | I20: =I9*I10 + I11*I12 + I13*I14 + I15*I16 + I17*I18 -> 30383.76
C23: Fonte:
C25: Brasíndice e SIMPRO
C33: Custos Associados
E35: =trat.novo -> 0 | F35: =trat.a -> 0 | G35: =trat.b -> 0 | H35: =trat.c -> 0 | I35: =trat.d -> 0
C37: seringas C/ 10 undades
C38: Unidades Anuais
C39: tiras para glicemia c/ 50 unidades
C40: Unidades Anuais
C41: lancetas com 30 unidades
C42: Unidades Anuais
C43: insulina fr 10 ml
C44: Unidades Anuais
C45: Item de custo
C46: Unidades Anuais
C48: Custo Anual | E48: =E37*E38 + E39*E40 + E41*E42 + E43*E44 + E45*E46 -> 0 | F48: =F37*F38 + F39*F40 + F41*F42 + F43*F44 + F45*F46 -> 0 | G48: 0 | H48: 0 | I48: 0
C51: Fonte:
C53: SIMPRO
C54: BRASÍNDICE
C60: Custos Totais
E63: =trat.novo -> 0 | F63: =trat.a -> 0 | G63: =trat.b -> 0 | H63: =trat.c -> 0 | I63: =trat.d -> 0
C65: Custos Diretos | E65: =E20 -> 0 | F65: =F20 -> 0 | G65: 74456.72 | H65: 52753.92 | I65: =I20 -> 30383.76
C66: Custos Associados | E66: =E48 -> 0 | F66: =F48 -> 0 | G66: =G48 -> 0 | H66: =H48 -> 0 | I66: =I48 -> 0
C67: Custo Total | E67: =SUM(E65,E66) -> 0 | F67: =SUM(F65,F66) -> 0 | G67: =SUM(G65,G66) -> 74456.72 | H67: =SUM(H65,H66) -> 52753.92 | I67: =SUM(I65,I66) -> 30383.76
F199: 1 | G199: 2 | H199: 3 | I199: 4
F200: =IF(F199>controle_formulario!$C$10,"Ocultar","") ->  | G200: =IF(G199>controle_formulario!$C$10,"Ocultar","") -> Ocultar | H200: =IF(H199>controle_formulario!$C$10,"Ocultar","") -> Ocultar | I200: =IF(I199>controle_formulario!$C$10,"Ocultar","") -> Ocultar

Sheet Cenarios
L1: População: | M1: Custo:
L2: 1 | M2: 1
C5: =cen.ref -> 0 | K5: =cen.alt1 -> 0
D7: =trat.novo -> 0 | E7: =trat.a -> 0 | F7: =trat.b -> 0 | G7: =trat.c -> 0 | H7: =trat.d -> 0 | I7: Total | L7: =trat.novo -> 0 | M7: =trat.a -> 0 | N7: =trat.b -> 0 | O7: =trat.c -> 0 | P7: =trat.d -> 0 | Q7: Total
C8: Ano 1 | D8: =('Market Share'!D105*$L$2)*(c.total.nova*$M$2) -> 0 | E8: =('Market Share'!E105*$L$2)*(c.total.a*$M$2) -> 0 | F8: =('Market Share'!F105*$L$2)*(c.total.b*$M$2) -> 0 | G8: =('Market Share'!G105*$L$2)*(c.total.c*$M$2) -> 0 | H8: =('Market Share'!H105*$L$2)*(c.total.d*$M$2) -> 0 | I8: =SUM(D8:H8) -> 0 | K8: Ano 1 | L8: =('Market Share'!L105*$L$2)*(c.total.nova*$M$2) -> 0 | M8: =('Market Share'!M105*$L$2)*(c.total.a*$M$2) -> 0 | N8: =('Market Share'!N105*$L$2)*(c.total.b*$M$2) -> 0 | O8: =('Market Share'!O105*$L$2)*(c.total.c*$M$2) -> 0 | P8: =('Market Share'!P105*$L$2)*(c.total.d*$M$2) -> 0 | Q8: =SUM(L8:P8) -> 0
C9: Ano 2 | D9: =('Market Share'!D106*$L$2)*(c.total.nova*$M$2) -> 0 | E9: =('Market Share'!E106*$L$2)*(c.total.a*$M$2) -> 0 | F9: =('Market Share'!F106*$L$2)*(c.total.b*$M$2) -> 0 | G9: =('Market Share'!G106*$L$2)*(c.total.c*$M$2) -> 0 | H9: =('Market Share'!H106*$L$2)*(c.total.d*$M$2) -> 0 | I9: =SUM(D9:H9) -> 0 | K9: Ano 2 | L9: =('Market Share'!L106*$L$2)*(c.total.nova*$M$2) -> 0 | M9: =('Market Share'!M106*$L$2)*(c.total.a*$M$2) -> 0 | N9: =('Market Share'!N106*$L$2)*(c.total.b*$M$2) -> 0 | O9: =('Market Share'!O106*$L$2)*(c.total.c*$M$2) -> 0 | P9: =('Market Share'!P106*$L$2)*(c.total.d*$M$2) -> 0 | Q9: =SUM(L9:P9) -> 0 | AF9: 2 | AG9: =(IF(AF9>controle_formulario!$J$16,"Ocultar","")) -> 
C10: Ano 3 | D10: =('Market Share'!D107*$L$2)*(c.total.nova*$M$2) -> 0 | E10: =('Market Share'!E107*$L$2)*(c.total.a*$M$2) -> 0 | F10: =('Market Share'!F107*$L$2)*(c.total.b*$M$2) -> 0 | G10: =('Market Share'!G107*$L$2)*(c.total.c*$M$2) -> 0 | H10: =('Market Share'!H107*$L$2)*(c.total.d*$M$2) -> 0 | I10: 0 | K10: Ano 3 | L10: =('Market Share'!L107*$L$2)*(c.total.nova*$M$2) -> 0 | M10: =('Market Share'!M107*$L$2)*(c.total.a*$M$2) -> 0 | N10: =('Market Share'!N107*$L$2)*(c.total.b*$M$2) -> 0 | O10: =('Market Share'!O107*$L$2)*(c.total.c*$M$2) -> 0 | P10: =('Market Share'!P107*$L$2)*(c.total.d*$M$2) -> 0 | Q10: 0 | AF10: 3 | AG10: =(IF(AF10>controle_formulario!$J$16,"Ocultar","")) -> 
C11: Ano 4 | D11: =('Market Share'!D108*$L$2)*(c.total.nova*$M$2) -> 0 | E11: =('Market Share'!E108*$L$2)*(c.total.a*$M$2) -> 0 | F11: =('Market Share'!F108*$L$2)*(c.total.b*$M$2) -> 0 | G11: =('Market Share'!G108*$L$2)*(c.total.c*$M$2) -> 0 | H11: =('Market Share'!H108*$L$2)*(c.total.d*$M$2) -> 0 | I11: 0 | K11: Ano 4 | L11: =('Market Share'!L108*$L$2)*(c.total.nova*$M$2) -> 0 | M11: =('Market Share'!M108*$L$2)*(c.total.a*$M$2) -> 0 | N11: =('Market Share'!N108*$L$2)*(c.total.b*$M$2) -> 0 | O11: =('Market Share'!O108*$L$2)*(c.total.c*$M$2) -> 0 | P11: =('Market Share'!P108*$L$2)*(c.total.d*$M$2) -> 0 | Q11: 0 | AF11: 4 | AG11: =(IF(AF11>controle_formulario!$J$16,"Ocultar","")) -> 
C12: Ano 5 | D12: =('Market Share'!D109*$L$2)*(c.total.nova*$M$2) -> 0 | E12: =('Market Share'!E109*$L$2)*(c.total.a*$M$2) -> 0 | F12: =('Market Share'!F109*$L$2)*(c.total.b*$M$2) -> 0 | G12: =('Market Share'!G109*$L$2)*(c.total.c*$M$2) -> 0 | H12: =('Market Share'!H109*$L$2)*(c.total.d*$M$2) -> 0 | I12: 0 | K12: Ano 5 | L12: =('Market Share'!L109*$L$2)*(c.total.nova*$M$2) -> 0 | M12: =('Market Share'!M109*$L$2)*(c.total.a*$M$2) -> 0 | N12: =('Market Share'!N109*$L$2)*(c.total.b*$M$2) -> 0 | O12: =('Market Share'!O109*$L$2)*(c.total.c*$M$2) -> 0 | P12: =('Market Share'!P109*$L$2)*(c.total.d*$M$2) -> 0 | Q12: 0 | AF12: 5 | AG12: =(IF(AF12>controle_formulario!$J$16,"Ocultar","")) -> 
C13: Ano 6 | D13: =('Market Share'!D110*$L$2)*(c.total.nova*$M$2) -> 0 | E13: =('Market Share'!E110*$L$2)*(c.total.a*$M$2) -> 0 | F13: =('Market Share'!F110*$L$2)*(c.total.b*$M$2) -> 0 | G13: =('Market Share'!G110*$L$2)*(c.total.c*$M$2) -> 0 | H13: =('Market Share'!H110*$L$2)*(c.total.d*$M$2) -> 0 | I13: 0 | K13: Ano 6 | L13: =('Market Share'!L110*$L$2)*(c.total.nova*$M$2) -> 0 | M13: =('Market Share'!M110*$L$2)*(c.total.a*$M$2) -> 0 | N13: =('Market Share'!N110*$L$2)*(c.total.b*$M$2) -> 0 | O13: =('Market Share'!O110*$L$2)*(c.total.c*$M$2) -> 0 | P13: =('Market Share'!P110*$L$2)*(c.total.d*$M$2) -> 0 | Q13: 0 | AF13: 6 | AG13: =(IF(AF13>controle_formulario!$J$16,"Ocultar","")) -> Ocultar
C14: Ano 7 | D14: =('Market Share'!D111*$L$2)*(c.total.nova*$M$2) -> 0 | E14: =('Market Share'!E111*$L$2)*(c.total.a*$M$2) -> 0 | F14: =('Market Share'!F111*$L$2)*(c.total.b*$M$2) -> 0 | G14: =('Market Share'!G111*$L$2)*(c.total.c*$M$2) -> 0 | H14: =('Market Share'!H111*$L$2)*(c.total.d*$M$2) -> 0 | I14: 0 | K14: Ano 7 | L14: =('Market Share'!L111*$L$2)*(c.total.nova*$M$2) -> 0 | M14: =('Market Share'!M111*$L$2)*(c.total.a*$M$2) -> 0 | N14: =('Market Share'!N111*$L$2)*(c.total.b*$M$2) -> 0 | O14: =('Market Share'!O111*$L$2)*(c.total.c*$M$2) -> 0 | P14: =('Market Share'!P111*$L$2)*(c.total.d*$M$2) -> 0 | Q14: 0 | AF14: 7 | AG14: =(IF(AF14>controle_formulario!$J$16,"Ocultar","")) -> Ocultar
C15: Ano 8 | D15: =('Market Share'!D112*$L$2)*(c.total.nova*$M$2) -> 0 | E15: =('Market Share'!E112*$L$2)*(c.total.a*$M$2) -> 0 | F15: =('Market Share'!F112*$L$2)*(c.total.b*$M$2) -> 0 | G15: =('Market Share'!G112*$L$2)*(c.total.c*$M$2) -> 0 | H15: =('Market Share'!H112*$L$2)*(c.total.d*$M$2) -> 0 | I15: 0 | K15: Ano 8 | L15: =('Market Share'!L112*$L$2)*(c.total.nova*$M$2) -> 0 | M15: =('Market Share'!M112*$L$2)*(c.total.a*$M$2) -> 0 | N15: =('Market Share'!N112*$L$2)*(c.total.b*$M$2) -> 0 | O15: =('Market Share'!O112*$L$2)*(c.total.c*$M$2) -> 0 | P15: =('Market Share'!P112*$L$2)*(c.total.d*$M$2) -> 0 | Q15: 0 | AF15: 8 | AG15: =(IF(AF15>controle_formulario!$J$16,"Ocultar","")) -> Ocultar
C16: Ano 9 | D16: =('Market Share'!D113*$L$2)*(c.total.nova*$M$2) -> 0 | E16: =('Market Share'!E113*$L$2)*(c.total.a*$M$2) -> 0 | F16: =('Market Share'!F113*$L$2)*(c.total.b*$M$2) -> 0 | G16: =('Market Share'!G113*$L$2)*(c.total.c*$M$2) -> 0 | H16: =('Market Share'!H113*$L$2)*(c.total.d*$M$2) -> 0 | I16: 0 | K16: Ano 9 | L16: =('Market Share'!L113*$L$2)*(c.total.nova*$M$2) -> 0 | M16: =('Market Share'!M113*$L$2)*(c.total.a*$M$2) -> 0 | N16: =('Market Share'!N113*$L$2)*(c.total.b*$M$2) -> 0 | O16: =('Market Share'!O113*$L$2)*(c.total.c*$M$2) -> 0 | P16: =('Market Share'!P113*$L$2)*(c.total.d*$M$2) -> 0 | Q16: 0 | AF16: 9 | AG16: =(IF(AF16>controle_formulario!$J$16,"Ocultar","")) -> Ocultar
C17: Ano 10 | D17: =('Market Share'!D114*$L$2)*(c.total.nova*$M$2) -> 0 | E17: =('Market Share'!E114*$L$2)*(c.total.a*$M$2) -> 0 | F17: =('Market Share'!F114*$L$2)*(c.total.b*$M$2) -> 0 | G17: =('Market Share'!G114*$L$2)*(c.total.c*$M$2) -> 0 | H17: =('Market Share'!H114*$L$2)*(c.total.d*$M$2) -> 0 | I17: 0 | K17: Ano 10 | L17: =('Market Share'!L114*$L$2)*(c.total.nova*$M$2) -> 0 | M17: =('Market Share'!M114*$L$2)*(c.total.a*$M$2) -> 0 | N17: =('Market Share'!N114*$L$2)*(c.total.b*$M$2) -> 0 | O17: =('Market Share'!O114*$L$2)*(c.total.c*$M$2) -> 0 | P17: =('Market Share'!P114*$L$2)*(c.total.d*$M$2) -> 0 | Q17: 0 | AF17: 10 | AG17: =(IF(AF17>controle_formulario!$J$16,"Ocultar","")) -> Ocultar
C18: Total | D18: =SUM(D8:D17) -> 0 | E18: =SUM(E8:E17) -> 0 | F18: 0 | G18: 0 | H18: 0 | I18: 0 | K18: Total | L18: =SUM(L8:L17) -> 0 | M18: =SUM(M8:M17) -> 0 | N18: 0 | O18: 0 | P18: 0 | Q18: 0
C21: =cen.alt2 -> Custo SIASG | K21: =cen.alt3 -> Custo CMED | AG21: =IF($C$23>controle_formulario!$E$16,"Ocultar","") -> Ocultar
AG22: =IF($C$23>controle_formulario!$E$16,"Ocultar","") -> Ocultar
C23: 2 | D23: =trat.novo -> 0 | E23: =trat.a -> 0 | F23: =trat.b -> 0 | G23: =trat.c -> 0 | H23: =trat.d -> 0 | I23: Total | K23: 3 | L23: =trat.novo -> 0 | M23: =trat.a -> 0 | N23: =trat.b -> 0 | O23: =trat.c -> 0 | P23: =trat.d -> 0 | Q23: Total | AG23: =IF($C$23>controle_formulario!$E$16,"Ocultar","") -> Ocultar
C24: Ano 1 | D24: =('Market Share'!D121*$L$2)*(c.total.nova*$M$2) -> 0 | E24: =('Market Share'!E121*$L$2)*(c.total.a*$M$2) -> 0 | F24: =('Market Share'!F121*$L$2)*(c.total.b*$M$2) -> 0 | G24: =('Market Share'!G121*$L$2)*(c.total.c*$M$2) -> 0 | H24: =('Market Share'!H121*$L$2)*(c.total.d*$M$2) -> 0 | I24: =SUM(D24:H24) -> 0 | K24: Ano 1 | L24: =('Market Share'!L121*$L$2)*(c.total.nova*$M$2) -> 0 | M24: =('Market Share'!M121*$L$2)*(c.total.a*$M$2) -> 0 | N24: =('Market Share'!N121*$L$2)*(c.total.b*$M$2) -> 0 | O24: =('Market Share'!O121*$L$2)*(c.total.c*$M$2) -> 0 | P24: =('Market Share'!P121*$L$2)*(c.total.d*$M$2) -> 0 | Q24: =SUM(L24:P24) -> 0 | AG24: =IF($C$23>controle_formulario!$E$16,"Ocultar","") -> Ocultar
C25: Ano 2 | D25: =('Market Share'!D122*$L$2)*(c.total.nova*$M$2) -> 0 | E25: =('Market Share'!E122*$L$2)*(c.total.a*$M$2) -> 0 | F25: =('Market Share'!F122*$L$2)*(c.total.b*$M$2) -> 0 | G25: =('Market Share'!G122*$L$2)*(c.total.c*$M$2) -> 0 | H25: =('Market Share'!H122*$L$2)*(c.total.d*$M$2) -> 0 | I25: =SUM(D25:H25) -> 0 | K25: Ano 2 | L25: =('Market Share'!L122*$L$2)*(c.total.nova*$M$2) -> 0 | M25: =('Market Share'!M122*$L$2)*(c.total.a*$M$2) -> 0 | N25: =('Market Share'!N122*$L$2)*(c.total.b*$M$2) -> 0 | O25: =('Market Share'!O122*$L$2)*(c.total.c*$M$2) -> 0 | P25: =('Market Share'!P122*$L$2)*(c.total.d*$M$2) -> 0 | Q25: =SUM(L25:P25) -> 0 | AF25: 2 | AG25: =(IF(OR(AF25>controle_formulario!$J$16,$C$23>controle_formulario!$E$16),"Ocultar","")) -> Ocultar
C26: Ano 3 | D26: =('Market Share'!D123*$L$2)*(c.total.nova*$M$2) -> 0 | E26: =('Market Share'!E123*$L$2)*(c.total.a*$M$2) -> 0 | F26: =('Market Share'!F123*$L$2)*(c.total.b*$M$2) -> 0 | G26: =('Market Share'!G123*$L$2)*(c.total.c*$M$2) -> 0 | H26: =('Market Share'!H123*$L$2)*(c.total.d*$M$2) -> 0 | I26: 0 | K26: Ano 3 | L26: =('Market Share'!L123*$L$2)*(c.total.nova*$M$2) -> 0 | M26: =('Market Share'!M123*$L$2)*(c.total.a*$M$2) -> 0 | N26: =('Market Share'!N123*$L$2)*(c.total.b*$M$2) -> 0 | O26: =('Market Share'!O123*$L$2)*(c.total.c*$M$2) -> 0 | P26: =('Market Share'!P123*$L$2)*(c.total.d*$M$2) -> 0 | Q26: 0 | AF26: 3 | AG26: =(IF(OR(AF26>controle_formulario!$J$16,$C$23>controle_formulario!$E$16),"Ocultar","")) -> Ocultar
C27: Ano 4 | D27: =('Market Share'!D124*$L$2)*(c.total.nova*$M$2) -> 0 | E27: =('Market Share'!E124*$L$2)*(c.total.a*$M$2) -> 0 | F27: =('Market Share'!F124*$L$2)*(c.total.b*$M$2) -> 0 | G27: =('Market Share'!G124*$L$2)*(c.total.c*$M$2) -> 0 | H27: =('Market Share'!H124*$L$2)*(c.total.d*$M$2) -> 0 | I27: 0 | K27: Ano 4 | L27: =('Market Share'!L124*$L$2)*(c.total.nova*$M$2) -> 0 | M27: =('Market Share'!M124*$L$2)*(c.total.a*$M$2) -> 0 | N27: =('Market Share'!N124*$L$2)*(c.total.b*$M$2) -> 0 | O27: =('Market Share'!O124*$L$2)*(c.total.c*$M$2) -> 0 | P27: =('Market Share'!P124*$L$2)*(c.total.d*$M$2) -> 0 | Q27: 0 | AF27: 4 | AG27: =(IF(OR(AF27>controle_formulario!$J$16,$C$23>controle_formulario!$E$16),"Ocultar","")) -> Ocultar
C28: Ano 5 | D28: =('Market Share'!D125*$L$2)*(c.total.nova*$M$2) -> 0 | E28: =('Market Share'!E125*$L$2)*(c.total.a*$M$2) -> 0 | F28: =('Market Share'!F125*$L$2)*(c.total.b*$M$2) -> 0 | G28: =('Market Share'!G125*$L$2)*(c.total.c*$M$2) -> 0 | H28: =('Market Share'!H125*$L$2)*(c.total.d*$M$2) -> 0 | I28: 0 | K28: Ano 5 | L28: =('Market Share'!L125*$L$2)*(c.total.nova*$M$2) -> 0 | M28: =('Market Share'!M125*$L$2)*(c.total.a*$M$2) -> 0 | N28: =('Market Share'!N125*$L$2)*(c.total.b*$M$2) -> 0 | O28: =('Market Share'!O125*$L$2)*(c.total.c*$M$2) -> 0 | P28: =('Market Share'!P125*$L$2)*(c.total.d*$M$2) -> 0 | Q28: 0 | AF28: 5 | AG28: =(IF(OR(AF28>controle_formulario!$J$16,$C$23>controle_formulario!$E$16),"Ocultar","")) -> Ocultar
C29: Ano 6 | D29: =('Market Share'!D126*$L$2)*(c.total.nova*$M$2) -> 0 | E29: =('Market Share'!E126*$L$2)*(c.total.a*$M$2) -> 0 | F29: =('Market Share'!F126*$L$2)*(c.total.b*$M$2) -> 0 | G29: =('Market Share'!G126*$L$2)*(c.total.c*$M$2) -> 0 | H29: =('Market Share'!H126*$L$2)*(c.total.d*$M$2) -> 0 | I29: 0 | K29: Ano 6 | L29: =('Market Share'!L126*$L$2)*(c.total.nova*$M$2) -> 0 | M29: =('Market Share'!M126*$L$2)*(c.total.a*$M$2) -> 0 | N29: =('Market Share'!N126*$L$2)*(c.total.b*$M$2) -> 0 | O29: =('Market Share'!O126*$L$2)*(c.total.c*$M$2) -> 0 | P29: =('Market Share'!P126*$L$2)*(c.total.d*$M$2) -> 0 | Q29: 0 | AF29: 6 | AG29: =(IF(OR(AF29>controle_formulario!$J$16,$C$23>controle_formulario!$E$16),"Ocultar","")) -> Ocultar
C30: Ano 7 | D30: =('Market Share'!D127*$L$2)*(c.total.nova*$M$2) -> 0 | E30: =('Market Share'!E127*$L$2)*(c.total.a*$M$2) -> 0 | F30: =('Market Share'!F127*$L$2)*(c.total.b*$M$2) -> 0 | G30: =('Market Share'!G127*$L$2)*(c.total.c*$M$2) -> 0 | H30: =('Market Share'!H127*$L$2)*(c.total.d*$M$2) -> 0 | I30: 0 | K30: Ano 7 | L30: =('Market Share'!L127*$L$2)*(c.total.nova*$M$2) -> 0 | M30: =('Market Share'!M127*$L$2)*(c.total.a*$M$2) -> 0 | N30: =('Market Share'!N127*$L$2)*(c.total.b*$M$2) -> 0 | O30: =('Market Share'!O127*$L$2)*(c.total.c*$M$2) -> 0 | P30: =('Market Share'!P127*$L$2)*(c.total.d*$M$2) -> 0 | Q30: 0 | AF30: 7 | AG30: =(IF(OR(AF30>controle_formulario!$J$16,$C$23>controle_formulario!$E$16),"Ocultar","")) -> Ocultar
C31: Ano 8 | D31: =('Market Share'!D128*$L$2)*(c.total.nova*$M$2) -> 0 | E31: =('Market Share'!E128*$L$2)*(c.total.a*$M$2) -> 0 | F31: =('Market Share'!F128*$L$2)*(c.total.b*$M$2) -> 0 | G31: =('Market Share'!G128*$L$2)*(c.total.c*$M$2) -> 0 | H31: =('Market Share'!H128*$L$2)*(c.total.d*$M$2) -> 0 | I31: 0 | K31: Ano 8 | L31: =('Market Share'!L128*$L$2)*(c.total.nova*$M$2) -> 0 | M31: =('Market Share'!M128*$L$2)*(c.total.a*$M$2) -> 0 | N31: =('Market Share'!N128*$L$2)*(c.total.b*$M$2) -> 0 | O31: =('Market Share'!O128*$L$2)*(c.total.c*$M$2) -> 0 | P31: =('Market Share'!P128*$L$2)*(c.total.d*$M$2) -> 0 | Q31: 0 | AF31: 8 | AG31: =(IF(OR(AF31>controle_formulario!$J$16,$C$23>controle_formulario!$E$16),"Ocultar","")) -> Ocultar
C32: Ano 9 | D32: =('Market Share'!D129*$L$2)*(c.total.nova*$M$2) -> 0 | E32: =('Market Share'!E129*$L$2)*(c.total.a*$M$2) -> 0 | F32: =('Market Share'!F129*$L$2)*(c.total.b*$M$2) -> 0 | G32: =('Market Share'!G129*$L$2)*(c.total.c*$M$2) -> 0 | H32: =('Market Share'!H129*$L$2)*(c.total.d*$M$2) -> 0 | I32: 0 | K32: Ano 9 | L32: =('Market Share'!L129*$L$2)*(c.total.nova*$M$2) -> 0 | M32: =('Market Share'!M129*$L$2)*(c.total.a*$M$2) -> 0 | N32: =('Market Share'!N129*$L$2)*(c.total.b*$M$2) -> 0 | O32: =('Market Share'!O129*$L$2)*(c.total.c*$M$2) -> 0 | P32: =('Market Share'!P129*$L$2)*(c.total.d*$M$2) -> 0 | Q32: 0 | AF32: 9 | AG32: =(IF(OR(AF32>controle_formulario!$J$16,$C$23>controle_formulario!$E$16),"Ocultar","")) -> Ocultar
C33: Ano 10 | D33: =('Market Share'!D130*$L$2)*(c.total.nova*$M$2) -> 0 | E33: =('Market Share'!E130*$L$2)*(c.total.a*$M$2) -> 0 | F33: =('Market Share'!F130*$L$2)*(c.total.b*$M$2) -> 0 | G33: =('Market Share'!G130*$L$2)*(c.total.c*$M$2) -> 0 | H33: =('Market Share'!H130*$L$2)*(c.total.d*$M$2) -> 0 | I33: 0 | K33: Ano 10 | L33: =('Market Share'!L130*$L$2)*(c.total.nova*$M$2) -> 0 | M33: =('Market Share'!M130*$L$2)*(c.total.a*$M$2) -> 0 | N33: =('Market Share'!N130*$L$2)*(c.total.b*$M$2) -> 0 | O33: =('Market Share'!O130*$L$2)*(c.total.c*$M$2) -> 0 | P33: =('Market Share'!P130*$L$2)*(c.total.d*$M$2) -> 0 | Q33: 0 | AF33: 10 | AG33: =(IF(OR(AF33>controle_formulario!$J$16,$C$23>controle_formulario!$E$16),"Ocultar","")) -> Ocultar
C34: Total | D34: =SUM(D24:D33) -> 0 | E34: =SUM(E24:E33) -> 0 | F34: 0 | G34: 0 | H34: 0 | I34: 0 | K34: Total | L34: =SUM(L24:L33) -> 0 | M34: =SUM(M24:M33) -> 0 | N34: 0 | O34: 0 | P34: 0 | Q34: 0 | AG34: =IF($C$23>controle_formulario!$E$16,"Ocultar","") -> Ocultar
C37: =cen.alt4 -> Cenário Alternativo 4 | K37: =cen.alt5 -> Cenário Alternativo 5 | AG37: =IF($C$39>controle_formulario!$E$16,"Ocultar","") -> Ocultar
AG38: =IF($C$39>controle_formulario!$E$16,"Ocultar","") -> Ocultar
C39: 4 | D39: =trat.novo -> 0 | E39: =trat.a -> 0 | F39: =trat.b -> 0 | G39: =trat.c -> 0 | H39: =trat.d -> 0 | I39: Total | K39: 5 | L39: =trat.novo -> 0 | M39: =trat.a -> 0 | N39: =trat.b -> 0 | O39: =trat.c -> 0 | P39: =trat.d -> 0 | Q39: Total | AG39: =IF($C$39>controle_formulario!$E$16,"Ocultar","") -> Ocultar
C40: Ano 1 | D40: =('Market Share'!D137*$L$2)*(c.total.nova*$M$2) -> 0 | E40: =('Market Share'!E137*$L$2)*(c.total.a*$M$2) -> 0 | F40: =('Market Share'!F137*$L$2)*(c.total.b*$M$2) -> 0 | G40: =('Market Share'!G137*$L$2)*(c.total.c*$M$2) -> 0 | H40: =('Market Share'!H137*$L$2)*(c.total.d*$M$2) -> 0 | I40: =SUM(D40:H40) -> 0 | K40: Ano 1 | L40: =('Market Share'!L137*$L$2)*(c.total.nova*$M$2) -> 0 | M40: =('Market Share'!M137*$L$2)*(c.total.a*$M$2) -> 0 | N40: =('Market Share'!N137*$L$2)*(c.total.b*$M$2) -> 0 | O40: =('Market Share'!O137*$L$2)*(c.total.c*$M$2) -> 0 | P40: =('Market Share'!P137*$L$2)*(c.total.d*$M$2) -> 0 | Q40: =SUM(L40:P40) -> 0 | AG40: =IF($C$39>controle_formulario!$E$16,"Ocultar","") -> Ocultar
C41: Ano 2 | D41: =('Market Share'!D138*$L$2)*(c.total.nova*$M$2) -> 0 | E41: =('Market Share'!E138*$L$2)*(c.total.a*$M$2) -> 0 | F41: =('Market Share'!F138*$L$2)*(c.total.b*$M$2) -> 0 | G41: =('Market Share'!G138*$L$2)*(c.total.c*$M$2) -> 0 | H41: =('Market Share'!H138*$L$2)*(c.total.d*$M$2) -> 0 | I41: =SUM(D41:H41) -> 0 | K41: Ano 2 | L41: =('Market Share'!L138*$L$2)*(c.total.nova*$M$2) -> 0 | M41: =('Market Share'!M138*$L$2)*(c.total.a*$M$2) -> 0 | N41: =('Market Share'!N138*$L$2)*(c.total.b*$M$2) -> 0 | O41: =('Market Share'!O138*$L$2)*(c.total.c*$M$2) -> 0 | P41: =('Market Share'!P138*$L$2)*(c.total.d*$M$2) -> 0 | Q41: =SUM(L41:P41) -> 0 | AF41: 2 | AG41: =(IF(OR(AF41>controle_formulario!$J$16,$C$39>controle_formulario!$E$16),"Ocultar","")) -> Ocultar
C42: Ano 3 | D42: =('Market Share'!D139*$L$2)*(c.total.nova*$M$2) -> 0 | E42: =('Market Share'!E139*$L$2)*(c.total.a*$M$2) -> 0 | F42: =('Market Share'!F139*$L$2)*(c.total.b*$M$2) -> 0 | G42: =('Market Share'!G139*$L$2)*(c.total.c*$M$2) -> 0 | H42: =('Market Share'!H139*$L$2)*(c.total.d*$M$2) -> 0 | I42: 0 | K42: Ano 3 | L42: =('Market Share'!L139*$L$2)*(c.total.nova*$M$2) -> 0 | M42: =('Market Share'!M139*$L$2)*(c.total.a*$M$2) -> 0 | N42: =('Market Share'!N139*$L$2)*(c.total.b*$M$2) -> 0 | O42: =('Market Share'!O139*$L$2)*(c.total.c*$M$2) -> 0 | P42: =('Market Share'!P139*$L$2)*(c.total.d*$M$2) -> 0 | Q42: 0 | AF42: 3 | AG42: =(IF(OR(AF42>controle_formulario!$J$16,$C$39>controle_formulario!$E$16),"Ocultar","")) -> Ocultar
C43: Ano 4 | D43: =('Market Share'!D140*$L$2)*(c.total.nova*$M$2) -> 0 | E43: =('Market Share'!E140*$L$2)*(c.total.a*$M$2) -> 0 | F43: =('Market Share'!F140*$L$2)*(c.total.b*$M$2) -> 0 | G43: =('Market Share'!G140*$L$2)*(c.total.c*$M$2) -> 0 | H43: =('Market Share'!H140*$L$2)*(c.total.d*$M$2) -> 0 | I43: 0 | K43: Ano 4 | L43: =('Market Share'!L140*$L$2)*(c.total.nova*$M$2) -> 0 | M43: =('Market Share'!M140*$L$2)*(c.total.a*$M$2) -> 0 | N43: =('Market Share'!N140*$L$2)*(c.total.b*$M$2) -> 0 | O43: =('Market Share'!O140*$L$2)*(c.total.c*$M$2) -> 0 | P43: =('Market Share'!P140*$L$2)*(c.total.d*$M$2) -> 0 | Q43: 0 | AF43: 4 | AG43: =(IF(OR(AF43>controle_formulario!$J$16,$C$39>controle_formulario!$E$16),"Ocultar","")) -> Ocultar
C44: Ano 5 | D44: =('Market Share'!D141*$L$2)*(c.total.nova*$M$2) -> 0 | E44: =('Market Share'!E141*$L$2)*(c.total.a*$M$2) -> 0 | F44: =('Market Share'!F141*$L$2)*(c.total.b*$M$2) -> 0 | G44: =('Market Share'!G141*$L$2)*(c.total.c*$M$2) -> 0 | H44: =('Market Share'!H141*$L$2)*(c.total.d*$M$2) -> 0 | I44: 0 | K44: Ano 5 | L44: =('Market Share'!L141*$L$2)*(c.total.nova*$M$2) -> 0 | M44: =('Market Share'!M141*$L$2)*(c.total.a*$M$2) -> 0 | N44: =('Market Share'!N141*$L$2)*(c.total.b*$M$2) -> 0 | O44: =('Market Share'!O141*$L$2)*(c.total.c*$M$2) -> 0 | P44: =('Market Share'!P141*$L$2)*(c.total.d*$M$2) -> 0 | Q44: 0 | AF44: 5 | AG44: =(IF(OR(AF44>controle_formulario!$J$16,$C$39>controle_formulario!$E$16),"Ocultar","")) -> Ocultar
C45: Ano 6 | D45: =('Market Share'!D142*$L$2)*(c.total.nova*$M$2) -> 0 | E45: =('Market Share'!E142*$L$2)*(c.total.a*$M$2) -> 0 | F45: =('Market Share'!F142*$L$2)*(c.total.b*$M$2) -> 0 | G45: =('Market Share'!G142*$L$2)*(c.total.c*$M$2) -> 0 | H45: =('Market Share'!H142*$L$2)*(c.total.d*$M$2) -> 0 | I45: 0 | K45: Ano 6 | L45: =('Market Share'!L142*$L$2)*(c.total.nova*$M$2) -> 0 | M45: =('Market Share'!M142*$L$2)*(c.total.a*$M$2) -> 0 | N45: =('Market Share'!N142*$L$2)*(c.total.b*$M$2) -> 0 | O45: =('Market Share'!O142*$L$2)*(c.total.c*$M$2) -> 0 | P45: =('Market Share'!P142*$L$2)*(c.total.d*$M$2) -> 0 | Q45: 0 | AF45: 6 | AG45: =(IF(OR(AF45>controle_formulario!$J$16,$C$39>controle_formulario!$E$16),"Ocultar","")) -> Ocultar
C46: Ano 7 | D46: =('Market Share'!D143*$L$2)*(c.total.nova*$M$2) -> 0 | E46: =('Market Share'!E143*$L$2)*(c.total.a*$M$2) -> 0 | F46: =('Market Share'!F143*$L$2)*(c.total.b*$M$2) -> 0 | G46: =('Market Share'!G143*$L$2)*(c.total.c*$M$2) -> 0 | H46: =('Market Share'!H143*$L$2)*(c.total.d*$M$2) -> 0 | I46: 0 | K46: Ano 7 | L46: =('Market Share'!L143*$L$2)*(c.total.nova*$M$2) -> 0 | M46: =('Market Share'!M143*$L$2)*(c.total.a*$M$2) -> 0 | N46: =('Market Share'!N143*$L$2)*(c.total.b*$M$2) -> 0 | O46: =('Market Share'!O143*$L$2)*(c.total.c*$M$2) -> 0 | P46: =('Market Share'!P143*$L$2)*(c.total.d*$M$2) -> 0 | Q46: 0 | AF46: 7 | AG46: =(IF(OR(AF46>controle_formulario!$J$16,$C$39>controle_formulario!$E$16),"Ocultar","")) -> Ocultar
C47: Ano 8 | D47: =('Market Share'!D144*$L$2)*(c.total.nova*$M$2) -> 0 | E47: =('Market Share'!E144*$L$2)*(c.total.a*$M$2) -> 0 | F47: =('Market Share'!F144*$L$2)*(c.total.b*$M$2) -> 0 | G47: =('Market Share'!G144*$L$2)*(c.total.c*$M$2) -> 0 | H47: =('Market Share'!H144*$L$2)*(c.total.d*$M$2) -> 0 | I47: 0 | K47: Ano 8 | L47: =('Market Share'!L144*$L$2)*(c.total.nova*$M$2) -> 0 | M47: =('Market Share'!M144*$L$2)*(c.total.a*$M$2) -> 0 | N47: =('Market Share'!N144*$L$2)*(c.total.b*$M$2) -> 0 | O47: =('Market Share'!O144*$L$2)*(c.total.c*$M$2) -> 0 | P47: =('Market Share'!P144*$L$2)*(c.total.d*$M$2) -> 0 | Q47: 0 | AF47: 8 | AG47: =(IF(OR(AF47>controle_formulario!$J$16,$C$39>controle_formulario!$E$16),"Ocultar","")) -> Ocultar
C48: Ano 9 | D48: =('Market Share'!D145*$L$2)*(c.total.nova*$M$2) -> 0 | E48: =('Market Share'!E145*$L$2)*(c.total.a*$M$2) -> 0 | F48: =('Market Share'!F145*$L$2)*(c.total.b*$M$2) -> 0 | G48: =('Market Share'!G145*$L$2)*(c.total.c*$M$2) -> 0 | H48: =('Market Share'!H145*$L$2)*(c.total.d*$M$2) -> 0 | I48: 0 | K48: Ano 9 | L48: =('Market Share'!L145*$L$2)*(c.total.nova*$M$2) -> 0 | M48: =('Market Share'!M145*$L$2)*(c.total.a*$M$2) -> 0 | N48: =('Market Share'!N145*$L$2)*(c.total.b*$M$2) -> 0 | O48: =('Market Share'!O145*$L$2)*(c.total.c*$M$2) -> 0 | P48: =('Market Share'!P145*$L$2)*(c.total.d*$M$2) -> 0 | Q48: 0 | AF48: 9 | AG48: =(IF(OR(AF48>controle_formulario!$J$16,$C$39>controle_formulario!$E$16),"Ocultar","")) -> Ocultar
C49: Ano 10 | D49: =('Market Share'!D146*$L$2)*(c.total.nova*$M$2) -> 0 | E49: =('Market Share'!E146*$L$2)*(c.total.a*$M$2) -> 0 | F49: =('Market Share'!F146*$L$2)*(c.total.b*$M$2) -> 0 | G49: =('Market Share'!G146*$L$2)*(c.total.c*$M$2) -> 0 | H49: =('Market Share'!H146*$L$2)*(c.total.d*$M$2) -> 0 | I49: 0 | K49: Ano 10 | L49: =('Market Share'!L146*$L$2)*(c.total.nova*$M$2) -> 0 | M49: =('Market Share'!M146*$L$2)*(c.total.a*$M$2) -> 0 | N49: =('Market Share'!N146*$L$2)*(c.total.b*$M$2) -> 0 | O49: =('Market Share'!O146*$L$2)*(c.total.c*$M$2) -> 0 | P49: =('Market Share'!P146*$L$2)*(c.total.d*$M$2) -> 0 | Q49: 0 | AF49: 10 | AG49: =(IF(OR(AF49>controle_formulario!$J$16,$C$39>controle_formulario!$E$16),"Ocultar","")) -> Ocultar
C50: Total | D50: =SUM(D40:D49) -> 0 | E50: =SUM(E40:E49) -> 0 | F50: 0 | G50: 0 | H50: 0 | I50: 0 | K50: Total | L50: =SUM(L40:L49) -> 0 | M50: =SUM(M40:M49) -> 0 | N50: 0 | O50: 0 | P50: 0 | Q50: 0 | AG50: =IF($C$39>controle_formulario!$E$16,"Ocultar","") -> Ocultar
C53: =cen.alt6 -> Cenário Alternativo 6 | K53: =cen.alt7 -> Cenário Alternativo 7 | AG53: =IF($C$55>controle_formulario!$E$16,"Ocultar","") -> Ocultar
AG54: =IF($C$55>controle_formulario!$E$16,"Ocultar","") -> Ocultar
C55: 6 | D55: =trat.novo -> 0 | E55: =trat.a -> 0 | F55: =trat.b -> 0 | G55: =trat.c -> 0 | H55: =trat.d -> 0 | I55: Total | K55: 7 | L55: =trat.novo -> 0 | M55: =trat.a -> 0 | N55: =trat.b -> 0 | O55: =trat.c -> 0 | P55: =trat.d -> 0 | Q55: Total | AG55: =IF($C$55>controle_formulario!$E$16,"Ocultar","") -> Ocultar
C56: Ano 1 | D56: =('Market Share'!D153*$L$2)*(c.total.nova*$M$2) -> 0 | E56: =('Market Share'!E153*$L$2)*(c.total.a*$M$2) -> 0 | F56: =('Market Share'!F153*$L$2)*(c.total.b*$M$2) -> 0 | G56: =('Market Share'!G153*$L$2)*(c.total.c*$M$2) -> 0 | H56: =('Market Share'!H153*$L$2)*(c.total.d*$M$2) -> 0 | I56: =SUM(D56:H56) -> 0 | K56: Ano 1 | L56: =('Market Share'!L153*$L$2)*(c.total.nova*$M$2) -> 0 | M56: =('Market Share'!M153*$L$2)*(c.total.a*$M$2) -> 0 | N56: =('Market Share'!N153*$L$2)*(c.total.b*$M$2) -> 0 | O56: =('Market Share'!O153*$L$2)*(c.total.c*$M$2) -> 0 | P56: =('Market Share'!P153*$L$2)*(c.total.d*$M$2) -> 0 | Q56: =SUM(L56:P56) -> 0 | AG56: =IF($C$55>controle_formulario!$E$16,"Ocultar","") -> Ocultar
C57: Ano 2 | D57: =('Market Share'!D154*$L$2)*(c.total.nova*$M$2) -> 0 | E57: =('Market Share'!E154*$L$2)*(c.total.a*$M$2) -> 0 | F57: =('Market Share'!F154*$L$2)*(c.total.b*$M$2) -> 0 | G57: =('Market Share'!G154*$L$2)*(c.total.c*$M$2) -> 0 | H57: =('Market Share'!H154*$L$2)*(c.total.d*$M$2) -> 0 | I57: =SUM(D57:H57) -> 0 | K57: Ano 2 | L57: =('Market Share'!L154*$L$2)*(c.total.nova*$M$2) -> 0 | M57: =('Market Share'!M154*$L$2)*(c.total.a*$M$2) -> 0 | N57: =('Market Share'!N154*$L$2)*(c.total.b*$M$2) -> 0 | O57: =('Market Share'!O154*$L$2)*(c.total.c*$M$2) -> 0 | P57: =('Market Share'!P154*$L$2)*(c.total.d*$M$2) -> 0 | Q57: =SUM(L57:P57) -> 0 | AF57: 2 | AG57: =(IF(OR(AF57>controle_formulario!$J$16,$C$55>controle_formulario!$E$16),"Ocultar","")) -> Ocultar
C58: Ano 3 | D58: =('Market Share'!D155*$L$2)*(c.total.nova*$M$2) -> 0 | E58: =('Market Share'!E155*$L$2)*(c.total.a*$M$2) -> 0 | F58: =('Market Share'!F155*$L$2)*(c.total.b*$M$2) -> 0 | G58: =('Market Share'!G155*$L$2)*(c.total.c*$M$2) -> 0 | H58: =('Market Share'!H155*$L$2)*(c.total.d*$M$2) -> 0 | I58: 0 | K58: Ano 3 | L58: =('Market Share'!L155*$L$2)*(c.total.nova*$M$2) -> 0 | M58: =('Market Share'!M155*$L$2)*(c.total.a*$M$2) -> 0 | N58: =('Market Share'!N155*$L$2)*(c.total.b*$M$2) -> 0 | O58: =('Market Share'!O155*$L$2)*(c.total.c*$M$2) -> 0 | P58: =('Market Share'!P155*$L$2)*(c.total.d*$M$2) -> 0 | Q58: 0 | AF58: 3 | AG58: =(IF(OR(AF58>controle_formulario!$J$16,$C$55>controle_formulario!$E$16),"Ocultar","")) -> Ocultar
C59: Ano 4 | D59: =('Market Share'!D156*$L$2)*(c.total.nova*$M$2) -> 0 | E59: =('Market Share'!E156*$L$2)*(c.total.a*$M$2) -> 0 | F59: =('Market Share'!F156*$L$2)*(c.total.b*$M$2) -> 0 | G59: =('Market Share'!G156*$L$2)*(c.total.c*$M$2) -> 0 | H59: =('Market Share'!H156*$L$2)*(c.total.d*$M$2) -> 0 | I59: 0 | K59: Ano 4 | L59: =('Market Share'!L156*$L$2)*(c.total.nova*$M$2) -> 0 | M59: =('Market Share'!M156*$L$2)*(c.total.a*$M$2) -> 0 | N59: =('Market Share'!N156*$L$2)*(c.total.b*$M$2) -> 0 | O59: =('Market Share'!O156*$L$2)*(c.total.c*$M$2) -> 0 | P59: =('Market Share'!P156*$L$2)*(c.total.d*$M$2) -> 0 | Q59: 0 | AF59: 4 | AG59: =(IF(OR(AF59>controle_formulario!$J$16,$C$55>controle_formulario!$E$16),"Ocultar","")) -> Ocultar
C60: Ano 5 | D60: =('Market Share'!D157*$L$2)*(c.total.nova*$M$2) -> 0 | E60: =('Market Share'!E157*$L$2)*(c.total.a*$M$2) -> 0 | F60: =('Market Share'!F157*$L$2)*(c.total.b*$M$2) -> 0 | G60: =('Market Share'!G157*$L$2)*(c.total.c*$M$2) -> 0 | H60: =('Market Share'!H157*$L$2)*(c.total.d*$M$2) -> 0 | I60: 0 | K60: Ano 5 | L60: =('Market Share'!L157*$L$2)*(c.total.nova*$M$2) -> 0 | M60: =('Market Share'!M157*$L$2)*(c.total.a*$M$2) -> 0 | N60: =('Market Share'!N157*$L$2)*(c.total.b*$M$2) -> 0 | O60: =('Market Share'!O157*$L$2)*(c.total.c*$M$2) -> 0 | P60: =('Market Share'!P157*$L$2)*(c.total.d*$M$2) -> 0 | Q60: 0 | AF60: 5 | AG60: =(IF(OR(AF60>controle_formulario!$J$16,$C$55>controle_formulario!$E$16),"Ocultar","")) -> Ocultar
C61: Ano 6 | D61: =('Market Share'!D158*$L$2)*(c.total.nova*$M$2) -> 0 | E61: =('Market Share'!E158*$L$2)*(c.total.a*$M$2) -> 0 | F61: =('Market Share'!F158*$L$2)*(c.total.b*$M$2) -> 0 | G61: =('Market Share'!G158*$L$2)*(c.total.c*$M$2) -> 0 | H61: =('Market Share'!H158*$L$2)*(c.total.d*$M$2) -> 0 | I61: 0 | K61: Ano 6 | L61: =('Market Share'!L158*$L$2)*(c.total.nova*$M$2) -> 0 | M61: =('Market Share'!M158*$L$2)*(c.total.a*$M$2) -> 0 | N61: =('Market Share'!N158*$L$2)*(c.total.b*$M$2) -> 0 | O61: =('Market Share'!O158*$L$2)*(c.total.c*$M$2) -> 0 | P61: =('Market Share'!P158*$L$2)*(c.total.d*$M$2) -> 0 | Q61: 0 | AF61: 6 | AG61: =(IF(OR(AF61>controle_formulario!$J$16,$C$55>controle_formulario!$E$16),"Ocultar","")) -> Ocultar
C62: Ano 7 | D62: =('Market Share'!D159*$L$2)*(c.total.nova*$M$2) -> 0 | E62: =('Market Share'!E159*$L$2)*(c.total.a*$M$2) -> 0 | F62: =('Market Share'!F159*$L$2)*(c.total.b*$M$2) -> 0 | G62: =('Market Share'!G159*$L$2)*(c.total.c*$M$2) -> 0 | H62: =('Market Share'!H159*$L$2)*(c.total.d*$M$2) -> 0 | I62: 0 | K62: Ano 7 | L62: =('Market Share'!L159*$L$2)*(c.total.nova*$M$2) -> 0 | M62: =('Market Share'!M159*$L$2)*(c.total.a*$M$2) -> 0 | N62: =('Market Share'!N159*$L$2)*(c.total.b*$M$2) -> 0 | O62: =('Market Share'!O159*$L$2)*(c.total.c*$M$2) -> 0 | P62: =('Market Share'!P159*$L$2)*(c.total.d*$M$2) -> 0 | Q62: 0 | AF62: 7 | AG62: =(IF(OR(AF62>controle_formulario!$J$16,$C$55>controle_formulario!$E$16),"Ocultar","")) -> Ocultar
C63: Ano 8 | D63: =('Market Share'!D160*$L$2)*(c.total.nova*$M$2) -> 0 | E63: =('Market Share'!E160*$L$2)*(c.total.a*$M$2) -> 0 | F63: =('Market Share'!F160*$L$2)*(c.total.b*$M$2) -> 0 | G63: =('Market Share'!G160*$L$2)*(c.total.c*$M$2) -> 0 | H63: =('Market Share'!H160*$L$2)*(c.total.d*$M$2) -> 0 | I63: 0 | K63: Ano 8 | L63: =('Market Share'!L160*$L$2)*(c.total.nova*$M$2) -> 0 | M63: =('Market Share'!M160*$L$2)*(c.total.a*$M$2) -> 0 | N63: =('Market Share'!N160*$L$2)*(c.total.b*$M$2) -> 0 | O63: =('Market Share'!O160*$L$2)*(c.total.c*$M$2) -> 0 | P63: =('Market Share'!P160*$L$2)*(c.total.d*$M$2) -> 0 | Q63: 0 | AF63: 8 | AG63: =(IF(OR(AF63>controle_formulario!$J$16,$C$55>controle_formulario!$E$16),"Ocultar","")) -> Ocultar
C64: Ano 9 | D64: =('Market Share'!D161*$L$2)*(c.total.nova*$M$2) -> 0 | E64: =('Market Share'!E161*$L$2)*(c.total.a*$M$2) -> 0 | F64: =('Market Share'!F161*$L$2)*(c.total.b*$M$2) -> 0 | G64: =('Market Share'!G161*$L$2)*(c.total.c*$M$2) -> 0 | H64: =('Market Share'!H161*$L$2)*(c.total.d*$M$2) -> 0 | I64: 0 | K64: Ano 9 | L64: =('Market Share'!L161*$L$2)*(c.total.nova*$M$2) -> 0 | M64: =('Market Share'!M161*$L$2)*(c.total.a*$M$2) -> 0 | N64: =('Market Share'!N161*$L$2)*(c.total.b*$M$2) -> 0 | O64: =('Market Share'!O161*$L$2)*(c.total.c*$M$2) -> 0 | P64: =('Market Share'!P161*$L$2)*(c.total.d*$M$2) -> 0 | Q64: 0 | AF64: 9 | AG64: =(IF(OR(AF64>controle_formulario!$J$16,$C$55>controle_formulario!$E$16),"Ocultar","")) -> Ocultar
C65: Ano 10 | D65: =('Market Share'!D162*$L$2)*(c.total.nova*$M$2) -> 0 | E65: =('Market Share'!E162*$L$2)*(c.total.a*$M$2) -> 0 | F65: =('Market Share'!F162*$L$2)*(c.total.b*$M$2) -> 0 | G65: =('Market Share'!G162*$L$2)*(c.total.c*$M$2) -> 0 | H65: =('Market Share'!H162*$L$2)*(c.total.d*$M$2) -> 0 | I65: 0 | K65: Ano 10 | L65: =('Market Share'!L162*$L$2)*(c.total.nova*$M$2) -> 0 | M65: =('Market Share'!M162*$L$2)*(c.total.a*$M$2) -> 0 | N65: =('Market Share'!N162*$L$2)*(c.total.b*$M$2) -> 0 | O65: =('Market Share'!O162*$L$2)*(c.total.c*$M$2) -> 0 | P65: =('Market Share'!P162*$L$2)*(c.total.d*$M$2) -> 0 | Q65: 0 | AF65: 10 | AG65: =(IF(OR(AF65>controle_formulario!$J$16,$C$55>controle_formulario!$E$16),"Ocultar","")) -> Ocultar
C66: Total | D66: =SUM(D56:D65) -> 0 | E66: =SUM(E56:E65) -> 0 | F66: 0 | G66: 0 | H66: 0 | I66: 0 | K66: Total | L66: =SUM(L56:L65) -> 0 | M66: =SUM(M56:M65) -> 0 | N66: 0 | O66: 0 | P66: 0 | Q66: 0 | AG66: =IF($C$55>controle_formulario!$E$16,"Ocultar","") -> Ocultar
C69: =cen.alt8 -> Cenário Alternativo 8 | K69: =cen.alt9 -> Cenário Alternativo 9 | AG69: =IF($C$71>controle_formulario!$E$16,"Ocultar","") -> Ocultar
AG70: =IF($C$71>controle_formulario!$E$16,"Ocultar","") -> Ocultar
C71: 8 | D71: =trat.novo -> 0 | E71: =trat.a -> 0 | F71: =trat.b -> 0 | G71: =trat.c -> 0 | H71: =trat.d -> 0 | I71: Total | K71: 9 | L71: =trat.novo -> 0 | M71: =trat.a -> 0 | N71: =trat.b -> 0 | O71: =trat.c -> 0 | P71: =trat.d -> 0 | Q71: Total | AG71: =IF($C$71>controle_formulario!$E$16,"Ocultar","") -> Ocultar
C72: Ano 1 | D72: =('Market Share'!D169*$L$2)*(c.total.nova*$M$2) -> 0 | E72: =('Market Share'!E169*$L$2)*(c.total.a*$M$2) -> 0 | F72: =('Market Share'!F169*$L$2)*(c.total.b*$M$2) -> 0 | G72: =('Market Share'!G169*$L$2)*(c.total.c*$M$2) -> 0 | H72: =('Market Share'!H169*$L$2)*(c.total.d*$M$2) -> 0 | I72: =SUM(D72:H72) -> 0 | K72: Ano 1 | L72: =('Market Share'!L169*$L$2)*(c.total.nova*$M$2) -> 0 | M72: =('Market Share'!M169*$L$2)*(c.total.a*$M$2) -> 0 | N72: =('Market Share'!N169*$L$2)*(c.total.b*$M$2) -> 0 | O72: =('Market Share'!O169*$L$2)*(c.total.c*$M$2) -> 0 | P72: =('Market Share'!P169*$L$2)*(c.total.d*$M$2) -> 0 | Q72: =SUM(L72:P72) -> 0 | AG72: =IF($C$71>controle_formulario!$E$16,"Ocultar","") -> Ocultar
C73: Ano 2 | D73: =('Market Share'!D170*$L$2)*(c.total.nova*$M$2) -> 0 | E73: =('Market Share'!E170*$L$2)*(c.total.a*$M$2) -> 0 | F73: =('Market Share'!F170*$L$2)*(c.total.b*$M$2) -> 0 | G73: =('Market Share'!G170*$L$2)*(c.total.c*$M$2) -> 0 | H73: =('Market Share'!H170*$L$2)*(c.total.d*$M$2) -> 0 | I73: =SUM(D73:H73) -> 0 | K73: Ano 2 | L73: =('Market Share'!L170*$L$2)*(c.total.nova*$M$2) -> 0 | M73: =('Market Share'!M170*$L$2)*(c.total.a*$M$2) -> 0 | N73: =('Market Share'!N170*$L$2)*(c.total.b*$M$2) -> 0 | O73: =('Market Share'!O170*$L$2)*(c.total.c*$M$2) -> 0 | P73: =('Market Share'!P170*$L$2)*(c.total.d*$M$2) -> 0 | Q73: =SUM(L73:P73) -> 0 | AF73: 2 | AG73: =(IF(OR(AF73>controle_formulario!$J$16,$C$71>controle_formulario!$E$16),"Ocultar","")) -> Ocultar
C74: Ano 3 | D74: =('Market Share'!D171*$L$2)*(c.total.nova*$M$2) -> 0 | E74: =('Market Share'!E171*$L$2)*(c.total.a*$M$2) -> 0 | F74: =('Market Share'!F171*$L$2)*(c.total.b*$M$2) -> 0 | G74: =('Market Share'!G171*$L$2)*(c.total.c*$M$2) -> 0 | H74: =('Market Share'!H171*$L$2)*(c.total.d*$M$2) -> 0 | I74: 0 | K74: Ano 3 | L74: =('Market Share'!L171*$L$2)*(c.total.nova*$M$2) -> 0 | M74: =('Market Share'!M171*$L$2)*(c.total.a*$M$2) -> 0 | N74: =('Market Share'!N171*$L$2)*(c.total.b*$M$2) -> 0 | O74: =('Market Share'!O171*$L$2)*(c.total.c*$M$2) -> 0 | P74: =('Market Share'!P171*$L$2)*(c.total.d*$M$2) -> 0 | Q74: 0 | AF74: 3 | AG74: =(IF(OR(AF74>controle_formulario!$J$16,$C$71>controle_formulario!$E$16),"Ocultar","")) -> Ocultar
C75: Ano 4 | D75: =('Market Share'!D172*$L$2)*(c.total.nova*$M$2) -> 0 | E75: =('Market Share'!E172*$L$2)*(c.total.a*$M$2) -> 0 | F75: =('Market Share'!F172*$L$2)*(c.total.b*$M$2) -> 0 | G75: =('Market Share'!G172*$L$2)*(c.total.c*$M$2) -> 0 | H75: =('Market Share'!H172*$L$2)*(c.total.d*$M$2) -> 0 | I75: 0 | K75: Ano 4 | L75: =('Market Share'!L172*$L$2)*(c.total.nova*$M$2) -> 0 | M75: =('Market Share'!M172*$L$2)*(c.total.a*$M$2) -> 0 | N75: =('Market Share'!N172*$L$2)*(c.total.b*$M$2) -> 0 | O75: =('Market Share'!O172*$L$2)*(c.total.c*$M$2) -> 0 | P75: =('Market Share'!P172*$L$2)*(c.total.d*$M$2) -> 0 | Q75: 0 | AF75: 4 | AG75: =(IF(OR(AF75>controle_formulario!$J$16,$C$71>controle_formulario!$E$16),"Ocultar","")) -> Ocultar
C76: Ano 5 | D76: =('Market Share'!D173*$L$2)*(c.total.nova*$M$2) -> 0 | E76: =('Market Share'!E173*$L$2)*(c.total.a*$M$2) -> 0 | F76: =('Market Share'!F173*$L$2)*(c.total.b*$M$2) -> 0 | G76: =('Market Share'!G173*$L$2)*(c.total.c*$M$2) -> 0 | H76: =('Market Share'!H173*$L$2)*(c.total.d*$M$2) -> 0 | I76: 0 | K76: Ano 5 | L76: =('Market Share'!L173*$L$2)*(c.total.nova*$M$2) -> 0 | M76: =('Market Share'!M173*$L$2)*(c.total.a*$M$2) -> 0 | N76: =('Market Share'!N173*$L$2)*(c.total.b*$M$2) -> 0 | O76: =('Market Share'!O173*$L$2)*(c.total.c*$M$2) -> 0 | P76: =('Market Share'!P173*$L$2)*(c.total.d*$M$2) -> 0 | Q76: 0 | AF76: 5 | AG76: =(IF(OR(AF76>controle_formulario!$J$16,$C$71>controle_formulario!$E$16),"Ocultar","")) -> Ocultar
C77: Ano 6 | D77: =('Market Share'!D174*$L$2)*(c.total.nova*$M$2) -> 0 | E77: =('Market Share'!E174*$L$2)*(c.total.a*$M$2) -> 0 | F77: =('Market Share'!F174*$L$2)*(c.total.b*$M$2) -> 0 | G77: =('Market Share'!G174*$L$2)*(c.total.c*$M$2) -> 0 | H77: =('Market Share'!H174*$L$2)*(c.total.d*$M$2) -> 0 | I77: 0 | K77: Ano 6 | L77: =('Market Share'!L174*$L$2)*(c.total.nova*$M$2) -> 0 | M77: =('Market Share'!M174*$L$2)*(c.total.a*$M$2) -> 0 | N77: =('Market Share'!N174*$L$2)*(c.total.b*$M$2) -> 0 | O77: =('Market Share'!O174*$L$2)*(c.total.c*$M$2) -> 0 | P77: =('Market Share'!P174*$L$2)*(c.total.d*$M$2) -> 0 | Q77: 0 | AF77: 6 | AG77: =(IF(OR(AF77>controle_formulario!$J$16,$C$71>controle_formulario!$E$16),"Ocultar","")) -> Ocultar
C78: Ano 7 | D78: =('Market Share'!D175*$L$2)*(c.total.nova*$M$2) -> 0 | E78: =('Market Share'!E175*$L$2)*(c.total.a*$M$2) -> 0 | F78: =('Market Share'!F175*$L$2)*(c.total.b*$M$2) -> 0 | G78: =('Market Share'!G175*$L$2)*(c.total.c*$M$2) -> 0 | H78: =('Market Share'!H175*$L$2)*(c.total.d*$M$2) -> 0 | I78: 0 | K78: Ano 7 | L78: =('Market Share'!L175*$L$2)*(c.total.nova*$M$2) -> 0 | M78: =('Market Share'!M175*$L$2)*(c.total.a*$M$2) -> 0 | N78: =('Market Share'!N175*$L$2)*(c.total.b*$M$2) -> 0 | O78: =('Market Share'!O175*$L$2)*(c.total.c*$M$2) -> 0 | P78: =('Market Share'!P175*$L$2)*(c.total.d*$M$2) -> 0 | Q78: 0 | AF78: 7 | AG78: =(IF(OR(AF78>controle_formulario!$J$16,$C$71>controle_formulario!$E$16),"Ocultar","")) -> Ocultar
C79: Ano 8 | D79: =('Market Share'!D176*$L$2)*(c.total.nova*$M$2) -> 0 | E79: =('Market Share'!E176*$L$2)*(c.total.a*$M$2) -> 0 | F79: =('Market Share'!F176*$L$2)*(c.total.b*$M$2) -> 0 | G79: =('Market Share'!G176*$L$2)*(c.total.c*$M$2) -> 0 | H79: =('Market Share'!H176*$L$2)*(c.total.d*$M$2) -> 0 | I79: 0 | K79: Ano 8 | L79: =('Market Share'!L176*$L$2)*(c.total.nova*$M$2) -> 0 | M79: =('Market Share'!M176*$L$2)*(c.total.a*$M$2) -> 0 | N79: =('Market Share'!N176*$L$2)*(c.total.b*$M$2) -> 0 | O79: =('Market Share'!O176*$L$2)*(c.total.c*$M$2) -> 0 | P79: =('Market Share'!P176*$L$2)*(c.total.d*$M$2) -> 0 | Q79: 0 | AF79: 8 | AG79: =(IF(OR(AF79>controle_formulario!$J$16,$C$71>controle_formulario!$E$16),"Ocultar","")) -> Ocultar
C80: Ano 9 | D80: =('Market Share'!D177*$L$2)*(c.total.nova*$M$2) -> 0 | E80: =('Market Share'!E177*$L$2)*(c.total.a*$M$2) -> 0 | F80: =('Market Share'!F177*$L$2)*(c.total.b*$M$2) -> 0 | G80: =('Market Share'!G177*$L$2)*(c.total.c*$M$2) -> 0 | H80: =('Market Share'!H177*$L$2)*(c.total.d*$M$2) -> 0 | I80: 0 | K80: Ano 9 | L80: =('Market Share'!L177*$L$2)*(c.total.nova*$M$2) -> 0 | M80: =('Market Share'!M177*$L$2)*(c.total.a*$M$2) -> 0 | N80: =('Market Share'!N177*$L$2)*(c.total.b*$M$2) -> 0 | O80: =('Market Share'!O177*$L$2)*(c.total.c*$M$2) -> 0 | P80: =('Market Share'!P177*$L$2)*(c.total.d*$M$2) -> 0 | Q80: 0 | AF80: 9 | AG80: =(IF(OR(AF80>controle_formulario!$J$16,$C$71>controle_formulario!$E$16),"Ocultar","")) -> Ocultar
C81: Ano 10 | D81: =('Market Share'!D178*$L$2)*(c.total.nova*$M$2) -> 0 | E81: =('Market Share'!E178*$L$2)*(c.total.a*$M$2) -> 0 | F81: =('Market Share'!F178*$L$2)*(c.total.b*$M$2) -> 0 | G81: =('Market Share'!G178*$L$2)*(c.total.c*$M$2) -> 0 | H81: =('Market Share'!H178*$L$2)*(c.total.d*$M$2) -> 0 | I81: 0 | K81: Ano 10 | L81: =('Market Share'!L178*$L$2)*(c.total.nova*$M$2) -> 0 | M81: =('Market Share'!M178*$L$2)*(c.total.a*$M$2) -> 0 | N81: =('Market Share'!N178*$L$2)*(c.total.b*$M$2) -> 0 | O81: =('Market Share'!O178*$L$2)*(c.total.c*$M$2) -> 0 | P81: =('Market Share'!P178*$L$2)*(c.total.d*$M$2) -> 0 | Q81: 0 | AF81: 10 | AG81: =(IF(OR(AF81>controle_formulario!$J$16,$C$71>controle_formulario!$E$16),"Ocultar","")) -> Ocultar
C82: Total | D82: =SUM(D72:D81) -> 0 | E82: =SUM(E72:E81) -> 0 | F82: 0 | G82: 0 | H82: 0 | I82: 0 | K82: Total | L82: =SUM(L72:L81) -> 0 | M82: =SUM(M72:M81) -> 0 | N82: 0 | O82: 0 | P82: 0 | Q82: 0 | AG82: =IF($C$71>controle_formulario!$E$16,"Ocultar","") -> Ocultar
C85: =cen.alt10 -> Cenário Alternativo 10 | AG85: =IF($C$87>controle_formulario!$E$16,"Ocultar","") -> Ocultar
AG86: =IF($C$87>controle_formulario!$E$16,"Ocultar","") -> Ocultar
C87: 10 | D87: =trat.novo -> 0 | E87: =trat.a -> 0 | F87: =trat.b -> 0 | G87: =trat.c -> 0 | H87: =trat.d -> 0 | I87: Total | AG87: =IF($C$87>controle_formulario!$E$16,"Ocultar","") -> Ocultar
C88: Ano 1 | D88: =('Market Share'!D185*$L$2)*(c.total.nova*$M$2) -> 0 | E88: =('Market Share'!E185*$L$2)*(c.total.a*$M$2) -> 0 | F88: =('Market Share'!F185*$L$2)*(c.total.b*$M$2) -> 0 | G88: =('Market Share'!G185*$L$2)*(c.total.c*$M$2) -> 0 | H88: =('Market Share'!H185*$L$2)*(c.total.d*$M$2) -> 0 | I88: =SUM(D88:H88) -> 0 | AG88: =IF($C$87>controle_formulario!$E$16,"Ocultar","") -> Ocultar
C89: Ano 2 | D89: =('Market Share'!D186*$L$2)*(c.total.nova*$M$2) -> 0 | E89: =('Market Share'!E186*$L$2)*(c.total.a*$M$2) -> 0 | F89: =('Market Share'!F186*$L$2)*(c.total.b*$M$2) -> 0 | G89: =('Market Share'!G186*$L$2)*(c.total.c*$M$2) -> 0 | H89: =('Market Share'!H186*$L$2)*(c.total.d*$M$2) -> 0 | I89: =SUM(D89:H89) -> 0 | AF89: 2 | AG89: =(IF(OR(AF89>controle_formulario!$J$16,$C$87>controle_formulario!$E$16),"Ocultar","")) -> Ocultar
C90: Ano 3 | D90: =('Market Share'!D187*$L$2)*(c.total.nova*$M$2) -> 0 | E90: =('Market Share'!E187*$L$2)*(c.total.a*$M$2) -> 0 | F90: =('Market Share'!F187*$L$2)*(c.total.b*$M$2) -> 0 | G90: =('Market Share'!G187*$L$2)*(c.total.c*$M$2) -> 0 | H90: =('Market Share'!H187*$L$2)*(c.total.d*$M$2) -> 0 | I90: 0 | AF90: 3 | AG90: =(IF(OR(AF90>controle_formulario!$J$16,$C$87>controle_formulario!$E$16),"Ocultar","")) -> Ocultar
C91: Ano 4 | D91: =('Market Share'!D188*$L$2)*(c.total.nova*$M$2) -> 0 | E91: =('Market Share'!E188*$L$2)*(c.total.a*$M$2) -> 0 | F91: =('Market Share'!F188*$L$2)*(c.total.b*$M$2) -> 0 | G91: =('Market Share'!G188*$L$2)*(c.total.c*$M$2) -> 0 | H91: =('Market Share'!H188*$L$2)*(c.total.d*$M$2) -> 0 | I91: 0 | AF91: 4 | AG91: =(IF(OR(AF91>controle_formulario!$J$16,$C$87>controle_formulario!$E$16),"Ocultar","")) -> Ocultar
C92: Ano 5 | D92: =('Market Share'!D189*$L$2)*(c.total.nova*$M$2) -> 0 | E92: =('Market Share'!E189*$L$2)*(c.total.a*$M$2) -> 0 | F92: =('Market Share'!F189*$L$2)*(c.total.b*$M$2) -> 0 | G92: =('Market Share'!G189*$L$2)*(c.total.c*$M$2) -> 0 | H92: =('Market Share'!H189*$L$2)*(c.total.d*$M$2) -> 0 | I92: 0 | AF92: 5 | AG92: =(IF(OR(AF92>controle_formulario!$J$16,$C$87>controle_formulario!$E$16),"Ocultar","")) -> Ocultar
C93: Ano 6 | D93: =('Market Share'!D190*$L$2)*(c.total.nova*$M$2) -> 0 | E93: =('Market Share'!E190*$L$2)*(c.total.a*$M$2) -> 0 | F93: =('Market Share'!F190*$L$2)*(c.total.b*$M$2) -> 0 | G93: =('Market Share'!G190*$L$2)*(c.total.c*$M$2) -> 0 | H93: =('Market Share'!H190*$L$2)*(c.total.d*$M$2) -> 0 | I93: 0 | AF93: 6 | AG93: =(IF(OR(AF93>controle_formulario!$J$16,$C$87>controle_formulario!$E$16),"Ocultar","")) -> Ocultar
C94: Ano 7 | D94: =('Market Share'!D191*$L$2)*(c.total.nova*$M$2) -> 0 | E94: =('Market Share'!E191*$L$2)*(c.total.a*$M$2) -> 0 | F94: =('Market Share'!F191*$L$2)*(c.total.b*$M$2) -> 0 | G94: =('Market Share'!G191*$L$2)*(c.total.c*$M$2) -> 0 | H94: =('Market Share'!H191*$L$2)*(c.total.d*$M$2) -> 0 | I94: 0 | AF94: 7 | AG94: =(IF(OR(AF94>controle_formulario!$J$16,$C$87>controle_formulario!$E$16),"Ocultar","")) -> Ocultar
C95: Ano 8 | D95: =('Market Share'!D192*$L$2)*(c.total.nova*$M$2) -> 0 | E95: =('Market Share'!E192*$L$2)*(c.total.a*$M$2) -> 0 | F95: =('Market Share'!F192*$L$2)*(c.total.b*$M$2) -> 0 | G95: =('Market Share'!G192*$L$2)*(c.total.c*$M$2) -> 0 | H95: =('Market Share'!H192*$L$2)*(c.total.d*$M$2) -> 0 | I95: 0 | AF95: 8 | AG95: =(IF(OR(AF95>controle_formulario!$J$16,$C$87>controle_formulario!$E$16),"Ocultar","")) -> Ocultar
C96: Ano 9 | D96: =('Market Share'!D193*$L$2)*(c.total.nova*$M$2) -> 0 | E96: =('Market Share'!E193*$L$2)*(c.total.a*$M$2) -> 0 | F96: =('Market Share'!F193*$L$2)*(c.total.b*$M$2) -> 0 | G96: =('Market Share'!G193*$L$2)*(c.total.c*$M$2) -> 0 | H96: =('Market Share'!H193*$L$2)*(c.total.d*$M$2) -> 0 | I96: 0 | AF96: 9 | AG96: =(IF(OR(AF96>controle_formulario!$J$16,$C$87>controle_formulario!$E$16),"Ocultar","")) -> Ocultar
C97: Ano 10 | D97: =('Market Share'!D194*$L$2)*(c.total.nova*$M$2) -> 0 | E97: =('Market Share'!E194*$L$2)*(c.total.a*$M$2) -> 0 | F97: =('Market Share'!F194*$L$2)*(c.total.b*$M$2) -> 0 | G97: =('Market Share'!G194*$L$2)*(c.total.c*$M$2) -> 0 | H97: =('Market Share'!H194*$L$2)*(c.total.d*$M$2) -> 0 | I97: 0 | AF97: 10 | AG97: =(IF(OR(AF97>controle_formulario!$J$16,$C$87>controle_formulario!$E$16),"Ocultar","")) -> Ocultar
C98: Total | D98: =SUM(D88:D97) -> 0 | E98: =SUM(E88:E97) -> 0 | F98: 0 | G98: 0 | H98: 0 | I98: 0 | AG98: =IF($C$87>controle_formulario!$E$16,"Ocultar","") -> Ocultar
E199: 1 | F199: 2 | G199: 3 | H199: 4 | M199: 1 | N199: 2 | O199: 3 | P199: 4
E200: =IF(E199>controle_formulario!$C$10,"Ocultar","") ->  | F200: =IF(F199>controle_formulario!$C$10,"Ocultar","") -> Ocultar | G200: =IF(G199>controle_formulario!$C$10,"Ocultar","") -> Ocultar | H200: =IF(H199>controle_formulario!$C$10,"Ocultar","") -> Ocultar | M200: =IF(M199>controle_formulario!$C$10,"Ocultar","") ->  | N200: =IF(N199>controle_formulario!$C$10,"Ocultar","") -> Ocultar | O200: =IF(O199>controle_formulario!$C$10,"Ocultar","") -> Ocultar | P200: =IF(P199>controle_formulario!$C$10,"Ocultar","") -> Ocultar

Sheet Resultado
C6: Impacto Orçamentário Total
C7: Período | D7: =cen.ref -> 0 | E7: =cen.alt1 -> 0 | F7: =cen.alt2 -> Custo SIASG | G7: =cen.alt3 -> Custo CMED | H7: =cen.alt4 -> Cenário Alternativo 4 | I7: =cen.alt5 -> Cenário Alternativo 5 | J7: =cen.alt6 -> Cenário Alternativo 6 | K7: =cen.alt7 -> Cenário Alternativo 7 | L7: =cen.alt8 -> Cenário Alternativo 8 | M7: =cen.alt9 -> Cenário Alternativo 9 | N7: =cen.alt10 -> Cenário Alternativo 10
C8: =Criterios!$C$31 -> 2020 | D8: =Cenarios!I8 -> 0 | E8: =Cenarios!Q8 -> 0 | F8: =Cenarios!I24 -> 0 | G8: =Cenarios!Q24 -> 0 | H8: =Cenarios!I40 -> 0 | I8: =Cenarios!Q40 -> 0 | J8: =Cenarios!I56 -> 0 | K8: =Cenarios!Q56 -> 0 | L8: =Cenarios!I72 -> 0 | M8: =Cenarios!Q72 -> 0 | N8: =Cenarios!I88 -> 0 | AF8: 1
C9: =C8+1 -> 2021 | D9: =Cenarios!I9 -> 0 | E9: =Cenarios!Q9 -> 0 | F9: =Cenarios!I25 -> 0 | G9: =Cenarios!Q25 -> 0 | H9: =Cenarios!I41 -> 0 | I9: =Cenarios!Q41 -> 0 | J9: =Cenarios!I57 -> 0 | K9: =Cenarios!Q57 -> 0 | L9: =Cenarios!I73 -> 0 | M9: =Cenarios!Q73 -> 0 | N9: =Cenarios!I89 -> 0 | AF9: 2 | AG9: =(IF(AF9>controle_formulario!$J$16,"Ocultar","")) -> 
C10: =C9+1 -> 2022 | D10: =Cenarios!I10 -> 0 | E10: =Cenarios!Q10 -> 0 | F10: =Cenarios!I26 -> 0 | G10: =Cenarios!Q26 -> 0 | H10: =Cenarios!I42 -> 0 | I10: =Cenarios!Q42 -> 0 | J10: =Cenarios!I58 -> 0 | K10: =Cenarios!Q58 -> 0 | L10: =Cenarios!I74 -> 0 | M10: =Cenarios!Q74 -> 0 | N10: =Cenarios!I90 -> 0 | AF10: 3 | AG10: =(IF(AF10>controle_formulario!$J$16,"Ocultar","")) -> 
C11: 2023 | D11: =Cenarios!I11 -> 0 | E11: =Cenarios!Q11 -> 0 | F11: =Cenarios!I27 -> 0 | G11: =Cenarios!Q27 -> 0 | H11: =Cenarios!I43 -> 0 | I11: =Cenarios!Q43 -> 0 | J11: =Cenarios!I59 -> 0 | K11: =Cenarios!Q59 -> 0 | L11: =Cenarios!I75 -> 0 | M11: =Cenarios!Q75 -> 0 | N11: =Cenarios!I91 -> 0 | AF11: 4 | AG11: =(IF(AF11>controle_formulario!$J$16,"Ocultar","")) -> 
C12: 2024 | D12: =Cenarios!I12 -> 0 | E12: =Cenarios!Q12 -> 0 | F12: =Cenarios!I28 -> 0 | G12: =Cenarios!Q28 -> 0 | H12: =Cenarios!I44 -> 0 | I12: =Cenarios!Q44 -> 0 | J12: =Cenarios!I60 -> 0 | K12: =Cenarios!Q60 -> 0 | L12: =Cenarios!I76 -> 0 | M12: =Cenarios!Q76 -> 0 | N12: =Cenarios!I92 -> 0 | AF12: 5 | AG12: =(IF(AF12>controle_formulario!$J$16,"Ocultar","")) -> 
C13: 2025 | D13: =Cenarios!I13 -> 0 | E13: =Cenarios!Q13 -> 0 | F13: =Cenarios!I29 -> 0 | G13: =Cenarios!Q29 -> 0 | H13: =Cenarios!I45 -> 0 | I13: =Cenarios!Q45 -> 0 | J13: =Cenarios!I61 -> 0 | K13: =Cenarios!Q61 -> 0 | L13: =Cenarios!I77 -> 0 | M13: =Cenarios!Q77 -> 0 | N13: =Cenarios!I93 -> 0 | AF13: 6 | AG13: =(IF(AF13>controle_formulario!$J$16,"Ocultar","")) -> Ocultar
C14: 2026 | D14: =Cenarios!I14 -> 0 | E14: =Cenarios!Q14 -> 0 | F14: =Cenarios!I30 -> 0 | G14: =Cenarios!Q30 -> 0 | H14: =Cenarios!I46 -> 0 | I14: =Cenarios!Q46 -> 0 | J14: =Cenarios!I62 -> 0 | K14: =Cenarios!Q62 -> 0 | L14: =Cenarios!I78 -> 0 | M14: =Cenarios!Q78 -> 0 | N14: =Cenarios!I94 -> 0 | AF14: 7 | AG14: =(IF(AF14>controle_formulario!$J$16,"Ocultar","")) -> Ocultar
C15: 2027 | D15: =Cenarios!I15 -> 0 | E15: =Cenarios!Q15 -> 0 | F15: =Cenarios!I31 -> 0 | G15: =Cenarios!Q31 -> 0 | H15: =Cenarios!I47 -> 0 | I15: =Cenarios!Q47 -> 0 | J15: =Cenarios!I63 -> 0 | K15: =Cenarios!Q63 -> 0 | L15: =Cenarios!I79 -> 0 | M15: =Cenarios!Q79 -> 0 | N15: =Cenarios!I95 -> 0 | AF15: 8 | AG15: =(IF(AF15>controle_formulario!$J$16,"Ocultar","")) -> Ocultar
C16: 2028 | D16: =Cenarios!I16 -> 0 | E16: =Cenarios!Q16 -> 0 | F16: =Cenarios!I32 -> 0 | G16: =Cenarios!Q32 -> 0 | H16: =Cenarios!I48 -> 0 | I16: =Cenarios!Q48 -> 0 | J16: =Cenarios!I64 -> 0 | K16: =Cenarios!Q64 -> 0 | L16: =Cenarios!I80 -> 0 | M16: =Cenarios!Q80 -> 0 | N16: =Cenarios!I96 -> 0 | AF16: 9 | AG16: =(IF(AF16>controle_formulario!$J$16,"Ocultar","")) -> Ocultar
C17: 2029 | D17: =Cenarios!I17 -> 0 | E17: =Cenarios!Q17 -> 0 | F17: =Cenarios!I33 -> 0 | G17: =Cenarios!Q33 -> 0 | H17: =Cenarios!I49 -> 0 | I17: =Cenarios!Q49 -> 0 | J17: =Cenarios!I65 -> 0 | K17: =Cenarios!Q65 -> 0 | L17: =Cenarios!I81 -> 0 | M17: =Cenarios!Q81 -> 0 | N17: =Cenarios!I97 -> 0 | AF17: 10 | AG17: =(IF(AF17>controle_formulario!$J$16,"Ocultar","")) -> Ocultar
C18: Total | D18: =SUMIF($AF$8:$AF$17,"<="&controle_formulario!$J$16,Resultado!D8:D17) -> 0 | E18: =SUMIF($AF$8:$AF$17,"<="&controle_formulario!$J$16,Resultado!E8:E17) -> 0 | F18: =SUMIF($AF$8:$AF$17,"<="&controle_formulario!$J$16,Resultado!F8:F17) -> 0 | G18: =SUMIF($AF$8:$AF$17,"<="&controle_formulario!$J$16,Resultado!G8:G17) -> 0 | H18: =SUMIF($AF$8:$AF$17,"<="&controle_formulario!$J$16,Resultado!H8:H17) -> 0 | I18: =SUMIF($AF$8:$AF$17,"<="&controle_formulario!$J$16,Resultado!I8:I17) -> 0 | J18: =SUMIF($AF$8:$AF$17,"<="&controle_formulario!$J$16,Resultado!J8:J17) -> 0 | K18: =SUMIF($AF$8:$AF$17,"<="&controle_formulario!$J$16,Resultado!K8:K17) -> 0 | L18: =SUMIF($AF$8:$AF$17,"<="&controle_formulario!$J$16,Resultado!L8:L17) -> 0 | M18: =SUMIF($AF$8:$AF$17,"<="&controle_formulario!$J$16,Resultado!M8:M17) -> 0 | N18: =SUMIF($AF$8:$AF$17,"<="&controle_formulario!$J$16,Resultado!N8:N17) -> 0
D22: Impacto Incremental Total
D23: Período | E23: =CONCATENATE(cen.alt1," x ",cen.ref) -> x | F23: =CONCATENATE(cen.alt2," x ",cen.ref) -> Custo SIASG x | G23: =CONCATENATE(cen.alt3," x ",cen.ref) -> Custo CMED x | H23: =_xlfn.CONCAT(cen.alt4," x ",cen.ref) ->  | I23: =_xlfn.CONCAT(cen.alt5," x ",cen.ref) ->  | J23: =_xlfn.CONCAT(cen.alt6," x ",cen.ref) ->  | K23: =_xlfn.CONCAT(cen.alt7," x ",cen.ref) ->  | L23: =_xlfn.CONCAT(cen.alt8," x ",cen.ref) ->  | M23: =_xlfn.CONCAT(cen.alt9," x ",cen.ref) ->  | N23: =_xlfn.CONCAT(cen.alt10," x ",cen.ref) -> 
D24: =Criterios!$C$31 -> 2020 | E24: =E8-$D8 -> 0 | F24: 0 | G24: 0 | H24: 0 | I24: 0 | J24: 0 | K24: 0 | L24: 0 | M24: 0 | N24: 0 | AF24: 1
D25: =D24+1 -> 2021 | E25: =E9-$D9 -> 0 | F25: 0 | G25: 0 | H25: 0 | I25: 0 | J25: 0 | K25: 0 | L25: 0 | M25: 0 | N25: 0 | AF25: 2 | AG25: =(IF(AF25>controle_formulario!$J$16,"Ocultar","")) -> 
D26: =D25+1 -> 2022 | E26: =E10-$D10 -> 0 | F26: 0 | G26: 0 | H26: 0 | I26: 0 | J26: 0 | K26: 0 | L26: 0 | M26: 0 | N26: 0 | AF26: 3 | AG26: =(IF(AF26>controle_formulario!$J$16,"Ocultar","")) -> 
D27: 2023 | E27: =E11-$D11 -> 0 | F27: 0 | G27: 0 | H27: 0 | I27: 0 | J27: 0 | K27: 0 | L27: 0 | M27: 0 | N27: 0 | AF27: 4 | AG27: =(IF(AF27>controle_formulario!$J$16,"Ocultar","")) -> 
D28: 2024 | E28: =E12-$D12 -> 0 | F28: 0 | G28: 0 | H28: 0 | I28: 0 | J28: 0 | K28: 0 | L28: 0 | M28: 0 | N28: 0 | AF28: 5 | AG28: =(IF(AF28>controle_formulario!$J$16,"Ocultar","")) -> 
D29: 2025 | E29: =E13-$D13 -> 0 | F29: 0 | G29: 0 | H29: 0 | I29: 0 | J29: 0 | K29: 0 | L29: 0 | M29: 0 | N29: 0 | AF29: 6 | AG29: =(IF(AF29>controle_formulario!$J$16,"Ocultar","")) -> Ocultar
D30: 2026 | E30: =E14-$D14 -> 0 | F30: 0 | G30: 0 | H30: 0 | I30: 0 | J30: 0 | K30: 0 | L30: 0 | M30: 0 | N30: 0 | AF30: 7 | AG30: =(IF(AF30>controle_formulario!$J$16,"Ocultar","")) -> Ocultar
D31: 2027 | E31: =E15-$D15 -> 0 | F31: 0 | G31: 0 | H31: 0 | I31: 0 | J31: 0 | K31: 0 | L31: 0 | M31: 0 | N31: 0 | AF31: 8 | AG31: =(IF(AF31>controle_formulario!$J$16,"Ocultar","")) -> Ocultar
D32: 2028 | E32: =E16-$D16 -> 0 | F32: 0 | G32: 0 | H32: 0 | I32: 0 | J32: 0 | K32: 0 | L32: 0 | M32: 0 | N32: 0 | AF32: 9 | AG32: =(IF(AF32>controle_formulario!$J$16,"Ocultar","")) -> Ocultar
D33: 2029 | E33: =E17-$D17 -> 0 | F33: 0 | G33: 0 | H33: 0 | I33: 0 | J33: 0 | K33: 0 | L33: 0 | M33: 0 | N33: 0 | AF33: 10 | AG33: =(IF(AF33>controle_formulario!$J$16,"Ocultar","")) -> Ocultar
D34: Total | E34: =SUMIF($AF$8:$AF$17,"<="&controle_formulario!$J$16,Resultado!E24:E33) -> 0 | F34: =SUMIF($AF$8:$AF$17,"<="&controle_formulario!$J$16,Resultado!F24:F33) -> 0 | G34: =SUMIF($AF$8:$AF$17,"<="&controle_formulario!$J$16,Resultado!G24:G33) -> 0 | H34: =SUMIF($AF$8:$AF$17,"<="&controle_formulario!$J$16,Resultado!H24:H33) -> 0 | I34: =SUMIF($AF$8:$AF$17,"<="&controle_formulario!$J$16,Resultado!I24:I33) -> 0 | J34: =SUMIF($AF$8:$AF$17,"<="&controle_formulario!$J$16,Resultado!J24:J33) -> 0 | K34: =SUMIF($AF$8:$AF$17,"<="&controle_formulario!$J$16,Resultado!K24:K33) -> 0 | L34: =SUMIF($AF$8:$AF$17,"<="&controle_formulario!$J$16,Resultado!L24:L33) -> 0 | M34: =SUMIF($AF$8:$AF$17,"<="&controle_formulario!$J$16,Resultado!M24:M33) -> 0 | N34: =SUMIF($AF$8:$AF$17,"<="&controle_formulario!$J$16,Resultado!N24:N33) -> 0
F199: 2 | G199: 3 | H199: 4 | I199: 5 | J199: 6 | K199: 7 | L199: 8 | M199: 9 | N199: 10
F200: =IF(F199>controle_formulario!$E$16,"Ocultar","") -> Ocultar | G200: =IF(G199>controle_formulario!$E$16,"Ocultar","") -> Ocultar | H200: =IF(H199>controle_formulario!$E$16,"Ocultar","") -> Ocultar | I200: =IF(I199>controle_formulario!$E$16,"Ocultar","") -> Ocultar | J200: =IF(J199>controle_formulario!$E$16,"Ocultar","") -> Ocultar | K200: =IF(K199>controle_formulario!$E$16,"Ocultar","") -> Ocultar | L200: =IF(L199>controle_formulario!$E$16,"Ocultar","") -> Ocultar | M200: =IF(M199>controle_formulario!$E$16,"Ocultar","") -> Ocultar | N200: =IF(N199>controle_formulario!$E$16,"Ocultar","") -> Ocultar

Sheet pop_brasil
A1: Sexo | B1: Idade | C1: 2017 | D1: 2018 | E1: 2019 | F1: 2020 | G1: 2021 | H1: 2022 | I1: 2023 | J1: 2024 | K1: 2025 | L1: 2026 | M1: 2027 | N1: 2028 | O1: 2029 | P1: 2030
A2: Masculino | B2: 0 | C2: 1437041 | D2: 1419968 | E2: 1403441 | F2: 1387425 | G2: 1371956 | H2: 1356777 | I2: 1341635 | J2: 1326675 | K2: 1312030 | L2: 1297815 | M2: 1283986 | N2: 1270421 | O2: 1257052 | P2: 1243787
A3: Masculino | B3: 1 | C3: 1451082 | D3: 1433609 | E3: 1416699 | F3: 1400324 | G3: 1384447 | H3: 1369105 | I3: 1354043 | J3: 1339007 | K3: 1324144 | L3: 1309589 | M3: 1295460 | N3: 1281707 | O3: 1268215 | P3: 1254914
A4: Masculino | B4: 2 | C4: 1467959 | D4: 1449975 | E4: 1432546 | F4: 1415676 | G4: 1399340 | H4: 1383503 | I4: 1368195 | J4: 1353165 | K4: 1338160 | L4: 1323327 | M4: 1308796 | N4: 1294696 | O4: 1280966 | P4: 1267502
A5: Masculino | B5: 3 | C5: 1485784 | D5: 1467203 | E5: 1449246 | F5: 1431844 | G5: 1415003 | H5: 1398690 | I5: 1382880 | J5: 1367593 | K5: 1352584 | L5: 1337598 | M5: 1322786 | N5: 1308270 | O5: 1294188 | P5: 1280473
A6: Masculino | B6: 4 | C6: 1504546 | D6: 1485177 | E6: 1466619 | F6: 1448684 | G6: 1431304 | H6: 1414483 | I6: 1398187 | J6: 1382395 | K6: 1367127 | L6: 1352133 | M6: 1337161 | N6: 1322366 | O6: 1307862 | P6: 1293792
A7: Masculino | B7: 5 | C7: 1524324 | D7: 1504091 | E7: 1484741 | F7: 1466201 | G7: 1448264 | H7: 1430901 | I7: 1414094 | J7: 1397814 | K7: 1382034 | L7: 1366777 | M7: 1351795 | N7: 1336831 | O7: 1322051 | P7: 1307555
A8: Masculino | B8: 6 | C8: 1545040 | D8: 1523968 | E8: 1503754 | F8: 1484413 | G8: 1465872 | H8: 1447928 | I8: 1430579 | J8: 1413780 | K8: 1397515 | L8: 1381743 | M8: 1366495 | N8: 1351522 | O8: 1336567 | P8: 1321794
A9: Masculino | B9: 7 | C9: 1566533 | D9: 1544678 | E9: 1523624 | F9: 1503422 | G9: 1484079 | H9: 1465531 | I9: 1447599 | J9: 1430261 | K9: 1413472 | L9: 1397221 | M9: 1381458 | N9: 1366220 | O9: 1351256 | P9: 1336308
A10: Masculino | B10: 8 | C10: 1588834 | D10: 1566165 | E10: 1544325 | F10: 1523286 | G10: 1503081 | H10: 1483734 | I10: 1465198 | J10: 1447279 | K10: 1429948 | L10: 1413173 | M10: 1396931 | N10: 1381179 | O10: 1365948 | P10: 1350994
A11: Masculino | B11: 9 | C11: 1611543 | D11: 1588460 | E11: 1565804 | F11: 1543983 | G11: 1522936 | H11: 1502732 | I11: 1483395 | J11: 1464871 | K11: 1446964 | L11: 1429644 | M11: 1412879 | N11: 1396650 | O11: 1380904 | P11: 1365683
A12: Masculino | B12: 10 | C12: 1634437 | D12: 1611106 | E12: 1588042 | F12: 1565404 | G12: 1543579 | H12: 1522529 | I12: 1502344 | J12: 1483019 | K12: 1464510 | L12: 1446611 | M12: 1429306 | N12: 1412551 | O12: 1396334 | P12: 1380597
A13: Masculino | B13: 11 | C13: 1657200 | D13: 1633934 | E13: 1610622 | F13: 1587580 | G13: 1564942 | H13: 1543117 | I13: 1522085 | J13: 1501919 | K13: 1482609 | L13: 1464111 | M13: 1446224 | N13: 1428931 | O13: 1412190 | P13: 1395985
A14: Masculino | B14: 12 | C14: 1679593 | D14: 1656688 | E14: 1633446 | F14: 1610153 | G14: 1587114 | H14: 1564473 | I14: 1542665 | J14: 1521653 | K14: 1501501 | L14: 1482209 | M14: 1463717 | N14: 1445845 | O14: 1428567 | P14: 1411835
A15: Masculino | B15: 13 | C15: 1701496 | D15: 1679075 | E15: 1656191 | F15: 1632971 | G15: 1609679 | H15: 1586639 | I15: 1564015 | J15: 1542226 | K15: 1521229 | L15: 1501093 | M15: 1481810 | N15: 1463333 | O15: 1445474 | P15: 1428204
A16: Masculino | B16: 14 | C16: 1722737 | D16: 1700971 | E16: 1678571 | F16: 1655709 | G16: 1632489 | H16: 1609197 | I16: 1586175 | J16: 1563567 | K16: 1541797 | L16: 1520814 | M16: 1500689 | N16: 1481421 | O16: 1462956 | P16: 1445109
A17: Masculino | B17: 15 | C17: 1742123 | D17: 1721170 | E17: 1699459 | F17: 1677111 | G17: 1654287 | H17: 1631100 | I17: 1607857 | J17: 1584882 | K17: 1562320 | L17: 1540588 | M17: 1519645 | N17: 1499561 | O17: 1480330 | P17: 1461898
A18: Masculino | B18: 16 | C18: 1760232 | D18: 1739473 | E18: 1718611 | F18: 1696984 | G18: 1674704 | H18: 1651948 | I18: 1628844 | J18: 1605678 | K18: 1582781 | L18: 1560292 | M18: 1538624 | N18: 1517748 | O18: 1497725 | P18: 1478555
A19: Masculino | B19: 17 | C19: 1740224 | D19: 1757569 | E19: 1736898 | F19: 1716117 | G19: 1694558 | H19: 1672344 | I19: 1649668 | J19: 1626645 | K19: 1603554 | L19: 1580727 | M19: 1558305 | N19: 1536705 | O19: 1515897 | P19: 1495929
A20: Masculino | B20: 18 | C20: 1741929 | D20: 1737606 | E20: 1754978 | F20: 1734389 | G20: 1713675 | H20: 1692178 | I20: 1670046 | J20: 1647444 | K20: 1624500 | L20: 1601479 | M20: 1578720 | N20: 1556368 | O20: 1534831 | P20: 1514083
A21: Masculino | B21: 19 | C21: 1737876 | D21: 1739315 | E21: 1735060 | F21: 1752456 | G21: 1731928 | H21: 1711280 | I21: 1689861 | J21: 1667804 | K21: 1645276 | L21: 1622405 | M21: 1599450 | N21: 1576759 | O21: 1554474 | P21: 1532999
A22: Masculino | B22: 20 | C22: 1732666 | D22: 1734568 | E22: 1736083 | F22: 1731907 | G22: 1749305 | H22: 1728856 | I22: 1708299 | J22: 1686977 | K22: 1665010 | L22: 1642570 | M22: 1619783 | N22: 1596916 | O22: 1574310 | P22: 1552104
A23: Masculino | B23: 21 | C23: 1727304 | D23: 1728665 | E23: 1730648 | F23: 1732249 | G23: 1728141 | H23: 1745538 | I23: 1725202 | J23: 1704752 | K23: 1683534 | L23: 1661673 | M23: 1639334 | N23: 1616653 | O23: 1593890 | P23: 1571377
A24: Masculino | B24: 22 | C24: 1722333 | D24: 1723323 | E24: 1724768 | F24: 1726835 | G24: 1728488 | H24: 1724443 | I24: 1741865 | J24: 1721636 | K24: 1701289 | L24: 1680173 | M24: 1658412 | N24: 1636175 | O24: 1613597 | P24: 1590925
A25: Masculino | B25: 23 | C25: 1718047 | D25: 1718375 | E25: 1719453 | F25: 1720976 | G25: 1723096 | H25: 1724799 | I25: 1720838 | J25: 1738281 | K25: 1718155 | L25: 1697908 | M25: 1676885 | N25: 1655226 | O25: 1633086 | P25: 1610603
A26: Masculino | B26: 24 | C26: 1714982 | D26: 1714109 | E26: 1714521 | F26: 1715687 | G26: 1717262 | H26: 1719429 | I26: 1721202 | J26: 1717321 | K26: 1734783 | L26: 1714752 | M26: 1694601 | N26: 1673675 | O26: 1652111 | P26: 1630064
A27: Masculino | B27: 25 | C27: 1713090 | D27: 1711044 | E27: 1710261 | F27: 1710765 | G27: 1711975 | H27: 1713601 | I27: 1715834 | J27: 1717675 | K27: 1713871 | L27: 1731351 | M27: 1711412 | N27: 1691355 | O27: 1670520 | P27: 1649050
A28: Masculino | B28: 26 | C28: 1712372 | D28: 1709148 | E28: 1707199 | F28: 1706507 | G28: 1707061 | H28: 1708316 | I28: 1710011 | J28: 1712311 | K28: 1714214 | L28: 1710482 | M28: 1727982 | N28: 1708137 | O28: 1688168 | P28: 1667423
A29: Masculino | B29: 27 | C29: 1710721 | D29: 1708433 | E29: 1705313 | F29: 1703458 | G29: 1702815 | H29: 1703417 | I29: 1704745 | J29: 1706509 | K29: 1708871 | L29: 1710835 | M29: 1707174 | N29: 1724689 | O29: 1704932 | P29: 1685049
A30: Masculino | B30: 28 | C30: 1706118 | D30: 1706787 | E30: 1704598 | F30: 1701578 | G30: 1699778 | H30: 1699185 | I30: 1699861 | J30: 1701260 | K30: 1703090 | L30: 1705513 | M30: 1707532 | N30: 1703943 | O30: 1721469 | P30: 1701795
A31: Masculino | B31: 29 | C31: 1708995 | D31: 1702194 | E31: 1702956 | F31: 1700866 | G31: 1697908 | H31: 1696159 | I31: 1695646 | J31: 1696393 | K31: 1697859 | L31: 1699754 | M31: 1702236 | N31: 1704307 | O31: 1700781 | P31: 1718319
A32: Masculino | B32: 30 | C32: 1723347 | D32: 1704902 | E32: 1698213 | F32: 1699072 | G32: 1697053 | H32: 1694155 | I32: 1692494 | J32: 1692061 | K32: 1692878 | L32: 1694424 | M32: 1696382 | N32: 1698923 | O32: 1701050 | P32: 1697586
A33: Masculino | B33: 31 | C33: 1742785 | D33: 1719040 | E33: 1700747 | F33: 1694176 | G33: 1695107 | H33: 1693160 | I33: 1690356 | J33: 1688780 | K33: 1688434 | L33: 1689334 | M33: 1690955 | N33: 1692975 | O33: 1695573 | P33: 1697757
A34: Masculino | B34: 32 | C34: 1759889 | D34: 1738431 | E34: 1714851 | F34: 1696704 | G34: 1690219 | H34: 1691218 | I34: 1689366 | J34: 1686650 | K34: 1685161 | L34: 1684900 | M34: 1685877 | N34: 1687563 | O34: 1689645 | P34: 1692296
A35: Masculino | B35: 33 | C35: 1778513 | D35: 1755494 | E35: 1734201 | F35: 1710774 | G35: 1692741 | H35: 1686341 | I35: 1687426 | J35: 1685662 | K35: 1683033 | L35: 1681635 | M35: 1681455 | N35: 1682496 | O35: 1684246 | P35: 1686386
A36: Masculino | B36: 34 | C36: 1778515 | D36: 1774066 | E36: 1751220 | F36: 1730079 | G36: 1706780 | H36: 1688851 | I36: 1682556 | J36: 1683727 | K36: 1682050 | L36: 1679512 | M36: 1678194 | N36: 1678084 | O36: 1679191 | P36: 1681001
A37: Masculino | B37: 35 | C37: 1749880 | D37: 1773647 | E37: 1769333 | F37: 1746664 | G37: 1725666 | H37: 1702498 | I37: 1684707 | J37: 1678521 | K37: 1679780 | L37: 1678200 | M37: 1675753 | N37: 1674515 | O37: 1674476 | P37: 1675649
A38: Masculino | B38: 36 | C38: 1702072 | D38: 1744681 | E38: 1768499 | F38: 1764322 | G38: 1741813 | H38: 1720967 | I38: 1697960 | J38: 1680309 | K38: 1674238 | L38: 1675597 | M38: 1674121 | N38: 1671757 | O38: 1670602 | P38: 1670632
A39: Masculino | B39: 37 | C39: 1656254 | D39: 1697028 | E39: 1739623 | F39: 1763485 | G39: 1759418 | H39: 1737067 | I39: 1716382 | J39: 1693533 | K39: 1676019 | L39: 1670063 | M39: 1671517 | N39: 1670131 | O39: 1667847 | P39: 1666767
A40: Masculino | B40: 38 | C40: 1609297 | D40: 1651359 | E40: 1692120 | F40: 1734697 | G40: 1758584 | H40: 1754620 | I40: 1732436 | J40: 1711912 | K40: 1689210 | L40: 1671842 | M40: 1665993 | N40: 1667528 | O40: 1666223 | P40: 1664018
A41: Masculino | B41: 39 | C41: 1562986 | D41: 1604557 | E41: 1646596 | F41: 1687340 | G41: 1729880 | H41: 1753788 | I41: 1749943 | J41: 1727920 | K41: 1707545 | L41: 1684997 | M41: 1667769 | N41: 1662014 | O41: 1663628 | P41: 1662397
A42: Masculino | B42: 40 | C42: 1520279 | D42: 1557697 | E42: 1599238 | F42: 1641246 | G42: 1681955 | H42: 1724455 | I42: 1748392 | J42: 1744675 | K42: 1722828 | L42: 1702620 | M42: 1680243 | N42: 1663152 | O42: 1657501 | P42: 1659196
A43: Masculino | B43: 41 | C43: 1480008 | D43: 1514446 | E43: 1551848 | F43: 1593351 | G43: 1635304 | H43: 1675971 | I43: 1718438 | J43: 1742408 | K43: 1738821 | L43: 1717177 | M43: 1697151 | N43: 1674942 | O43: 1658002 | P43: 1652458
A44: Masculino | B44: 42 | C44: 1437838 | D44: 1474340 | E44: 1508773 | F44: 1546150 | G44: 1587600 | H44: 1629502 | I44: 1670133 | J44: 1712561 | K44: 1736565 | L44: 1733113 | M44: 1711660 | N44: 1691801 | O44: 1669755 | P44: 1652958
A45: Masculino | B45: 43 | C45: 1394218 | D45: 1432347 | E45: 1468830 | F45: 1503247 | G45: 1540587 | H45: 1581981 | I45: 1623837 | J45: 1664432 | K45: 1706824 | L45: 1730863 | M45: 1727536 | N45: 1706263 | O45: 1686563 | P45: 1664673
A46: Masculino | B46: 44 | C46: 1357085 | D46: 1388910 | E46: 1427005 | F46: 1463464 | G46: 1497850 | H46: 1535152 | I46: 1576498 | J46: 1618307 | K46: 1658868 | L46: 1701224 | M46: 1725298 | N46: 1722084 | O46: 1700983 | P46: 1681433
A47: Masculino | B47: 45 | C47: 1328709 | D47: 1350860 | E47: 1382667 | F47: 1420711 | G47: 1457121 | H47: 1491465 | I47: 1528723 | J47: 1570010 | K47: 1611755 | L47: 1652268 | M47: 1694577 | N47: 1718666 | O47: 1715580 | P47: 1694665
A48: Masculino | B48: 46 | C48: 1305870 | D48: 1321554 | E48: 1343730 | F48: 1375506 | G48: 1413478 | H48: 1449819 | I48: 1484127 | J48: 1521327 | K48: 1562536 | L48: 1604205 | M48: 1644649 | N48: 1686888 | O48: 1710986 | P48: 1708033
A49: Masculino | B49: 47 | C49: 1282792 | D49: 1298847 | E49: 1314592 | F49: 1336786 | G49: 1368519 | H49: 1406413 | I49: 1442695 | J49: 1476959 | K49: 1514105 | L49: 1555236 | M49: 1596829 | N49: 1637193 | O49: 1679358 | P49: 1703459
A50: Masculino | B50: 48 | C50: 1260063 | D50: 1275900 | E50: 1292008 | F50: 1307809 | G50: 1330007 | H50: 1361694 | I50: 1399514 | J50: 1435739 | K50: 1469959 | L50: 1507051 | M50: 1548103 | N50: 1589606 | O50: 1629891 | P50: 1671977
A51: Masculino | B51: 49 | C51: 1238608 | D51: 1253300 | E51: 1269190 | F51: 1285350 | G51: 1301191 | H51: 1323392 | I51: 1355034 | J51: 1392782 | K51: 1428944 | L51: 1463121 | M51: 1500154 | N51: 1541122 | O51: 1582534 | P51: 1622737
A52: Masculino | B52: 50 | C52: 1216464 | D52: 1230499 | E52: 1245256 | F52: 1261199 | G52: 1277402 | H52: 1293290 | I52: 1315491 | J52: 1347076 | K52: 1384732 | L52: 1420813 | M52: 1454929 | N52: 1491874 | O52: 1532728 | P52: 1574023
A53: Masculino | B53: 51 | C53: 1192896 | D53: 1207026 | E53: 1221143 | F53: 1235972 | G53: 1251961 | H53: 1268205 | I53: 1284144 | J53: 1306338 | K53: 1337849 | L53: 1375389 | M53: 1411374 | N53: 1445401 | O53: 1482239 | P53: 1522955
A54: Masculino | B54: 52 | C54: 1169896 | D54: 1183657 | E54: 1197856 | F54: 1212043 | G54: 1226927 | H54: 1242954 | I54: 1259245 | J54: 1275225 | K54: 1297411 | L54: 1328848 | M54: 1366270 | N54: 1402144 | O54: 1436082 | P54: 1472805
A55: Masculino | B55: 53 | C55: 1148022 | D55: 1160843 | E55: 1174678 | F55: 1188942 | G55: 1203184 | H55: 1218109 | I55: 1234180 | J55: 1250508 | K55: 1266520 | L55: 1288697 | M55: 1320055 | N55: 1357353 | O55: 1393117 | P55: 1426962
A56: Masculino | B56: 54 | C56: 1120823 | D56: 1139146 | E56: 1152047 | F56: 1165948 | G56: 1180257 | H56: 1194543 | I56: 1209517 | J56: 1225623 | K56: 1241983 | L56: 1258029 | M56: 1280189 | N56: 1311458 | O56: 1348628 | P56: 1384279
A57: Masculino | B57: 55 | C57: 1083815 | D57: 1110310 | E57: 1128661 | F57: 1141632 | G57: 1155586 | H57: 1169935 | I57: 1184268 | J57: 1199275 | K57: 1215403 | L57: 1231783 | M57: 1247847 | N57: 1269966 | O57: 1301115 | P57: 1338116
A58: Masculino | B58: 56 | C58: 1039848 | D58: 1071825 | E58: 1098246 | F58: 1116610 | G58: 1129641 | H58: 1143639 | I58: 1158023 | J58: 1172392 | K58: 1187421 | L58: 1203568 | M58: 1219946 | N58: 1236017 | O58: 1258071 | P58: 1289065
A59: Masculino | B59: 57 | C59: 997152 | D59: 1028355 | E59: 1060189 | F59: 1086532 | G59: 1104891 | H59: 1117974 | I59: 1132010 | J59: 1146425 | K59: 1160817 | L59: 1175864 | M59: 1192016 | N59: 1208391 | O59: 1224454 | P59: 1246441
A60: Masculino | B60: 58 | C60: 954793 | D60: 986140 | E60: 1017203 | F60: 1048889 | G60: 1075142 | H60: 1093489 | I60: 1106618 | J60: 1120684 | K60: 1135120 | L60: 1149531 | M60: 1164591 | N60: 1180737 | O60: 1197098 | P60: 1213151
A61: Masculino | B61: 59 | C61: 913119 | D61: 944256 | E61: 975453 | F61: 1006374 | G61: 1037901 | H61: 1064058 | I61: 1082396 | J61: 1095557 | K61: 1109648 | L61: 1124096 | M61: 1138519 | N61: 1153582 | O61: 1169719 | P61: 1186059
A62: Masculino | B62: 60 | C62: 871224 | D62: 900966 | E62: 931898 | F62: 962892 | G62: 993612 | H62: 1024923 | I62: 1050946 | J62: 1069238 | K62: 1082419 | L62: 1096509 | M62: 1110947 | N62: 1125358 | O62: 1140399 | P62: 1156497
A63: Masculino | B63: 61 | C63: 828745 | D63: 857607 | E63: 887104 | F63: 917780 | G63: 948510 | H63: 978973 | I63: 1010023 | J63: 1035865 | K63: 1054079 | L63: 1067259 | M63: 1081327 | N63: 1095727 | O63: 1110104 | P63: 1125097
A64: Masculino | B64: 62 | C64: 787100 | D64: 815797 | E64: 844419 | F64: 873669 | G64: 904081 | H64: 934545 | I64: 964754 | J64: 995540 | K64: 1021198 | L64: 1039332 | M64: 1052497 | N64: 1066533 | O64: 1080892 | P64: 1095224
A65: Masculino | B65: 63 | C65: 746628 | D65: 774802 | E65: 803259 | F65: 831639 | G65: 860642 | H65: 890783 | I65: 920985 | J65: 950935 | K65: 981457 | L65: 1006925 | M65: 1024973 | N65: 1038111 | O65: 1052108 | P65: 1066421
A66: Masculino | B66: 64 | C66: 706901 | D66: 734968 | E66: 762895 | F66: 791107 | G66: 819243 | H66: 847991 | I66: 877867 | J66: 907807 | K66: 937497 | L66: 967756 | M66: 993027 | N66: 1010984 | O66: 1024088 | P66: 1038040
A67: Masculino | B67: 65 | C67: 665575 | D67: 693327 | E67: 721081 | F67: 748699 | G67: 776603 | H67: 804432 | I67: 832869 | J67: 862413 | K67: 892025 | L67: 921389 | M67: 951314 | N67: 976339 | O67: 994172 | P67: 1007229
A68: Masculino | B68: 66 | C68: 623032 | D68: 650336 | E68: 677705 | F68: 705082 | G68: 732331 | H68: 759863 | I68: 787328 | J68: 815394 | K68: 844540 | L68: 873756 | M68: 902732 | N68: 932256 | O68: 956983 | P68: 974657
A69: Masculino | B69: 67 | C69: 583105 | D69: 608766 | E69: 635683 | F69: 662671 | G69: 689672 | H69: 716550 | I69: 743717 | J69: 770814 | K69: 798508 | L69: 827260 | M69: 856080 | N69: 884667 | O69: 913796 | P69: 938220
A70: Masculino | B70: 68 | C70: 545925 | D70: 569755 | E70: 595052 | F70: 621581 | G70: 648192 | H70: 674813 | I70: 701328 | J70: 728125 | K70: 754861 | L70: 782182 | M70: 810538 | N70: 838965 | O70: 867165 | P70: 895896
A71: Masculino | B71: 69 | C71: 509238 | D71: 533423 | E71: 556919 | F71: 581856 | G71: 607999 | H71: 634233 | I71: 660480 | J71: 686632 | K71: 713066 | L71: 739437 | M71: 766385 | N71: 794351 | O71: 822386 | P71: 850199
A72: Masculino | B72: 70 | C72: 469777 | D72: 494593 | E72: 518308 | F72: 541370 | G72: 565833 | H72: 591476 | I72: 617218 | J72: 642980 | K72: 668653 | L72: 694608 | M72: 720504 | N72: 746960 | O72: 774415 | P72: 801934
A73: Masculino | B73: 71 | C73: 429015 | D73: 453416 | E73: 477617 | F73: 500762 | G73: 523284 | H73: 547166 | I73: 572203 | J73: 597339 | K73: 622507 | L73: 647594 | M73: 672956 | N73: 698266 | O73: 724122 | P73: 750947
A74: Masculino | B74: 72 | C74: 391822 | D74: 414075 | E74: 437851 | F74: 461449 | G74: 484033 | H74: 506024 | I74: 529341 | J74: 553783 | K74: 578330 | L74: 602910 | M74: 627420 | N74: 652201 | O74: 676935 | P74: 702199
A75: Masculino | B75: 73 | C75: 357244 | D75: 378178 | E75: 399861 | F75: 423029 | G75: 446035 | H75: 468073 | I75: 489542 | J75: 512304 | K75: 536166 | L75: 560134 | M75: 584136 | N75: 608077 | O75: 632289 | P75: 656459
A76: Masculino | B76: 74 | C76: 327816 | D76: 344802 | E76: 365194 | F76: 386325 | G76: 408899 | H76: 431326 | I76: 452830 | J76: 473792 | K76: 496010 | L76: 519303 | M76: 542700 | N76: 566139 | O76: 589523 | P76: 613176
A77: Masculino | B77: 75 | C77: 302062 | D77: 313509 | E77: 329957 | F77: 349680 | G77: 370124 | H77: 391961 | I77: 413672 | J77: 434511 | K77: 454834 | L77: 476374 | M77: 498955 | N77: 521639 | O77: 544373 | P77: 567058
A78: Masculino | B78: 76 | C78: 278192 | D78: 286090 | E78: 297148 | F78: 312959 | G78: 331893 | H78: 351522 | I78: 372492 | J78: 393359 | K78: 413405 | L78: 432970 | M78: 453706 | N78: 475439 | O78: 497280 | P78: 519173
A79: Masculino | B79: 77 | C79: 256768 | D79: 263482 | E79: 271163 | F79: 281842 | G79: 297039 | H79: 315214 | I79: 334065 | J79: 354201 | K79: 374255 | L79: 393542 | M79: 412372 | N79: 432330 | O79: 453246 | P79: 474272
A80: Masculino | B80: 78 | C80: 238272 | D80: 243198 | E80: 249739 | F80: 257201 | G80: 267508 | H80: 282113 | I80: 299558 | J80: 317663 | K80: 337001 | L80: 356272 | M80: 374826 | N80: 392950 | O80: 412157 | P80: 432283
A81: Masculino | B81: 79 | C81: 219587 | D81: 225681 | E81: 230519 | F81: 236880 | G81: 244123 | H81: 254067 | I81: 268101 | J81: 284851 | K81: 302239 | L81: 320809 | M81: 339332 | N81: 357175 | O81: 374621 | P81: 393107
A82: Masculino | B82: 80 | C82: 197071 | D82: 205303 | E82: 211171 | F82: 215880 | G82: 222007 | H82: 228958 | I82: 238455 | J82: 251800 | K82: 267707 | L82: 284225 | M82: 301870 | N82: 319477 | O82: 336456 | P82: 353074
A83: Masculino | B83: 81 | C83: 172567 | D83: 181692 | E83: 189460 | F83: 195055 | G83: 199585 | H83: 205424 | I83: 212030 | J83: 220998 | K83: 233541 | L83: 248481 | M83: 263993 | N83: 280566 | O83: 297119 | P83: 313101
A84: Masculino | B84: 82 | C84: 151832 | D84: 159113 | E84: 167679 | F84: 175011 | G84: 180338 | H84: 184686 | I84: 190242 | J84: 196516 | K84: 204981 | L84: 216771 | M84: 230798 | N84: 245370 | O84: 260937 | P84: 276500
A85: Masculino | B85: 83 | C85: 133863 | D85: 140005 | E85: 146858 | F85: 154902 | G85: 161814 | H85: 166879 | I85: 171043 | J85: 176328 | K85: 182281 | L85: 190267 | M85: 201351 | N85: 214520 | O85: 228212 | P85: 242836
A86: Masculino | B86: 84 | C86: 118225 | D86: 123447 | E86: 129232 | F86: 135677 | G86: 143234 | H86: 149745 | I86: 154560 | J86: 158536 | K86: 163559 | L86: 169201 | M86: 176734 | N86: 187157 | O86: 199520 | P86: 212385
A87: Masculino | B87: 85 | C87: 103065 | D87: 106975 | E87: 111818 | F87: 117178 | G87: 123144 | H87: 130125 | I87: 136163 | J87: 140666 | K87: 144414 | L87: 149115 | M87: 154378 | N87: 161370 | O87: 171014 | P87: 182441
A88: Masculino | B88: 86 | C88: 88211 | D88: 91290 | E88: 94886 | F88: 99301 | G88: 104180 | H88: 109606 | I88: 115938 | J88: 121445 | K88: 125588 | L88: 129062 | M88: 133389 | N88: 138217 | O88: 144605 | P88: 153369
A89: Masculino | B89: 87 | C89: 75743 | D89: 78133 | E89: 80978 | F89: 84278 | G89: 88299 | H89: 92739 | I89: 97672 | J89: 103415 | K89: 108434 | L89: 112242 | M89: 115455 | N89: 119433 | O89: 123861 | P89: 129693
A90: Masculino | B90: 88 | C90: 65424 | D90: 67090 | E90: 69306 | F90: 71927 | G90: 74952 | H90: 78613 | I90: 82651 | J90: 87140 | K90: 92348 | L90: 96923 | M90: 100415 | N90: 103381 | O90: 107035 | P90: 111094
A91: Masculino | B91: 89 | C91: 55882 | D91: 57945 | E91: 59508 | F91: 61561 | G91: 63968 | H91: 66737 | I91: 70075 | J91: 73744 | K91: 77824 | L91: 82553 | M91: 86714 | N91: 89925 | O91: 92657 | P91: 96006
A92: Masculino | B92: 90 | C92: 198366 | D92: 211755 | E92: 224920 | F92: 237432 | G92: 249845 | H92: 262490 | I92: 275637 | J92: 289702 | K92: 304811 | L92: 321132 | M92: 339094 | N92: 357968 | O92: 376775 | P92: 395067
A93: Feminino | B93: 0 | C93: 1370913 | D93: 1354516 | E93: 1338651 | F93: 1323288 | G93: 1308456 | H93: 1293912 | I93: 1279413 | J93: 1265088 | K93: 1251073 | L93: 1237473 | M93: 1224245 | N93: 1211275 | O93: 1198499 | P93: 1185821
A94: Feminino | B94: 1 | C94: 1385206 | D94: 1368361 | E94: 1352083 | F94: 1336324 | G94: 1321065 | H94: 1306323 | I94: 1291862 | J94: 1277442 | K94: 1263186 | L94: 1249239 | M94: 1235703 | N94: 1222529 | O94: 1209616 | P94: 1196890
A95: Feminino | B95: 2 | C95: 1401725 | D95: 1384364 | E95: 1367554 | F95: 1351305 | G95: 1335579 | H95: 1320351 | I95: 1305636 | J95: 1291200 | K95: 1276804 | L95: 1262569 | M95: 1248645 | N95: 1235130 | O95: 1221977 | P95: 1209081
A96: Feminino | B96: 3 | C96: 1419118 | D96: 1401143 | E96: 1383805 | F96: 1367017 | G96: 1350790 | H96: 1335086 | I96: 1319877 | J96: 1305178 | K96: 1290759 | L96: 1276379 | M96: 1262160 | N96: 1248251 | O96: 1234744 | P96: 1221605
A97: Feminino | B97: 4 | C97: 1437404 | D97: 1418650 | E97: 1400688 | F97: 1383371 | G97: 1366601 | H97: 1350392 | I97: 1334704 | J97: 1319508 | K97: 1304822 | L97: 1290416 | M97: 1276051 | N97: 1261841 | O97: 1247948 | P97: 1234446
A98: Feminino | B98: 5 | C98: 1456696 | D98: 1437070 | E98: 1418328 | F98: 1400379 | G98: 1383073 | H98: 1366318 | I98: 1350118 | J98: 1334443 | K98: 1319257 | L98: 1304569 | M98: 1290177 | N98: 1275818 | O98: 1261617 | P98: 1247732
A99: Feminino | B99: 6 | C99: 1476916 | D99: 1456452 | E99: 1436840 | F99: 1418108 | G99: 1400168 | H99: 1382868 | I99: 1366119 | J99: 1349927 | K99: 1334264 | L99: 1319075 | M99: 1304387 | N99: 1290000 | O99: 1275650 | P99: 1261458
A100: Feminino | B100: 7 | C100: 1497955 | D100: 1476666 | E100: 1456219 | F100: 1436615 | G100: 1417890 | H100: 1399956 | I100: 1382667 | J100: 1365926 | K100: 1349745 | L100: 1334080 | M100: 1318887 | N100: 1304207 | O100: 1289830 | P100: 1275488
A101: Feminino | B101: 8 | C101: 1519826 | D101: 1497704 | E101: 1476426 | F101: 1455991 | G101: 1436396 | H101: 1417673 | I101: 1399751 | J101: 1382471 | K101: 1365739 | L101: 1349558 | M101: 1333892 | N101: 1318706 | O101: 1304034 | P101: 1289663
A102: Feminino | B102: 9 | C102: 1542294 | D102: 1519569 | E102: 1497461 | F102: 1476196 | G102: 1455766 | H102: 1436177 | I102: 1417467 | J102: 1399553 | K102: 1382281 | L102: 1365549 | M102: 1349368 | N102: 1333710 | O102: 1318531 | P102: 1303863
A103: Feminino | B103: 10 | C103: 1565174 | D103: 1542020 | E103: 1519311 | F103: 1497214 | G103: 1475955 | H103: 1455530 | I103: 1435953 | J103: 1417255 | K103: 1399351 | L103: 1382075 | M103: 1365343 | N103: 1349171 | O103: 1333519 | P103: 1318347
A104: Feminino | B104: 11 | C104: 1588126 | D104: 1564883 | E104: 1541745 | F104: 1519051 | G104: 1496958 | H104: 1475702 | I104: 1455291 | J104: 1435725 | K104: 1417034 | L104: 1399131 | M104: 1381851 | N104: 1365131 | O104: 1348966 | P104: 1333319
A105: Feminino | B105: 12 | C105: 1610870 | D105: 1587830 | E105: 1564604 | F105: 1541481 | G105: 1518792 | H105: 1496702 | I105: 1475460 | J105: 1455059 | K105: 1435503 | L105: 1416810 | M105: 1398904 | N105: 1381634 | O105: 1364922 | P105: 1348765
A106: Feminino | B106: 13 | C106: 1633242 | D106: 1610569 | E106: 1587549 | F106: 1564334 | G106: 1541215 | H106: 1518533 | I106: 1496452 | J106: 1475225 | K106: 1454836 | L106: 1435272 | M106: 1416582 | N106: 1398684 | O106: 1381423 | P106: 1364720
A107: Feminino | B107: 14 | C107: 1655052 | D107: 1632939 | E107: 1610282 | F107: 1587275 | G107: 1564065 | H107: 1540950 | I107: 1518283 | J107: 1496211 | K107: 1474997 | L107: 1454604 | M107: 1435040 | N107: 1416361 | O107: 1398470 | P107: 1381215
A108: Feminino | B108: 15 | C108: 1676091 | D108: 1654585 | E108: 1632490 | F108: 1609853 | G108: 1586857 | H108: 1563655 | I108: 1540556 | J108: 1517907 | K108: 1495852 | L108: 1474638 | M108: 1454246 | N108: 1434699 | O108: 1416031 | P108: 1398149
A109: Feminino | B109: 16 | C109: 1696777 | D109: 1675449 | E109: 1653970 | F109: 1631901 | G109: 1609276 | H109: 1586295 | I109: 1563115 | J109: 1540034 | K109: 1517410 | L109: 1495358 | M109: 1474153 | N109: 1453775 | O109: 1434246 | P109: 1415597
A110: Feminino | B110: 17 | C110: 1683194 | D110: 1696130 | E110: 1674827 | F110: 1653377 | G110: 1631317 | H110: 1608706 | I110: 1585746 | J110: 1562589 | K110: 1539527 | L110: 1516910 | M110: 1494865 | N110: 1473677 | O110: 1453318 | P110: 1433803
A111: Feminino | B111: 18 | C111: 1686144 | D111: 1682554 | E111: 1695502 | F111: 1674226 | G111: 1652787 | H111: 1630738 | I111: 1608151 | J111: 1585212 | K111: 1562074 | L111: 1539020 | M111: 1516412 | N111: 1494384 | O111: 1473214 | P111: 1452872
A112: Feminino | B112: 19 | C112: 1685508 | D112: 1685511 | E112: 1681938 | F112: 1694897 | G112: 1673628 | H112: 1652203 | I112: 1630175 | J112: 1607610 | K112: 1584692 | L112: 1561560 | M112: 1538513 | N112: 1515922 | O112: 1493917 | P112: 1472761
A113: Feminino | B113: 20 | C113: 1684464 | D113: 1684808 | E113: 1684829 | F113: 1681270 | G113: 1694228 | H113: 1672969 | I113: 1651571 | J113: 1629567 | K113: 1607022 | L113: 1584110 | M113: 1560989 | N113: 1537963 | O113: 1515392 | P113: 1493404
A114: Feminino | B114: 21 | C114: 1683738 | D114: 1683699 | E114: 1684063 | F114: 1684101 | G114: 1680543 | H114: 1693498 | I114: 1672268 | J114: 1650894 | K114: 1628915 | L114: 1606375 | M114: 1583467 | N114: 1560366 | O114: 1537365 | P114: 1514814
A115: Feminino | B115: 22 | C115: 1683264 | D115: 1682975 | E115: 1682956 | F115: 1683338 | G115: 1683379 | H115: 1679824 | I115: 1692789 | J115: 1671583 | K115: 1650233 | L115: 1628260 | M115: 1605723 | N115: 1582836 | O115: 1559760 | P115: 1536781
A116: Feminino | B116: 23 | C116: 1683250 | D116: 1682501 | E116: 1682235 | F116: 1682234 | G116: 1682622 | H116: 1682659 | I116: 1679122 | J116: 1692099 | K116: 1670915 | L116: 1649570 | M116: 1627598 | N116: 1605086 | O116: 1582224 | P116: 1559170
A117: Feminino | B117: 24 | C117: 1684209 | D117: 1682489 | E117: 1681763 | F117: 1681514 | G117: 1681517 | H117: 1681905 | I117: 1681962 | J117: 1678439 | K117: 1691426 | L117: 1670244 | M117: 1648902 | N117: 1626953 | O117: 1604465 | P117: 1581621
A118: Feminino | B118: 25 | C118: 1686118 | D118: 1683349 | E118: 1681660 | F118: 1680957 | G118: 1680715 | H118: 1680719 | I118: 1681129 | J118: 1681201 | K118: 1677696 | L118: 1690674 | M118: 1669495 | N118: 1648178 | O118: 1626251 | P118: 1603786
A119: Feminino | B119: 26 | C119: 1689038 | D119: 1685158 | E119: 1682420 | F119: 1680758 | G119: 1680068 | H119: 1679835 | I119: 1679863 | J119: 1680290 | K119: 1680381 | L119: 1676873 | M119: 1689838 | N119: 1668682 | O119: 1647395 | P119: 1625494
A120: Feminino | B120: 27 | C120: 1690969 | D120: 1688074 | E120: 1684229 | F120: 1681517 | G120: 1679872 | H120: 1679188 | I120: 1678980 | J120: 1679028 | K120: 1679475 | L120: 1679561 | M120: 1676049 | N120: 1689020 | O120: 1667891 | P120: 1646631
A121: Feminino | B121: 28 | C121: 1689861 | D121: 1690007 | E121: 1687143 | F121: 1683326 | G121: 1680630 | H121: 1678993 | I121: 1678332 | J121: 1678146 | K121: 1678214 | L121: 1678659 | M121: 1678736 | N121: 1675242 | O121: 1688223 | P121: 1667119
A122: Feminino | B122: 29 | C122: 1696511 | D122: 1688898 | E122: 1689075 | F122: 1686239 | G122: 1682436 | H122: 1679753 | I122: 1678137 | J122: 1677501 | K122: 1677334 | L122: 1677399 | M122: 1677837 | N122: 1677931 | O122: 1674455 | P122: 1687442
A123: Feminino | B123: 30 | C123: 1715053 | D123: 1695328 | E123: 1687753 | F123: 1687959 | G123: 1685151 | H123: 1681364 | I123: 1678711 | J123: 1677122 | K123: 1676509 | L123: 1676351 | M123: 1676415 | N123: 1676871 | O123: 1676987 | P123: 1673528
A124: Feminino | B124: 31 | C124: 1739070 | D124: 1713634 | E124: 1693960 | F124: 1686429 | G124: 1686660 | H124: 1683880 | I124: 1680126 | J124: 1677505 | K124: 1675945 | L124: 1675345 | M124: 1675197 | N124: 1675288 | O124: 1675766 | P124: 1675901
A125: Feminino | B125: 32 | C125: 1760000 | D125: 1737630 | E125: 1712251 | F125: 1692630 | G125: 1685128 | H125: 1685384 | I125: 1682642 | J125: 1678919 | K125: 1676327 | L125: 1674781 | M125: 1674192 | N125: 1674071 | O125: 1674183 | P125: 1674684
A126: Feminino | B126: 33 | C126: 1781617 | D126: 1758544 | E126: 1736230 | F126: 1710905 | G126: 1691330 | H126: 1683854 | I126: 1684144 | J126: 1681433 | K126: 1677741 | L126: 1675165 | M126: 1673628 | N126: 1673068 | O126: 1672971 | P126: 1673102
A127: Feminino | B127: 34 | C127: 1785086 | D127: 1780144 | E127: 1757128 | F127: 1734869 | G127: 1709590 | H127: 1690053 | I127: 1682615 | J127: 1682934 | K127: 1680254 | L127: 1676577 | M127: 1674013 | N127: 1672503 | O127: 1671968 | P127: 1671893
A128: Feminino | B128: 35 | C128: 1760552 | D128: 1783287 | E128: 1778395 | F128: 1755445 | G128: 1733244 | H128: 1708019 | I128: 1688532 | J128: 1681136 | K128: 1681488 | L128: 1678834 | M128: 1675174 | N128: 1672643 | O128: 1671159 | P128: 1670648
A129: Feminino | B129: 36 | C129: 1717228 | D129: 1758460 | E129: 1781216 | F129: 1776378 | G129: 1753499 | H129: 1731362 | I129: 1706202 | J129: 1686773 | K129: 1679423 | L129: 1679800 | M129: 1677173 | N129: 1673549 | O129: 1671051 | P129: 1669597
A130: Feminino | B130: 37 | C130: 1675171 | D130: 1715194 | E130: 1756425 | F130: 1779196 | G130: 1774407 | H130: 1751597 | I130: 1729521 | J130: 1704426 | K130: 1685051 | L130: 1677736 | M130: 1678140 | N130: 1675544 | O130: 1671955 | P130: 1669491
A131: Feminino | B131: 38 | C131: 1631365 | D131: 1673196 | E131: 1713215 | F131: 1754441 | G131: 1777224 | H131: 1772479 | I131: 1749736 | J131: 1727720 | K131: 1702688 | L131: 1683358 | M131: 1676072 | N131: 1676511 | O131: 1673952 | P131: 1670391
A132: Feminino | B132: 39 | C132: 1588185 | D132: 1629450 | E132: 1671270 | F132: 1711282 | G132: 1752498 | H132: 1775295 | I132: 1770599 | J132: 1747915 | K132: 1725958 | L132: 1700981 | M132: 1681692 | N132: 1674448 | O132: 1674914 | P132: 1672386
A133: Feminino | B133: 40 | C133: 1548698 | D133: 1585831 | E133: 1627081 | F133: 1668885 | G133: 1708889 | H133: 1750087 | I133: 1772896 | J133: 1768257 | K133: 1745642 | L133: 1723752 | M133: 1698835 | N133: 1679606 | O133: 1672408 | P133: 1672909
A134: Feminino | B134: 41 | C134: 1511776 | D134: 1545918 | E134: 1583038 | F134: 1624265 | G134: 1666051 | H134: 1706036 | I134: 1747212 | J134: 1770034 | K134: 1765454 | L134: 1742922 | M134: 1721107 | N134: 1696265 | O134: 1677104 | P134: 1669959
A135: Feminino | B135: 42 | C135: 1472945 | D135: 1509066 | E135: 1543204 | F135: 1580310 | G135: 1621515 | H135: 1663276 | I135: 1703238 | J135: 1744398 | K135: 1767226 | L135: 1762703 | M135: 1740245 | N135: 1718507 | O135: 1693739 | P135: 1674649
A136: Feminino | B136: 43 | C136: 1432529 | D136: 1470310 | E136: 1506420 | F136: 1540549 | G136: 1577641 | H136: 1618821 | I136: 1660556 | J136: 1700499 | K136: 1741640 | L136: 1764471 | M136: 1759998 | N136: 1737616 | O136: 1715950 | P136: 1691261
A137: Feminino | B137: 44 | C137: 1398648 | D137: 1429976 | E137: 1467740 | F137: 1503834 | G137: 1537954 | H137: 1575029 | I137: 1616186 | J137: 1657892 | K137: 1697816 | L137: 1738932 | M137: 1761764 | N137: 1757340 | O137: 1735032 | P137: 1713442
A138: Feminino | B138: 45 | C138: 1373915 | D138: 1395445 | E138: 1426764 | F138: 1464502 | G138: 1500570 | H138: 1534673 | I138: 1571724 | J138: 1612842 | K138: 1654513 | L138: 1694401 | M138: 1735480 | N138: 1758320 | O138: 1753949 | P138: 1731735
A139: Feminino | B139: 46 | C139: 1355101 | D139: 1370062 | E139: 1391605 | F139: 1422909 | G139: 1460606 | H139: 1496640 | I139: 1530717 | J139: 1567737 | K139: 1608807 | L139: 1650424 | M139: 1690263 | N139: 1731301 | O139: 1754146 | P139: 1749838
A140: Feminino | B140: 47 | C140: 1335865 | D140: 1351310 | E140: 1366298 | F140: 1387851 | G140: 1419129 | H140: 1456787 | I140: 1492792 | J140: 1526839 | K140: 1563825 | L140: 1604840 | M140: 1646403 | N140: 1686198 | O140: 1727194 | P140: 1750040
A141: Feminino | B141: 48 | C141: 1316799 | D141: 1332134 | E141: 1347604 | F141: 1362619 | G141: 1384173 | H141: 1415425 | I141: 1453048 | J141: 1489019 | K141: 1523035 | L141: 1559980 | M141: 1600934 | N141: 1642452 | O141: 1682204 | P141: 1723155
A142: Feminino | B142: 49 | C142: 1298985 | D142: 1313125 | E142: 1328487 | F142: 1343984 | G142: 1359015 | H142: 1380568 | I142: 1411798 | J142: 1449381 | K142: 1485316 | L142: 1519296 | M142: 1556195 | N142: 1597100 | O142: 1638567 | P142: 1678275
A143: Feminino | B143: 50 | C143: 1281148 | D143: 1294477 | E143: 1308653 | F143: 1324041 | G143: 1339558 | H143: 1354610 | I143: 1376164 | J143: 1407359 | K143: 1444888 | L143: 1480770 | M143: 1514702 | N143: 1551549 | O143: 1592391 | P143: 1633791
A144: Feminino | B144: 51 | C144: 1262376 | D144: 1275821 | E144: 1289189 | F144: 1303399 | G144: 1318809 | H144: 1334349 | I144: 1349420 | J144: 1370971 | K144: 1402122 | L144: 1439577 | M144: 1475394 | N144: 1509275 | O144: 1546057 | P144: 1586817
A145: Feminino | B145: 52 | C145: 1243891 | D145: 1257136 | E145: 1270616 | F145: 1284019 | G145: 1298253 | H145: 1313686 | I145: 1329246 | J145: 1344333 | K145: 1365880 | L145: 1396980 | M145: 1434360 | N145: 1470118 | O145: 1503941 | P145: 1540655
A146: Feminino | B146: 53 | C146: 1226316 | D146: 1238734 | E146: 1252017 | F146: 1265529 | G146: 1278957 | H146: 1293218 | I146: 1308670 | J146: 1324245 | K146: 1339346 | L146: 1360878 | M146: 1391926 | N146: 1429238 | O146: 1464929 | P146: 1498698
A147: Feminino | B147: 54 | C147: 1202915 | D147: 1221239 | E147: 1233700 | F147: 1247013 | G147: 1260551 | H147: 1274003 | I147: 1288285 | J147: 1303752 | K147: 1319343 | L147: 1334448 | M147: 1355964 | N147: 1386964 | O147: 1424202 | P147: 1459829
A148: Feminino | B148: 55 | C148: 1169543 | D148: 1196777 | E148: 1215110 | F148: 1227616 | G148: 1240958 | H148: 1254522 | I148: 1268000 | J148: 1282302 | K148: 1297783 | L148: 1313380 | M148: 1328487 | N148: 1349985 | O148: 1380922 | P148: 1418068
A149: Feminino | B149: 56 | C149: 1129208 | D149: 1162419 | E149: 1189616 | F149: 1207963 | G149: 1220503 | H149: 1233878 | I149: 1247468 | J149: 1260969 | K149: 1275290 | L149: 1290776 | M149: 1306379 | N149: 1321493 | O149: 1342959 | P149: 1373819
A150: Feminino | B150: 57 | C150: 1089646 | D150: 1122335 | E150: 1155470 | F150: 1182625 | G150: 1200976 | H150: 1213547 | I150: 1226951 | J150: 1240563 | K150: 1254083 | L150: 1268414 | M150: 1283905 | N150: 1299512 | O150: 1314628 | P150: 1336061
A151: Feminino | B151: 58 | C151: 1049779 | D151: 1083021 | E151: 1115634 | F151: 1148686 | G151: 1175794 | H151: 1194141 | I151: 1206744 | J151: 1220170 | K151: 1233798 | L151: 1247334 | M151: 1261673 | N151: 1277167 | O151: 1292769 | P151: 1307887
A152: Feminino | B152: 59 | C152: 1010250 | D152: 1043403 | E152: 1076560 | F152: 1109089 | G152: 1142059 | H152: 1169115 | I152: 1187458 | J152: 1200082 | K152: 1213529 | L152: 1227166 | M152: 1240716 | N152: 1255061 | O152: 1270550 | P152: 1286149
A153: Feminino | B153: 60 | C153: 970752 | D153: 1002611 | E153: 1035646 | F153: 1068688 | G153: 1101103 | H153: 1133962 | I153: 1160951 | J153: 1179278 | K153: 1191925 | L153: 1205382 | M153: 1219021 | N153: 1232578 | O153: 1246923 | P153: 1262400
A154: Feminino | B154: 61 | C154: 930803 | D154: 961936 | E154: 993657 | F154: 1026547 | G154: 1059440 | H154: 1091719 | I154: 1124438 | J154: 1151337 | K154: 1169637 | L154: 1182300 | M154: 1195756 | N154: 1209398 | O154: 1222954 | P154: 1237289
A155: Feminino | B155: 62 | C155: 890928 | D155: 922350 | E155: 953353 | F155: 984934 | G155: 1017676 | H155: 1050419 | I155: 1082557 | J155: 1115132 | K155: 1141936 | L155: 1160206 | M155: 1172875 | N155: 1186332 | O155: 1199970 | P155: 1213521
A156: Feminino | B156: 63 | C156: 851520 | D156: 882845 | E156: 914124 | F156: 944988 | G156: 976426 | H156: 1009015 | I156: 1041613 | J156: 1073606 | K156: 1106038 | L156: 1132742 | M156: 1150970 | N156: 1163644 | O156: 1177100 | P156: 1190730
A157: Feminino | B157: 64 | C157: 812497 | D157: 843799 | E157: 874976 | F157: 906111 | G157: 936831 | H157: 968126 | I157: 1000561 | J157: 1033008 | K157: 1064860 | L157: 1097142 | M157: 1123737 | N157: 1141927 | O157: 1154604 | P157: 1168051
A158: Feminino | B158: 65 | C158: 772043 | D158: 803094 | E158: 834196 | F158: 865178 | G158: 896121 | H158: 926652 | I158: 957758 | J158: 989995 | K158: 1022243 | L158: 1053902 | M158: 1085986 | N158: 1112443 | O158: 1130577 | P158: 1143247
A159: Feminino | B159: 66 | C159: 730429 | D159: 761124 | E159: 791925 | F159: 822779 | G159: 853519 | H159: 884224 | I159: 914525 | J159: 945395 | K159: 977385 | L159: 1009384 | M159: 1040804 | N159: 1072645 | O159: 1098930 | P159: 1116987
A160: Feminino | B160: 67 | C160: 690781 | D160: 720105 | E160: 750540 | F160: 781090 | G160: 811693 | H160: 842191 | I160: 872657 | J160: 902726 | K160: 933360 | L160: 965097 | M160: 996849 | N160: 1028028 | O160: 1059630 | P160: 1085739
A161: Feminino | B161: 68 | C161: 653353 | D161: 681019 | E161: 710097 | F161: 740274 | G161: 770572 | H161: 800922 | I161: 831180 | J161: 861408 | K161: 891245 | L161: 921637 | M161: 953120 | N161: 984625 | O161: 1015563 | P161: 1046923
A162: Feminino | B162: 69 | C162: 616164 | D162: 644126 | E162: 671557 | F162: 700389 | G162: 730308 | H162: 760352 | I162: 790455 | J162: 820468 | K162: 850455 | L162: 880055 | M162: 910207 | N162: 941442 | O162: 972695 | P162: 1003391
A163: Feminino | B163: 70 | C163: 576348 | D163: 604923 | E163: 632567 | F163: 659688 | G163: 688194 | H163: 717770 | I163: 747481 | J163: 777251 | K163: 806944 | L163: 836610 | M163: 865897 | N163: 895731 | O163: 926627 | P163: 957548
A164: Feminino | B164: 71 | C164: 535158 | D164: 563391 | E164: 591542 | F164: 618790 | G164: 645526 | H164: 673627 | I164: 702784 | J164: 732076 | K164: 761439 | L164: 790727 | M164: 819995 | N164: 848892 | O164: 878329 | P164: 908808
A165: Feminino | B165: 72 | C165: 496851 | D165: 523123 | E165: 550929 | F165: 578661 | G165: 605511 | H165: 631869 | I165: 659569 | J165: 688312 | K165: 717193 | L165: 746147 | M165: 775030 | N165: 803901 | O165: 832410 | P165: 861455
A166: Feminino | B166: 73 | C166: 460438 | D166: 485674 | E166: 511550 | F166: 538932 | G166: 566246 | H166: 592708 | I166: 618690 | J166: 645993 | K166: 674323 | L166: 702792 | M166: 731345 | N166: 759829 | O166: 788305 | P166: 816429
A167: Feminino | B167: 74 | C167: 429462 | D167: 450075 | E167: 474925 | F167: 500408 | G167: 527370 | H167: 554275 | I167: 580352 | J167: 605961 | K167: 632873 | L167: 660795 | M167: 688857 | N167: 717008 | O167: 745099 | P167: 773185
A168: Feminino | B168: 75 | C168: 402849 | D168: 416976 | E168: 437201 | F168: 461555 | G168: 486531 | H168: 512961 | I168: 539339 | J168: 564921 | K168: 590049 | L168: 616457 | M168: 643854 | N168: 671396 | O168: 699028 | P168: 726610
A169: Feminino | B169: 76 | C169: 378418 | D169: 388392 | E169: 402246 | F169: 422000 | G169: 445749 | H169: 470111 | I169: 495893 | J169: 521638 | K169: 546617 | L169: 571160 | M169: 596960 | N169: 623719 | O169: 650626 | P169: 677629
A170: Feminino | B170: 77 | C170: 355960 | D170: 364842 | E170: 374674 | F170: 388257 | G170: 407543 | H170: 430703 | I170: 454468 | J170: 479616 | K170: 504739 | L170: 529128 | M170: 553097 | N170: 578300 | O170: 604435 | P170: 630721
A171: Feminino | B171: 78 | C171: 336280 | D171: 343195 | E171: 351959 | F171: 361645 | G171: 374956 | H171: 393784 | I171: 416369 | J171: 439548 | K171: 464080 | L171: 488594 | M171: 512404 | N171: 535815 | O171: 560427 | P171: 585950
A172: Feminino | B172: 79 | C172: 315650 | D172: 324225 | E172: 331084 | F172: 339724 | G172: 349258 | H172: 362295 | I172: 380674 | J172: 402697 | K172: 425305 | L172: 449239 | M172: 473156 | N172: 496401 | O172: 519263 | P172: 543299
A173: Feminino | B173: 80 | C173: 289280 | D173: 300911 | E173: 309317 | F173: 316090 | G173: 324561 | H173: 333889 | I173: 346570 | J173: 364377 | K173: 385686 | L173: 407569 | M173: 430732 | N173: 453893 | O173: 476417 | P173: 498579
A174: Feminino | B174: 81 | C174: 259401 | D174: 272466 | E174: 283691 | F174: 291880 | G174: 298535 | H174: 306791 | I174: 315863 | J174: 328110 | K174: 345224 | L174: 365676 | M174: 386687 | N174: 408929 | O174: 431178 | P174: 452835
A175: Feminino | B175: 82 | C175: 233290 | D175: 244338 | E175: 256885 | F175: 267708 | G175: 275676 | H175: 282197 | I175: 290229 | J175: 299042 | K175: 310867 | L175: 327312 | M175: 346941 | N175: 367114 | O175: 388468 | P175: 409841
A176: Feminino | B176: 83 | C176: 209825 | D176: 219753 | E176: 230378 | F176: 242424 | G176: 252853 | H176: 260593 | I176: 266969 | J176: 274779 | K176: 283329 | L176: 294740 | M176: 310541 | N176: 329382 | O176: 348747 | P176: 369248
A177: Feminino | B177: 84 | C177: 189136 | D177: 197665 | E177: 207210 | F177: 217419 | G177: 228980 | H177: 239028 | I177: 246543 | J177: 252762 | K177: 260343 | L177: 268632 | M177: 279638 | N177: 294818 | O177: 312901 | P177: 331494
A178: Feminino | B178: 85 | C178: 168638 | D178: 175070 | E178: 183186 | F178: 192254 | G178: 201946 | H178: 212905 | I178: 222474 | J178: 229695 | K178: 235710 | L178: 242996 | M178: 250948 | N178: 261443 | O178: 275855 | P178: 292992
A179: Feminino | B179: 86 | C179: 147901 | D179: 153097 | E179: 159191 | F179: 166818 | G179: 175325 | H179: 184408 | I179: 194664 | J179: 203662 | K179: 210525 | L179: 216287 | M179: 223215 | N179: 230760 | O179: 240650 | P179: 254159
A180: Feminino | B180: 87 | C180: 129877 | D180: 134273 | E180: 139216 | F180: 144977 | G180: 152140 | H180: 160113 | I180: 168622 | J180: 178219 | K180: 186672 | L180: 193182 | M180: 198685 | N180: 205264 | O180: 212410 | P180: 221724
A181: Feminino | B181: 88 | C181: 114493 | D181: 117916 | E181: 122102 | F181: 126793 | G181: 132230 | H181: 138950 | I181: 146418 | J181: 154388 | K181: 163362 | L181: 171300 | M181: 177468 | N181: 182714 | O181: 188948 | P181: 195712
A182: Feminino | B182: 89 | C182: 99847 | D182: 103949 | E182: 107230 | F182: 111209 | G182: 115648 | H182: 120771 | I182: 127076 | J182: 134069 | K182: 141531 | L182: 149918 | M182: 157368 | N182: 163203 | O182: 168197 | P182: 174100
A183: Feminino | B183: 90 | C183: 417970 | D183: 447381 | E183: 476883 | F183: 505777 | G183: 534802 | H183: 564381 | I183: 595070 | J183: 627780 | K183: 662856 | L183: 700409 | M183: 740945 | N183: 783249 | O183: 825682 | P183: 867513
A184: Total | B184: 0 | C184: 2807954 | D184: 2774484 | E184: 2742092 | F184: 2710713 | G184: 2680412 | H184: 2650689 | I184: 2621048 | J184: 2591763 | K184: 2563103 | L184: 2535288 | M184: 2508231 | N184: 2481696 | O184: 2455551 | P184: 2429608
A185: Total | B185: 1 | C185: 2836288 | D185: 2801970 | E185: 2768782 | F185: 2736648 | G185: 2705512 | H185: 2675428 | I185: 2645905 | J185: 2616449 | K185: 2587330 | L185: 2558828 | M185: 2531163 | N185: 2504236 | O185: 2477831 | P185: 2451804
A186: Total | B186: 2 | C186: 2869684 | D186: 2834339 | E186: 2800100 | F186: 2766981 | G186: 2734919 | H186: 2703854 | I186: 2673831 | J186: 2644365 | K186: 2614964 | L186: 2585896 | M186: 2557441 | N186: 2529826 | O186: 2502943 | P186: 2476583
A187: Total | B187: 3 | C187: 2904902 | D187: 2868346 | E187: 2833051 | F187: 2798861 | G187: 2765793 | H187: 2733776 | I187: 2702757 | J187: 2672771 | K187: 2643343 | L187: 2613977 | M187: 2584946 | N187: 2556521 | O187: 2528932 | P187: 2502078
A188: Total | B188: 4 | C188: 2941950 | D188: 2903827 | E188: 2867307 | F188: 2832055 | G188: 2797905 | H188: 2764875 | I188: 2732891 | J188: 2701903 | K188: 2671949 | L188: 2642549 | M188: 2613212 | N188: 2584207 | O188: 2555810 | P188: 2528238
A189: Total | B189: 5 | C189: 2981020 | D189: 2941161 | E189: 2903069 | F189: 2866580 | G189: 2831337 | H189: 2797219 | I189: 2764212 | J189: 2732257 | K189: 2701291 | L189: 2671346 | M189: 2641972 | N189: 2612649 | O189: 2583668 | P189: 2555287
A190: Total | B190: 6 | C190: 3021956 | D190: 2980420 | E190: 2940594 | F190: 2902521 | G190: 2866040 | H190: 2830796 | I190: 2796698 | J190: 2763707 | K190: 2731779 | L190: 2700818 | M190: 2670882 | N190: 2641522 | O190: 2612217 | P190: 2583252
A191: Total | B191: 7 | C191: 3064488 | D191: 3021344 | E191: 2979843 | F191: 2940037 | G191: 2901969 | H191: 2865487 | I191: 2830266 | J191: 2796187 | K191: 2763217 | L191: 2731301 | M191: 2700345 | N191: 2670427 | O191: 2641086 | P191: 2611796
A192: Total | B192: 8 | C192: 3108660 | D192: 3063869 | E192: 3020751 | F192: 2979277 | G192: 2939477 | H192: 2901407 | I192: 2864949 | J192: 2829750 | K192: 2795687 | L192: 2762731 | M192: 2730823 | N192: 2699885 | O192: 2669982 | P192: 2640657
A193: Total | B193: 9 | C193: 3153837 | D193: 3108029 | E193: 3063265 | F193: 3020179 | G193: 2978702 | H193: 2938909 | I193: 2900862 | J193: 2864424 | K193: 2829245 | L193: 2795193 | M193: 2762247 | N193: 2730360 | O193: 2699435 | P193: 2669546
A194: Total | B194: 10 | C194: 3199611 | D194: 3153126 | E194: 3107353 | F194: 3062618 | G194: 3019534 | H194: 2978059 | I194: 2938297 | J194: 2900274 | K194: 2863861 | L194: 2828686 | M194: 2794649 | N194: 2761722 | O194: 2729853 | P194: 2698944
A195: Total | B195: 11 | C195: 3245326 | D195: 3198817 | E195: 3152367 | F195: 3106631 | G195: 3061900 | H195: 3018819 | I195: 2977376 | J195: 2937644 | K195: 2899643 | L195: 2863242 | M195: 2828075 | N195: 2794062 | O195: 2761156 | P195: 2729304
A196: Total | B196: 12 | C196: 3290463 | D196: 3244518 | E196: 3198050 | F196: 3151634 | G196: 3105906 | H196: 3061175 | I196: 3018125 | J196: 2976712 | K196: 2937004 | L196: 2899019 | M196: 2862621 | N196: 2827479 | O196: 2793489 | P196: 2760600
A197: Total | B197: 13 | C197: 3334738 | D197: 3289644 | E197: 3243740 | F197: 3197305 | G197: 3150894 | H197: 3105172 | I197: 3060467 | J197: 3017451 | K197: 2976065 | L197: 2936365 | M197: 2898392 | N197: 2862017 | O197: 2826897 | P197: 2792924
A198: Total | B198: 14 | C198: 3377789 | D198: 3333910 | E198: 3288853 | F198: 3242984 | G198: 3196554 | H198: 3150147 | I198: 3104458 | J198: 3059778 | K198: 3016794 | L198: 2975418 | M198: 2935729 | N198: 2897782 | O198: 2861426 | P198: 2826324
A199: Total | B199: 15 | C199: 3418214 | D199: 3375755 | E199: 3331949 | F199: 3286964 | G199: 3241144 | H199: 3194755 | I199: 3148413 | J199: 3102789 | K199: 3058172 | L199: 3015226 | M199: 2973891 | N199: 2934260 | O199: 2896361 | P199: 2860047
A200: Total | B200: 16 | C200: 3457009 | D200: 3414922 | E200: 3372581 | F200: 3328885 | G200: 3283980 | H200: 3238243 | I200: 3191959 | J200: 3145712 | K200: 3100191 | L200: 3055650 | M200: 3012777 | N200: 2971523 | O200: 2931971 | P200: 2894152
... 74 more rows

Sheet controle_formulario
C3: Planilha Criterios
C5: Quantidade de tecnlogias alternativas | E5: Quantidade de Cenário Alternativos | H5: Ano de início da análise | J5: Horizonte Temporal
C6: 1 | E6: 1 | G6: 1 | H6: =Criterios!C31 -> 2020 | J6: 1 ano
C7: 2 | E7: 2 | G7: 2 | H7: =H6+1 -> 2021 | J7: 2 anos
C8: 3 | E8: 3 | G8: 3 | H8: =H7+1 -> 2022 | J8: 3 anos
C9: 4 | E9: 4 | G9: 4 | H9: 2023 | J9: 4 anos
C10: 1 | E10: 5 | G10: 5 | H10: 2024 | J10: 5 anos
E11: 6 | G11: 6 | H11: 2025 | J11: 6 anos
E12: 7 | G12: 7 | H12: 2026 | J12: 7 anos
E13: 8 | G13: 8 | H13: 2027 | J13: 8 anos
E14: 9 | G14: 9 | H14: 2028 | J14: 9 anos
E15: 10 | G15: 10 | H15: 2029 | J15: 10 anos
E16: 1 | G16: 11 | H16: 2030 | J16: 5
G17: 12 | H17: 2031
G18: 13 | H18: 2032
G19: 14 | H19: 2033
H20: 2
H21: =VLOOKUP($H$20,$G$6:$H$19,2,FALSE) -> 2021
C25: Planilha Parâmetros
C27: Utilizado na análise de sensibilidade?
C28: Sim
C29: Não
C34: Planilha Populacao
C36: Método para definição da população de interesse: | E36: Restrição ou Aumento de Demanda | G36: Sexo
C37: População Geral Brasileira | E37: Sim | G37: Masculino
C38: Outro | E38: Não | G38: Feminino | H38: =IF($G$40=1,$G$38,$G$37) -> Masculino
C39: 1 | E39: 1 | G39: Ambos | H39: 1
G40: 3 | H40: =H38 -> Masculino
G41: =IF(G40=1,G37,IF(G40=2,G38,"Total")) -> Total
